Workbook

Sheet Introduction
A2: Nursery & Garden Industry Queensland iSPACE Sprinkler Selection Tool
A3: This tool allows the user to input the parameters of a proposed sprinkler system and generate a list of sprinklers meeting those requirements. A specific sprinkler option can be selected from the list of sprinklers and a schematic plan with sprinkler specifications produced. Instructions on use are provided within the tool.
A4: The NGIQ iSPACE Sprinkler Selection Tool relies on a database of calculated efficiencies developed from radial leg data input into the SPACE Pro sprinkler performance tool. This tool does not contain a complete database of all sprinkler models, jet sizes and operating pressures, and does not claim to be a complete listing of all available sprinklers or options.
A5: This NGIQ iSPACE Sprinkler Selection Tool has been developed from the on-line iSPACE sprinkler selection tool which was produced as part of the South East Queensland Irrigation Futures project. This off-line version has been developed using funding provided by the Department of Natural Resources Mines and Energy under the Farm Water Futures project.
A6: Whilst NGIQ has endeavoured to ensure the accuracy of the data within iSPACE, and in reports generated from this data, the information provided is based on a “computer modelling program” supported by emitter (sprinkler) data provided by third parties beyond the control of NGIQ. NGIQ accepts no liability for the consequences to personal, property, business or otherwise arising from the application, implementation or use of the information contained in this report.

Sheet Input
B1: =IF(D1=0,"Further data input required - please complete all red highlighted cells","Data input complete - click on GENERATE SPRINKLER LIST button to left") -> Further data input required - please complete all red highlighted cells | D1: =D3*D4*D5*D6*D8*D12*D13*D16*D17*D18*D19*D10*D15*D9 -> 0
A2: Crop/Growing Environment Information
A3: Growing media | B3: Please select growing media type from dropdown | C3: Select the growing media type closest to the growing media used. | D3: =IF(B3="",0,IF(VLOOKUP(Input!B3,Dropdowns!R77:S81,2,FALSE)=100,"",VLOOKUP(Input!B3,Dropdowns!R77:S81,2,FALSE))) -> 0 | E3: Please select growing media type from dropdown
A4: Plant size | B4: Medium | C4: Small plants can be affected by large droplets damaging plants and washing out growing media. Large plants require larger droplets to penetrate the crop. | D4: =IF(B4="Small",1,IF(B4="Medium",2,IF(B4="Large",3,0))) -> 2 | E4: Please select plant size from dropdown
A5: Foliage density | B5: Medium | C5: Small droplets are better suited to sparse foliaged plants. Dense foliage requires larger droplets to penetrate foliage. For dense foliaged plants a wider spacing could be selected as sprinklers designed for the wider spacings have larger droplets which can penetrate better. | D5: =IF(B5="Sparse",1,IF(B5="Medium",2,IF(B5="Dense",3,0))) -> 2 | E5: Please select foliage density from dropdown
A6: Average wind conditions | B6: Light < 11km/hr. Wind felt on face | C6: Fast rotating sprinklers with small droplets are more affected by wind. Single stream rotating sprinklers with large droplets are less affected. Overestimating wind conditions may reduce sprinkler options. | D6: =IF(OR(B6="Please select wind conditions from dropdown",B6=""),0,1) -> 1 | E6: Please select wind conditions from dropdown
A7: Sprinkler and Irrigation Zone Specifications
A8: Upright/inverted | B8: Please select sprinkler orientation from dropdown | C8: Select which orientaton is required for the sprinkler. | D8: =IF(B8="Upright",1,IF(B8="Inverted",2,0)) -> 0 | E8: Please select sprinkler orientation from dropdown
A9: Minimum sprinkler height above crop (cm) | B9: 200 | C9: Sprinkler performance data comes from tests conducted with sprinklers at specified heights. When a height is specified sprinkler options tested at lower heights will not be selected and may reduce sprinkler options. Sprinklers installed at heights less than the test height will be less efficient than the data shows. | D9: =IF(OR(B9="Please select approximate sprinkler height from dropdown",B9=""),0,1) -> 1 | E9: Please select approximate sprinkler height from dropdown
A10: Maximum operating pressure at sprinkler kPa | B10: Please input the maximum operating pressure at the sprinkler in kPa | C10: Click on the cell to input the maximum operating pressure at the sprinkler. | D10: =IF(OR(B10="Please input the maximum operating pressure at the sprinkler in kPa",B10=""),0,1) -> 0 | E10: Please input the maximum operating pressure at the sprinkler in kPa
A11: Minimum operating pressure at sprinkler kPa | C11: Optional. Input the minimum operating pressure at the sprinkler. This will limit sprinkler selections to those operating between the minimum and maximum operating pressure range.
A12: Width of irrigation zone (m) | B12: Please input the width of the growing area in metres | C12: Input the width of the irrigation zone. | D12: =IF(OR(B12="Please input the width of the growing area in metres",B12="",B12=0),0,1) -> 0 | E12: Please input the width of the growing area in metres
A13: Length of irrigation zone (m) | B13: Please input the length of the growing area in metres | C13: Input the length of the irrigation zone. | D13: =IF(OR(B13="Please input the length of the growing area in metres",B13="",B13=0),0,1) -> 0 | E13: Please input the length of the growing area in metres
A14: Approximate sprinkler spacing | B14: 5mx5m | C14: Select an approximate spacing for the sprinklers from the dropdown box. A more accurate spacing will be calculated based on actual area dimensions. | D14: =IF(OR(B14="Please select the approximate spacing from the dropdown",B14=""),0,1) -> 1 | E14: Please select the approximate spacing from the dropdown
A15: =IF(OR(B16="",B17=""),"",IF(OR(B16/B17>1.1,B16/B17<0.9),"Please select a different approximate spacing, as variation in spacing is greater than 10% and will affect uniformity.","Continue with selection criteria. Spacing selected varies by less than 10% and will not affect uniformity significantly.")) ->  | D15: =IF(A15="",0,IF(OR(B16/B17>1.1,B16/B17<0.9),0,(B16/B17))) -> 0
A16: Emitter spacing between laterals (m) | B16: =IF(B12="Please input the width of the growing area in metres","",_xlfn.IFNA(B12/(ROUND(B12/VLOOKUP($B$14,Dropdowns!$J$79:$K$115,2,FALSE),0)),"")) ->  | C16: Calculated lateral spacing | D16: =IF(B16="",0,B12/B16)+1 -> 1 | E16: =IF(E12="Please input the width of the growing area in metres","",_xlfn.IFNA(E12/(ROUND(E12/VLOOKUP($B$14,Dropdowns!$J$79:$K$115,2,FALSE),0)),"")) -> 
A17: Emitter spacing along laterals (m) | B17: =IF(B13="Please input the length of the growing area in metres","",_xlfn.IFNA(B13/(ROUND(B13/VLOOKUP($B$14,Dropdowns!$J$79:$K$115,2,FALSE),0)),"")) ->  | C17: Calculated sprinkler spacing along the lateral. | D17: =IF(B17="",0,B13/B17)+1 -> 1 | E17: =IF(E13="Please input the length of the growing area in metres","",_xlfn.IFNA(E13/(ROUND(E13/VLOOKUP($B$14,Dropdowns!$J$79:$K$115,2,FALSE),0)),"")) -> 
A18: =IF(A15="","Insufficient data to calculate actual sprinkler spacing",IF(OR(B16/B17>1.1,B16/B17<0.9),CONCATENATE("Spacing not suitable for calculation of lateral and sprinkler numbers."),CONCATENATE("The design layout will be ",D16," laterals with ",D17," sprinklers along each lateral, and a total of ",D18," sprinklers."))) -> Insufficient data to calculate actual sprinkler spacing | D18: =IF(A15="",0,((B12/B16)+1)*((B13/B17)+1)) -> 0
A19: Maximum flow rate to irrigation zone L/hr | B19: Please input the maximum flow rate to the growing area in L/hr | C19: Click on the cell to input the flow rate in L/hr available at the irrigation zone. | D19: =IF(OR(B19="Please input the maximum flow rate to the growing area in L/hr",B19=""),0,1) -> 0 | E19: Please input the maximum flow rate to the growing area in L/hr
A20: MAR calculated from available flow rate mm/hr | B20: =IF(OR(B16="",B17="",B19="",B19="Please input the maximum flow rate to the growing area in L/hr"),"",B19/(B13*B12)) ->  | C20: Calculated Mean Application Rate from the flow rate and size of area input. | E20: =IF(OR(E16="",E17="",E19="",E19="Please input the maximum flow rate to the growing area in L/hr"),"",E19/(E13*E12)) -> 
A21: =IF(B20="","Maximum flow rate input required",IF(B20<D3,CONCATENATE("Available flow rate restricts MAR to less than the absorption rate of the growing media and may reduce the available sprinkler options."),CONCATENATE("Available flow rate does not reduce sprinkler options based on MAR."))) -> Maximum flow rate input required | D21: =IF(A21="Maximum flow rate input required",0,1) -> 0
A22: System Performance Requirements - Optional
A23: Minimum MAR | C23: Optional. Input a minimum Mean Application Rate if required. Input of values here may reduce sprinkler options.
A24: Minimum CU | C24: Optional. Input a minimum Coefficient of Uniformity if required. Input of values here may reduce sprinkler options.
A25: Maximum SC | C25: Optional. Input a minimum Scheduling Coefficient if required. Input of values here may reduce sprinkler options.
A26: Sprinkler model | C26: Optional. Select a specific sprinkler model from the dropdown list.

Sheet Output
A1: iSPACE Sprinkler Selections
A2: Manufacturer | B2: Sprinkler | C2: Deflector | D2: Flow rate L/hr | E2: Nozzle size/colour | F2: >=0 and <=300 kPa Pressure | G2: >=85% CU | H2: <=1.5 SC | I2: >=0 and <=6.94 mm/hr MAR | J2: 5mx5m approximate sprinkler spacing | K2: Upright Position | L2: Scenario | M2: Sprinkler test height cm. Note: Uniformity will be affected if installed height is less than this height | N2: Sprinkler stream type | O2: Droplet Size (Plant size Medium. Foliage density Medium) | P2: Approximate tolerance of wind conditions - Light < 11km/hr. Wind felt on face | Q2: Droplet size ranking | R2: Wind tolerance ranking
A3: Philmac | B3: Challenger | C3: Standard? | D3: 139 | E3: Blue | F3: 200 | G3: 0.96 | H3: 1.1 | I3: 5.8 | J3: 5mx5m | K3: Upright | L3: Modelled | M3: 20 | N3: Fast rotating | O3: Medium | P3: Light < 11km/hr. Wind felt on face | Q3: 2 | R3: 1
A4: Antelco | B4: Rotor Rain | C4: Standard | D4: 145 | E4: 1.7 Blue | F4: 200 | G4: 0.95 | H4: 1.2 | I4: 5.3 | J4: 5mx5m | K4: Upright | L4: Modelled | M4: 50 | N4: Fast rotating | O4: Medium | P4: Light < 11km/hr. Wind felt on face | Q4: 2 | R4: 1
A5: Netafim | B5: Spin Clear | C5: Red | D5: 160 | E5: Brown | F5: 200 | G5: 0.95 | H5: 1.1 | I5: 6.5 | J5: 5mx5m | K5: Upright | L5: Modelled | M5: 20 | N5: Fast rotating | O5: Medium | P5: Light < 11km/hr. Wind felt on face | Q5: 2 | R5: 1
A6: NaanDan | B6: Mamkad 16 | C6: Standard | D6: 180 | E6: Yellow 180 | F6: 200 | G6: 0.95 | H6: 1.1 | I6: 6.9 | J6: 5mx5m | K6: Upright | L6: Modelled | M6: 60 | N6: Single stream rotator | O6: Medium | P6: Gentle < 19 km/hr. Flags flap | Q6: 2 | R6: 2
A7: Nelson | B7: R10TURBO | C7: P6 9° Blue | D7: 159 | E7: #70 White | F7: 172 | G7: 0.92 | H7: 1.1 | I7: 6.2 | J7: 5mx5m | K7: Upright | L7: Modelled | M7: 30.5 | N7: Single stream rotator | O7: Medium | P7: Gentle < 19 km/hr. Flags flap | Q7: 2 | R7: 2
A8: Nelson | B8: R10TURBO | C8: P6 9° Blue | D8: 159 | E8: #70 White | F8: 172 | G8: 0.92 | H8: 1.1 | I8: 6.2 | J8: 5mx5m | K8: Upright | L8: Modelled | M8: 30.5 | N8: Single stream rotator | O8: Medium | P8: Gentle < 19 km/hr. Flags flap | Q8: 2 | R8: 2
A9: Nelson | B9: R10TURBO | C9: P6 9° Blue | D9: 174 | E9: #70 White | F9: 207 | G9: 0.92 | H9: 1.2 | I9: 6.8 | J9: 5mx5m | K9: Upright | L9: Modelled | M9: 30.5 | N9: Single stream rotator | O9: Medium | P9: Gentle < 19 km/hr. Flags flap | Q9: 2 | R9: 2
A10: Nelson | B10: R10TURBO | C10: P6 9° Blue | D10: 174 | E10: #70 White | F10: 207 | G10: 0.92 | H10: 1.2 | I10: 6.8 | J10: 5mx5m | K10: Upright | L10: Modelled | M10: 30.5 | N10: Single stream rotator | O10: Medium | P10: Gentle < 19 km/hr. Flags flap | Q10: 2 | R10: 2
A11: Rivulis | B11: Rondo Anti-ant | C11: Black? | D11: 132 | E11: 1.6 White | F11: 200 | G11: 0.91 | H11: 1.2 | I11: 5.3 | J11: 5mx5m | K11: Upright | L11: Modelled | M11: 20 | N11: Fast rotating | O11: Medium | P11: Light < 11km/hr. Wind felt on face | Q11: 2 | R11: 1
A12: Rivulis | B12: Rondo | C12: Black? | D12: 130 | E12: 1.6 White | F12: 200 | G12: 0.91 | H12: 1.1 | I12: 5.5 | J12: 5mx5m | K12: Upright | L12: Modelled | M12: 20 | N12: Fast rotating | O12: Medium | P12: Light < 11km/hr. Wind felt on face | Q12: 2 | R12: 1
A13: Antelco | B13: Rotor Rain | C13: Standard | D13: 163 | E13: 1.7 Blue | F13: 250 | G13: 0.91 | H13: 1.2 | I13: 6 | J13: 5mx5m | K13: Upright | L13: Modelled | M13: 50 | N13: Fast rotating | O13: Medium | P13: Light < 11km/hr. Wind felt on face | Q13: 2 | R13: 1
A14: Philmac | B14: Challenger | C14: Standard? | D14: 169 | E14: Grey | F14: 200 | G14: 0.91 | H14: 1.3 | I14: 6.7 | J14: 5mx5m | K14: Upright | L14: Modelled | M14: 20 | N14: Fast rotating | O14: Medium | P14: Light < 11km/hr. Wind felt on face | Q14: 2 | R14: 1
A15: Antelco | B15: Rotor Rain | C15: Standard | D15: 122 | E15: 1.7 Blue | F15: 150 | G15: 0.9 | H15: 1.4 | I15: 4.6 | J15: 5mx5m | K15: Upright | L15: Modelled | M15: 50 | N15: Fast rotating | O15: Medium | P15: Light < 11km/hr. Wind felt on face | Q15: 2 | R15: 1
A16: Philmac | B16: Challenger | C16: Standard? | D16: 120 | E16: Blue | F16: 150 | G16: 0.9 | H16: 1.2 | I16: 4.8 | J16: 5mx5m | K16: Upright | L16: Modelled | M16: 20 | N16: Fast rotating | O16: Medium | P16: Light < 11km/hr. Wind felt on face | Q16: 2 | R16: 1
A17: Philmac | B17: Challenger | C17: Low angle? | D17: 139 | E17: Blue | F17: 200 | G17: 0.9 | H17: 1.3 | I17: 5.7 | J17: 5mx5m | K17: Upright | L17: Modelled | M17: 20 | N17: Fast rotating | O17: Medium | P17: Light < 11km/hr. Wind felt on face | Q17: 2 | R17: 1
A18: Rivulis | B18: Rondo Anti-ant | C18: Black? | D18: 170 | E18: 1.8 Violet | F18: 200 | G18: 0.9 | H18: 1.3 | I18: 6.9 | J18: 5mx5m | K18: Upright | L18: Modelled | M18: 20 | N18: Fast rotating | O18: Medium | P18: Light < 11km/hr. Wind felt on face | Q18: 2 | R18: 1
A19: Nelson | B19: R10TURBO | C19: P6 9° Blue | D19: 139 | E19: #65 Gray | F19: 172 | G19: 0.89 | H19: 1.3 | I19: 5.4 | J19: 5mx5m | K19: Upright | L19: Modelled | M19: 30.5 | N19: Single stream rotator | O19: Medium | P19: Gentle < 19 km/hr. Flags flap | Q19: 2 | R19: 2
A20: Nelson | B20: R10TURBO | C20: P6 9° Blue | D20: 139 | E20: #65 Gray | F20: 172 | G20: 0.89 | H20: 1.3 | I20: 5.4 | J20: 5mx5m | K20: Upright | L20: Modelled | M20: 30.5 | N20: Single stream rotator | O20: Medium | P20: Gentle < 19 km/hr. Flags flap | Q20: 2 | R20: 2
A21: Philmac | B21: Challenger | C21: Standard? | D21: 148 | E21: Grey | F21: 150 | G21: 0.88 | H21: 1.2 | I21: 6 | J21: 5mx5m | K21: Upright | L21: Modelled | M21: 20 | N21: Fast rotating | O21: Medium | P21: Light < 11km/hr. Wind felt on face | Q21: 2 | R21: 1
A22: Nelson | B22: R10TURBO | C22: P6 9° Blue | D22: 164 | E22: #65 Gray | F22: 241 | G22: 0.88 | H22: 1.5 | I22: 6.5 | J22: 5mx5m | K22: Upright | L22: Modelled | M22: 30.5 | N22: Single stream rotator | O22: Medium | P22: Gentle < 19 km/hr. Flags flap | Q22: 2 | R22: 2
A23: Nelson | B23: R10TURBO | C23: P6 9° Blue | D23: 164 | E23: #65 Gray | F23: 241 | G23: 0.88 | H23: 1.5 | I23: 6.5 | J23: 5mx5m | K23: Upright | L23: Modelled | M23: 30.5 | N23: Single stream rotator | O23: Medium | P23: Gentle < 19 km/hr. Flags flap | Q23: 2 | R23: 2
A24: Philmac | B24: Challenger | C24: Standard? | D24: 95 | E24: Blue | F24: 100 | G24: 0.87 | H24: 1.5 | I24: 4 | J24: 5mx5m | K24: Upright | L24: Modelled | M24: 20 | N24: Fast rotating | O24: Medium | P24: Light < 11km/hr. Wind felt on face | Q24: 2 | R24: 1
A25: Nelson | B25: R10TURBO | C25: P6 9° Blue | D25: 152 | E25: #65 Gray | F25: 207 | G25: 0.87 | H25: 1.5 | I25: 5.9 | J25: 5mx5m | K25: Upright | L25: Modelled | M25: 30.5 | N25: Single stream rotator | O25: Medium | P25: Gentle < 19 km/hr. Flags flap | Q25: 2 | R25: 2
A26: Nelson | B26: R10TURBO | C26: P6 9° Blue | D26: 152 | E26: #65 Gray | F26: 207 | G26: 0.87 | H26: 1.5 | I26: 5.9 | J26: 5mx5m | K26: Upright | L26: Modelled | M26: 30.5 | N26: Single stream rotator | O26: Medium | P26: Gentle < 19 km/hr. Flags flap | Q26: 2 | R26: 2
A27: Philmac | B27: Challenger | C27: Standard? | D27: 182 | E27: Yellow | F27: 150 | G27: 0.87 | H27: 1.3 | I27: 6.7 | J27: 5mx5m | K27: Upright | L27: Modelled | M27: 20 | N27: Fast rotating | O27: Medium | P27: Light < 11km/hr. Wind felt on face | Q27: 2 | R27: 1
A28: Rivulis | B28: Rondo | C28: Black? | D28: 86 | E28: 1.4 Red | F28: 150 | G28: 0.86 | H28: 1.4 | I28: 3.4 | J28: 5mx5m | K28: Upright | L28: Modelled | M28: 20 | N28: Fast rotating | O28: Medium | P28: Light < 11km/hr. Wind felt on face | Q28: 2 | R28: 1
A29: Philmac | B29: Challenger | C29: Standard? | D29: 82 | E29: Green | F29: 150 | G29: 0.86 | H29: 1.2 | I29: 3.6 | J29: 5mx5m | K29: Upright | L29: Modelled | M29: 20 | N29: Fast rotating | O29: Medium | P29: Light < 11km/hr. Wind felt on face | Q29: 2 | R29: 1
A30: Philmac | B30: Challenger | C30: Low angle? | D30: 120 | E30: Blue | F30: 150 | G30: 0.86 | H30: 1.3 | I30: 4.8 | J30: 5mx5m | K30: Upright | L30: Modelled | M30: 20 | N30: Fast rotating | O30: Medium | P30: Light < 11km/hr. Wind felt on face | Q30: 2 | R30: 1
A31: Philmac | B31: StreamMaster | C31: Red flipper | D31: 140 | E31: Blue | F31: 200 | G31: 0.86 | H31: 1.3 | I31: 5.8 | J31: 5mx5m | K31: Upright | L31: Modelled | M31: 20 | N31: Fast rotating | O31: Medium | P31: Light < 11km/hr. Wind felt on face | Q31: 2 | R31: 1
A32: NaanDan | B32: Modular Group | C32: Green swivel | D32: 104 | E32: Green 104 | F32: 200 | G32: 0.85 | H32: 1.5 | I32: 4.2 | J32: 5mx5m | K32: Upright | L32: Modelled | M32: 120 | N32: Fast rotating | O32: Medium | P32: Light < 11km/hr. Wind felt on face | Q32: 2 | R32: 1
A33: Rivulis | B33: Rondo | C33: Black? | D33: 148 | E33: 1.8 Violet | F33: 150 | G33: 0.85 | H33: 1.4 | I33: 5.8 | J33: 5mx5m | K33: Upright | L33: Modelled | M33: 20 | N33: Fast rotating | O33: Medium | P33: Light < 11km/hr. Wind felt on face | Q33: 2 | R33: 1
A34: Rivulis | B34: Rondo Anti-ant | C34: Black? | D34: 148 | E34: 1.8 Violet | F34: 150 | G34: 0.85 | H34: 1.4 | I34: 5.9 | J34: 5mx5m | K34: Upright | L34: Modelled | M34: 20 | N34: Fast rotating | O34: Medium | P34: Light < 11km/hr. Wind felt on face | Q34: 2 | R34: 1
A35: Rivulis | B35: Rondo Anti-ant | C35: Black? | D35: 165 | E35: 2.0 Yellow | F35: 125 | G35: 0.85 | H35: 1.4 | I35: 6.4 | J35: 5mx5m | K35: Upright | L35: Modelled | M35: 20 | N35: Fast rotating | O35: Medium | P35: Light < 11km/hr. Wind felt on face | Q35: 2 | R35: 1
A36: Whilst NGIQ has endeavoured to ensure the accuracy of the data within iSPACE, and in this report, the information provided is based on a “computer modelling program” supported by emitter (sprinkler) data provided by third parties beyond the control of NGIQ. NGIQ accepts no liability for the consequences to personal, property, business or otherwise arising from the application, implementation or use of the information contained in this report.

Sheet Layout
B2: iSPACE Modelled Sprinkler Layout
A3: Manufacturer | B3: Sprinkler | C3: Deflector | D3: Flow rate L/hr | E3: Nozzle size/colour | F3: >=0 <=240 kPa Pressure | G3: =>85% Cu | H3: =<1.5 Sc | I3: >=0 <=15 mm/hr MAR | J3: 3.5mx3.5m Approximate spacing | K3: Upright Position | L3: Scenario | M3: Sprinkler height cm. Note: Uniformity will be reduced if installed height is less than this height | N3: Sprinkler stream type | O3: Droplet Size (Plant size Medium. Foliage density Medium) | P3: Light < 11km/hr. Wind felt on face Approximate wind tolerance
A4: Philmac | B4: Challenger | C4: Standard? | D4: 68 | E4: Maroon | F4: 150 | G4: 0.9 | H4: 1.3 | I4: 4.1 | J4: 4mx4m | K4: Upright | L4: Modelled | M4: 20 | N4: Fast rotating | O4: Medium | P4: Light < 11km/hr. Wind felt on face | Q4: 2 | R4: 1
B5: Sprinkler specifications | I5: Layout specifications | P5: Modelled system performance | T5: Other information
B8: Manufacturer | E8: =A4 -> Philmac | I8: Position | L8: =K4 -> Upright | P8: MAR | Q8: =I4 -> 4.1 | T8: Scenario | V8: =L4 -> Modelled
B10: Sprinkler & deflector | E10: =CONCATENATE(B4," sprinkler."," Deflector ",C4,) -> Challenger sprinkler. Deflector Standard? | I10: Spacing | L10: =CONCATENATE(LEFT(Input!B16,4)," m between laterals. ",LEFT(Input!B17,4)," m along laterals. A total of ",Input!D18," sprinklers required.") -> m between laterals. m along laterals. A total of 0 sprinklers required. | P10: CU | Q10: =G4 -> 0.9 | T10: Sprinkler stream type | V10: =N4 -> Fast rotating
P12: SC | Q12: =H4 -> 1.3 | T12: Droplet Size | V12: =O4 -> Medium
B13: Nozzle size or colour | E13: =E4 -> Maroon
I14: Required flow rate to zone L/hr | L14: =E17*Input!D18 -> 0 | T14: Approximate maximum wind tolerance | V14: =P4 -> Light < 11km/hr. Wind felt on face
B15: Pressure kPa | E15: =F4 -> 150
I16: Available flow rate to zone L/hr | L16: =Input!B19 -> Please input the maximum flow rate to the growing area in L/hr
B17: Sprinkler flow rate L/hr | E17: =D4 -> 68
I18: Minimum sprinkler height cm. Lower heights than this will reduce uniformity. Be aware of stream height in covered areas. | L18: =M4 -> 20
D25: =CONCATENATE("Width of irrigation zone ",Input!B12," m. Lateral spacing ",LEFT(Input!B16,4)," m between laterals") -> Width of irrigation zone Please input the width of the growing area in metres m. Lateral spacing m between laterals
C26: Along lateral> Between Lateral˅ | D26: 1 | E26: 2 | F26: 3 | G26: 4 | H26: 5 | I26: 6 | J26: 7 | K26: 8 | L26: 9 | M26: 10 | N26: 11 | O26: 12 | P26: 13 | Q26: 14 | R26: 15 | S26: 16 | T26: 17 | U26: 18 | V26: 19 | W26: 20
B27: =CONCATENATE("Length of irrigation zone ",Input!B13," m. Emitter spacing along lateral ",LEFT(Input!B17,4)," m between emitters") -> Length of irrigation zone Please input the length of the growing area in metres m. Emitter spacing along lateral m between emitters | C27: 1 | D27: =IF(AND(D$26<Input!$D$16,Layout!$C27<Input!$D$17),1,"") ->  | E27: =IF(AND(E$26<Input!$D$16,Layout!$C27<Input!$D$17),1,"") ->  | F27: =IF(AND(F$26<Input!$D$16,Layout!$C27<Input!$D$17),1,"") ->  | G27: =IF(AND(G$26<Input!$D$16,Layout!$C27<Input!$D$17),1,"") ->  | H27: =IF(AND(H$26<Input!$D$16,Layout!$C27<Input!$D$17),1,"") ->  | I27: =IF(AND(I$26<Input!$D$16,Layout!$C27<Input!$D$17),1,"") ->  | J27: =IF(AND(J$26<Input!$D$16,Layout!$C27<Input!$D$17),1,"") ->  | K27: =IF(AND(K$26<Input!$D$16,Layout!$C27<Input!$D$17),1,"") ->  | L27: =IF(AND(L$26<Input!$D$16,Layout!$C27<Input!$D$17),1,"") ->  | M27: =IF(AND(M$26<Input!$D$16,Layout!$C27<Input!$D$17),1,"") ->  | N27: =IF(AND(N$26<Input!$D$16,Layout!$C27<Input!$D$17),1,"") ->  | O27: =IF(AND(O$26<Input!$D$16,Layout!$C27<Input!$D$17),1,"") ->  | P27: =IF(AND(P$26<Input!$D$16,Layout!$C27<Input!$D$17),1,"") ->  | Q27: =IF(AND(Q$26<Input!$D$16,Layout!$C27<Input!$D$17),1,"") ->  | R27: =IF(AND(R$26<Input!$D$16,Layout!$C27<Input!$D$17),1,"") ->  | S27: =IF(AND(S$26<Input!$D$16,Layout!$C27<Input!$D$17),1,"") ->  | T27: =IF(AND(T$26<Input!$D$16,Layout!$C27<Input!$D$17),1,"") ->  | U27: =IF(AND(U$26<Input!$D$16,Layout!$C27<Input!$D$17),1,"") ->  | V27: =IF(AND(V$26<Input!$D$16,Layout!$C27<Input!$D$17),1,"") ->  | W27: =IF(AND(W$26<Input!$D$16,Layout!$C27<Input!$D$17),1,"") -> 
C28: 2 | D28: =IF(AND(D$26<Input!$D$16,Layout!$C28<Input!$D$17),1,"") ->  | E28: =IF(AND(E$26<Input!$D$16,Layout!$C28<Input!$D$17),1,"") ->  | F28: =IF(AND(F$26<Input!$D$16,Layout!$C28<Input!$D$17),1,"") ->  | G28: =IF(AND(G$26<Input!$D$16,Layout!$C28<Input!$D$17),1,"") ->  | H28: =IF(AND(H$26<Input!$D$16,Layout!$C28<Input!$D$17),1,"") ->  | I28: =IF(AND(I$26<Input!$D$16,Layout!$C28<Input!$D$17),1,"") ->  | J28: =IF(AND(J$26<Input!$D$16,Layout!$C28<Input!$D$17),1,"") ->  | K28: =IF(AND(K$26<Input!$D$16,Layout!$C28<Input!$D$17),1,"") ->  | L28: =IF(AND(L$26<Input!$D$16,Layout!$C28<Input!$D$17),1,"") ->  | M28: =IF(AND(M$26<Input!$D$16,Layout!$C28<Input!$D$17),1,"") ->  | N28: =IF(AND(N$26<Input!$D$16,Layout!$C28<Input!$D$17),1,"") ->  | O28: =IF(AND(O$26<Input!$D$16,Layout!$C28<Input!$D$17),1,"") ->  | P28: =IF(AND(P$26<Input!$D$16,Layout!$C28<Input!$D$17),1,"") ->  | Q28: =IF(AND(Q$26<Input!$D$16,Layout!$C28<Input!$D$17),1,"") ->  | R28: =IF(AND(R$26<Input!$D$16,Layout!$C28<Input!$D$17),1,"") ->  | S28: =IF(AND(S$26<Input!$D$16,Layout!$C28<Input!$D$17),1,"") ->  | T28: =IF(AND(T$26<Input!$D$16,Layout!$C28<Input!$D$17),1,"") ->  | U28: =IF(AND(U$26<Input!$D$16,Layout!$C28<Input!$D$17),1,"") ->  | V28: =IF(AND(V$26<Input!$D$16,Layout!$C28<Input!$D$17),1,"") ->  | W28: =IF(AND(W$26<Input!$D$16,Layout!$C28<Input!$D$17),1,"") -> 
C29: 3 | D29: =IF(AND(D$26<Input!$D$16,Layout!$C29<Input!$D$17),1,"") ->  | E29: =IF(AND(E$26<Input!$D$16,Layout!$C29<Input!$D$17),1,"") ->  | F29: =IF(AND(F$26<Input!$D$16,Layout!$C29<Input!$D$17),1,"") ->  | G29: =IF(AND(G$26<Input!$D$16,Layout!$C29<Input!$D$17),1,"") ->  | H29: =IF(AND(H$26<Input!$D$16,Layout!$C29<Input!$D$17),1,"") ->  | I29: =IF(AND(I$26<Input!$D$16,Layout!$C29<Input!$D$17),1,"") ->  | J29: =IF(AND(J$26<Input!$D$16,Layout!$C29<Input!$D$17),1,"") ->  | K29: =IF(AND(K$26<Input!$D$16,Layout!$C29<Input!$D$17),1,"") ->  | L29: =IF(AND(L$26<Input!$D$16,Layout!$C29<Input!$D$17),1,"") ->  | M29: =IF(AND(M$26<Input!$D$16,Layout!$C29<Input!$D$17),1,"") ->  | N29: =IF(AND(N$26<Input!$D$16,Layout!$C29<Input!$D$17),1,"") ->  | O29: =IF(AND(O$26<Input!$D$16,Layout!$C29<Input!$D$17),1,"") ->  | P29: =IF(AND(P$26<Input!$D$16,Layout!$C29<Input!$D$17),1,"") ->  | Q29: =IF(AND(Q$26<Input!$D$16,Layout!$C29<Input!$D$17),1,"") ->  | R29: =IF(AND(R$26<Input!$D$16,Layout!$C29<Input!$D$17),1,"") ->  | S29: =IF(AND(S$26<Input!$D$16,Layout!$C29<Input!$D$17),1,"") ->  | T29: =IF(AND(T$26<Input!$D$16,Layout!$C29<Input!$D$17),1,"") ->  | U29: =IF(AND(U$26<Input!$D$16,Layout!$C29<Input!$D$17),1,"") ->  | V29: =IF(AND(V$26<Input!$D$16,Layout!$C29<Input!$D$17),1,"") ->  | W29: =IF(AND(W$26<Input!$D$16,Layout!$C29<Input!$D$17),1,"") -> 
C30: 4 | D30: =IF(AND(D$26<Input!$D$16,Layout!$C30<Input!$D$17),1,"") ->  | E30: =IF(AND(E$26<Input!$D$16,Layout!$C30<Input!$D$17),1,"") ->  | F30: =IF(AND(F$26<Input!$D$16,Layout!$C30<Input!$D$17),1,"") ->  | G30: =IF(AND(G$26<Input!$D$16,Layout!$C30<Input!$D$17),1,"") ->  | H30: =IF(AND(H$26<Input!$D$16,Layout!$C30<Input!$D$17),1,"") ->  | I30: =IF(AND(I$26<Input!$D$16,Layout!$C30<Input!$D$17),1,"") ->  | J30: =IF(AND(J$26<Input!$D$16,Layout!$C30<Input!$D$17),1,"") ->  | K30: =IF(AND(K$26<Input!$D$16,Layout!$C30<Input!$D$17),1,"") ->  | L30: =IF(AND(L$26<Input!$D$16,Layout!$C30<Input!$D$17),1,"") ->  | M30: =IF(AND(M$26<Input!$D$16,Layout!$C30<Input!$D$17),1,"") ->  | N30: =IF(AND(N$26<Input!$D$16,Layout!$C30<Input!$D$17),1,"") ->  | O30: =IF(AND(O$26<Input!$D$16,Layout!$C30<Input!$D$17),1,"") ->  | P30: =IF(AND(P$26<Input!$D$16,Layout!$C30<Input!$D$17),1,"") ->  | Q30: =IF(AND(Q$26<Input!$D$16,Layout!$C30<Input!$D$17),1,"") ->  | R30: =IF(AND(R$26<Input!$D$16,Layout!$C30<Input!$D$17),1,"") ->  | S30: =IF(AND(S$26<Input!$D$16,Layout!$C30<Input!$D$17),1,"") ->  | T30: =IF(AND(T$26<Input!$D$16,Layout!$C30<Input!$D$17),1,"") ->  | U30: =IF(AND(U$26<Input!$D$16,Layout!$C30<Input!$D$17),1,"") ->  | V30: =IF(AND(V$26<Input!$D$16,Layout!$C30<Input!$D$17),1,"") ->  | W30: =IF(AND(W$26<Input!$D$16,Layout!$C30<Input!$D$17),1,"") -> 
C31: 5 | D31: =IF(AND(D$26<Input!$D$16,Layout!$C31<Input!$D$17),1,"") ->  | E31: =IF(AND(E$26<Input!$D$16,Layout!$C31<Input!$D$17),1,"") ->  | F31: =IF(AND(F$26<Input!$D$16,Layout!$C31<Input!$D$17),1,"") ->  | G31: =IF(AND(G$26<Input!$D$16,Layout!$C31<Input!$D$17),1,"") ->  | H31: =IF(AND(H$26<Input!$D$16,Layout!$C31<Input!$D$17),1,"") ->  | I31: =IF(AND(I$26<Input!$D$16,Layout!$C31<Input!$D$17),1,"") ->  | J31: =IF(AND(J$26<Input!$D$16,Layout!$C31<Input!$D$17),1,"") ->  | K31: =IF(AND(K$26<Input!$D$16,Layout!$C31<Input!$D$17),1,"") ->  | L31: =IF(AND(L$26<Input!$D$16,Layout!$C31<Input!$D$17),1,"") ->  | M31: =IF(AND(M$26<Input!$D$16,Layout!$C31<Input!$D$17),1,"") ->  | N31: =IF(AND(N$26<Input!$D$16,Layout!$C31<Input!$D$17),1,"") ->  | O31: =IF(AND(O$26<Input!$D$16,Layout!$C31<Input!$D$17),1,"") ->  | P31: =IF(AND(P$26<Input!$D$16,Layout!$C31<Input!$D$17),1,"") ->  | Q31: =IF(AND(Q$26<Input!$D$16,Layout!$C31<Input!$D$17),1,"") ->  | R31: =IF(AND(R$26<Input!$D$16,Layout!$C31<Input!$D$17),1,"") ->  | S31: =IF(AND(S$26<Input!$D$16,Layout!$C31<Input!$D$17),1,"") ->  | T31: =IF(AND(T$26<Input!$D$16,Layout!$C31<Input!$D$17),1,"") ->  | U31: =IF(AND(U$26<Input!$D$16,Layout!$C31<Input!$D$17),1,"") ->  | V31: =IF(AND(V$26<Input!$D$16,Layout!$C31<Input!$D$17),1,"") ->  | W31: =IF(AND(W$26<Input!$D$16,Layout!$C31<Input!$D$17),1,"") -> 
C32: 6 | D32: =IF(AND(D$26<Input!$D$16,Layout!$C32<Input!$D$17),1,"") ->  | E32: =IF(AND(E$26<Input!$D$16,Layout!$C32<Input!$D$17),1,"") ->  | F32: =IF(AND(F$26<Input!$D$16,Layout!$C32<Input!$D$17),1,"") ->  | G32: =IF(AND(G$26<Input!$D$16,Layout!$C32<Input!$D$17),1,"") ->  | H32: =IF(AND(H$26<Input!$D$16,Layout!$C32<Input!$D$17),1,"") ->  | I32: =IF(AND(I$26<Input!$D$16,Layout!$C32<Input!$D$17),1,"") ->  | J32: =IF(AND(J$26<Input!$D$16,Layout!$C32<Input!$D$17),1,"") ->  | K32: =IF(AND(K$26<Input!$D$16,Layout!$C32<Input!$D$17),1,"") ->  | L32: =IF(AND(L$26<Input!$D$16,Layout!$C32<Input!$D$17),1,"") ->  | M32: =IF(AND(M$26<Input!$D$16,Layout!$C32<Input!$D$17),1,"") ->  | N32: =IF(AND(N$26<Input!$D$16,Layout!$C32<Input!$D$17),1,"") ->  | O32: =IF(AND(O$26<Input!$D$16,Layout!$C32<Input!$D$17),1,"") ->  | P32: =IF(AND(P$26<Input!$D$16,Layout!$C32<Input!$D$17),1,"") ->  | Q32: =IF(AND(Q$26<Input!$D$16,Layout!$C32<Input!$D$17),1,"") ->  | R32: =IF(AND(R$26<Input!$D$16,Layout!$C32<Input!$D$17),1,"") ->  | S32: =IF(AND(S$26<Input!$D$16,Layout!$C32<Input!$D$17),1,"") ->  | T32: =IF(AND(T$26<Input!$D$16,Layout!$C32<Input!$D$17),1,"") ->  | U32: =IF(AND(U$26<Input!$D$16,Layout!$C32<Input!$D$17),1,"") ->  | V32: =IF(AND(V$26<Input!$D$16,Layout!$C32<Input!$D$17),1,"") ->  | W32: =IF(AND(W$26<Input!$D$16,Layout!$C32<Input!$D$17),1,"") -> 
C33: 7 | D33: =IF(AND(D$26<Input!$D$16,Layout!$C33<Input!$D$17),1,"") ->  | E33: =IF(AND(E$26<Input!$D$16,Layout!$C33<Input!$D$17),1,"") ->  | F33: =IF(AND(F$26<Input!$D$16,Layout!$C33<Input!$D$17),1,"") ->  | G33: =IF(AND(G$26<Input!$D$16,Layout!$C33<Input!$D$17),1,"") ->  | H33: =IF(AND(H$26<Input!$D$16,Layout!$C33<Input!$D$17),1,"") ->  | I33: =IF(AND(I$26<Input!$D$16,Layout!$C33<Input!$D$17),1,"") ->  | J33: =IF(AND(J$26<Input!$D$16,Layout!$C33<Input!$D$17),1,"") ->  | K33: =IF(AND(K$26<Input!$D$16,Layout!$C33<Input!$D$17),1,"") ->  | L33: =IF(AND(L$26<Input!$D$16,Layout!$C33<Input!$D$17),1,"") ->  | M33: =IF(AND(M$26<Input!$D$16,Layout!$C33<Input!$D$17),1,"") ->  | N33: =IF(AND(N$26<Input!$D$16,Layout!$C33<Input!$D$17),1,"") ->  | O33: =IF(AND(O$26<Input!$D$16,Layout!$C33<Input!$D$17),1,"") ->  | P33: =IF(AND(P$26<Input!$D$16,Layout!$C33<Input!$D$17),1,"") ->  | Q33: =IF(AND(Q$26<Input!$D$16,Layout!$C33<Input!$D$17),1,"") ->  | R33: =IF(AND(R$26<Input!$D$16,Layout!$C33<Input!$D$17),1,"") ->  | S33: =IF(AND(S$26<Input!$D$16,Layout!$C33<Input!$D$17),1,"") ->  | T33: =IF(AND(T$26<Input!$D$16,Layout!$C33<Input!$D$17),1,"") ->  | U33: =IF(AND(U$26<Input!$D$16,Layout!$C33<Input!$D$17),1,"") ->  | V33: =IF(AND(V$26<Input!$D$16,Layout!$C33<Input!$D$17),1,"") ->  | W33: =IF(AND(W$26<Input!$D$16,Layout!$C33<Input!$D$17),1,"") -> 
C34: 8 | D34: =IF(AND(D$26<Input!$D$16,Layout!$C34<Input!$D$17),1,"") ->  | E34: =IF(AND(E$26<Input!$D$16,Layout!$C34<Input!$D$17),1,"") ->  | F34: =IF(AND(F$26<Input!$D$16,Layout!$C34<Input!$D$17),1,"") ->  | G34: =IF(AND(G$26<Input!$D$16,Layout!$C34<Input!$D$17),1,"") ->  | H34: =IF(AND(H$26<Input!$D$16,Layout!$C34<Input!$D$17),1,"") ->  | I34: =IF(AND(I$26<Input!$D$16,Layout!$C34<Input!$D$17),1,"") ->  | J34: =IF(AND(J$26<Input!$D$16,Layout!$C34<Input!$D$17),1,"") ->  | K34: =IF(AND(K$26<Input!$D$16,Layout!$C34<Input!$D$17),1,"") ->  | L34: =IF(AND(L$26<Input!$D$16,Layout!$C34<Input!$D$17),1,"") ->  | M34: =IF(AND(M$26<Input!$D$16,Layout!$C34<Input!$D$17),1,"") ->  | N34: =IF(AND(N$26<Input!$D$16,Layout!$C34<Input!$D$17),1,"") ->  | O34: =IF(AND(O$26<Input!$D$16,Layout!$C34<Input!$D$17),1,"") ->  | P34: =IF(AND(P$26<Input!$D$16,Layout!$C34<Input!$D$17),1,"") ->  | Q34: =IF(AND(Q$26<Input!$D$16,Layout!$C34<Input!$D$17),1,"") ->  | R34: =IF(AND(R$26<Input!$D$16,Layout!$C34<Input!$D$17),1,"") ->  | S34: =IF(AND(S$26<Input!$D$16,Layout!$C34<Input!$D$17),1,"") ->  | T34: =IF(AND(T$26<Input!$D$16,Layout!$C34<Input!$D$17),1,"") ->  | U34: =IF(AND(U$26<Input!$D$16,Layout!$C34<Input!$D$17),1,"") ->  | V34: =IF(AND(V$26<Input!$D$16,Layout!$C34<Input!$D$17),1,"") ->  | W34: =IF(AND(W$26<Input!$D$16,Layout!$C34<Input!$D$17),1,"") -> 
C35: 9 | D35: =IF(AND(D$26<Input!$D$16,Layout!$C35<Input!$D$17),1,"") ->  | E35: =IF(AND(E$26<Input!$D$16,Layout!$C35<Input!$D$17),1,"") ->  | F35: =IF(AND(F$26<Input!$D$16,Layout!$C35<Input!$D$17),1,"") ->  | G35: =IF(AND(G$26<Input!$D$16,Layout!$C35<Input!$D$17),1,"") ->  | H35: =IF(AND(H$26<Input!$D$16,Layout!$C35<Input!$D$17),1,"") ->  | I35: =IF(AND(I$26<Input!$D$16,Layout!$C35<Input!$D$17),1,"") ->  | J35: =IF(AND(J$26<Input!$D$16,Layout!$C35<Input!$D$17),1,"") ->  | K35: =IF(AND(K$26<Input!$D$16,Layout!$C35<Input!$D$17),1,"") ->  | L35: =IF(AND(L$26<Input!$D$16,Layout!$C35<Input!$D$17),1,"") ->  | M35: =IF(AND(M$26<Input!$D$16,Layout!$C35<Input!$D$17),1,"") ->  | N35: =IF(AND(N$26<Input!$D$16,Layout!$C35<Input!$D$17),1,"") ->  | O35: =IF(AND(O$26<Input!$D$16,Layout!$C35<Input!$D$17),1,"") ->  | P35: =IF(AND(P$26<Input!$D$16,Layout!$C35<Input!$D$17),1,"") ->  | Q35: =IF(AND(Q$26<Input!$D$16,Layout!$C35<Input!$D$17),1,"") ->  | R35: =IF(AND(R$26<Input!$D$16,Layout!$C35<Input!$D$17),1,"") ->  | S35: =IF(AND(S$26<Input!$D$16,Layout!$C35<Input!$D$17),1,"") ->  | T35: =IF(AND(T$26<Input!$D$16,Layout!$C35<Input!$D$17),1,"") ->  | U35: =IF(AND(U$26<Input!$D$16,Layout!$C35<Input!$D$17),1,"") ->  | V35: =IF(AND(V$26<Input!$D$16,Layout!$C35<Input!$D$17),1,"") ->  | W35: =IF(AND(W$26<Input!$D$16,Layout!$C35<Input!$D$17),1,"") -> 
C36: 10 | D36: =IF(AND(D$26<Input!$D$16,Layout!$C36<Input!$D$17),1,"") ->  | E36: =IF(AND(E$26<Input!$D$16,Layout!$C36<Input!$D$17),1,"") ->  | F36: =IF(AND(F$26<Input!$D$16,Layout!$C36<Input!$D$17),1,"") ->  | G36: =IF(AND(G$26<Input!$D$16,Layout!$C36<Input!$D$17),1,"") ->  | H36: =IF(AND(H$26<Input!$D$16,Layout!$C36<Input!$D$17),1,"") ->  | I36: =IF(AND(I$26<Input!$D$16,Layout!$C36<Input!$D$17),1,"") ->  | J36: =IF(AND(J$26<Input!$D$16,Layout!$C36<Input!$D$17),1,"") ->  | K36: =IF(AND(K$26<Input!$D$16,Layout!$C36<Input!$D$17),1,"") ->  | L36: =IF(AND(L$26<Input!$D$16,Layout!$C36<Input!$D$17),1,"") ->  | M36: =IF(AND(M$26<Input!$D$16,Layout!$C36<Input!$D$17),1,"") ->  | N36: =IF(AND(N$26<Input!$D$16,Layout!$C36<Input!$D$17),1,"") ->  | O36: =IF(AND(O$26<Input!$D$16,Layout!$C36<Input!$D$17),1,"") ->  | P36: =IF(AND(P$26<Input!$D$16,Layout!$C36<Input!$D$17),1,"") ->  | Q36: =IF(AND(Q$26<Input!$D$16,Layout!$C36<Input!$D$17),1,"") ->  | R36: =IF(AND(R$26<Input!$D$16,Layout!$C36<Input!$D$17),1,"") ->  | S36: =IF(AND(S$26<Input!$D$16,Layout!$C36<Input!$D$17),1,"") ->  | T36: =IF(AND(T$26<Input!$D$16,Layout!$C36<Input!$D$17),1,"") ->  | U36: =IF(AND(U$26<Input!$D$16,Layout!$C36<Input!$D$17),1,"") ->  | V36: =IF(AND(V$26<Input!$D$16,Layout!$C36<Input!$D$17),1,"") ->  | W36: =IF(AND(W$26<Input!$D$16,Layout!$C36<Input!$D$17),1,"") -> 
C37: 11 | D37: =IF(AND(D$26<Input!$D$16,Layout!$C37<Input!$D$17),1,"") ->  | E37: =IF(AND(E$26<Input!$D$16,Layout!$C37<Input!$D$17),1,"") ->  | F37: =IF(AND(F$26<Input!$D$16,Layout!$C37<Input!$D$17),1,"") ->  | G37: =IF(AND(G$26<Input!$D$16,Layout!$C37<Input!$D$17),1,"") ->  | H37: =IF(AND(H$26<Input!$D$16,Layout!$C37<Input!$D$17),1,"") ->  | I37: =IF(AND(I$26<Input!$D$16,Layout!$C37<Input!$D$17),1,"") ->  | J37: =IF(AND(J$26<Input!$D$16,Layout!$C37<Input!$D$17),1,"") ->  | K37: =IF(AND(K$26<Input!$D$16,Layout!$C37<Input!$D$17),1,"") ->  | L37: =IF(AND(L$26<Input!$D$16,Layout!$C37<Input!$D$17),1,"") ->  | M37: =IF(AND(M$26<Input!$D$16,Layout!$C37<Input!$D$17),1,"") ->  | N37: =IF(AND(N$26<Input!$D$16,Layout!$C37<Input!$D$17),1,"") ->  | O37: =IF(AND(O$26<Input!$D$16,Layout!$C37<Input!$D$17),1,"") ->  | P37: =IF(AND(P$26<Input!$D$16,Layout!$C37<Input!$D$17),1,"") ->  | Q37: =IF(AND(Q$26<Input!$D$16,Layout!$C37<Input!$D$17),1,"") ->  | R37: =IF(AND(R$26<Input!$D$16,Layout!$C37<Input!$D$17),1,"") ->  | S37: =IF(AND(S$26<Input!$D$16,Layout!$C37<Input!$D$17),1,"") ->  | T37: =IF(AND(T$26<Input!$D$16,Layout!$C37<Input!$D$17),1,"") ->  | U37: =IF(AND(U$26<Input!$D$16,Layout!$C37<Input!$D$17),1,"") ->  | V37: =IF(AND(V$26<Input!$D$16,Layout!$C37<Input!$D$17),1,"") ->  | W37: =IF(AND(W$26<Input!$D$16,Layout!$C37<Input!$D$17),1,"") -> 
C38: 12 | D38: =IF(AND(D$26<Input!$D$16,Layout!$C38<Input!$D$17),1,"") ->  | E38: =IF(AND(E$26<Input!$D$16,Layout!$C38<Input!$D$17),1,"") ->  | F38: =IF(AND(F$26<Input!$D$16,Layout!$C38<Input!$D$17),1,"") ->  | G38: =IF(AND(G$26<Input!$D$16,Layout!$C38<Input!$D$17),1,"") ->  | H38: =IF(AND(H$26<Input!$D$16,Layout!$C38<Input!$D$17),1,"") ->  | I38: =IF(AND(I$26<Input!$D$16,Layout!$C38<Input!$D$17),1,"") ->  | J38: =IF(AND(J$26<Input!$D$16,Layout!$C38<Input!$D$17),1,"") ->  | K38: =IF(AND(K$26<Input!$D$16,Layout!$C38<Input!$D$17),1,"") ->  | L38: =IF(AND(L$26<Input!$D$16,Layout!$C38<Input!$D$17),1,"") ->  | M38: =IF(AND(M$26<Input!$D$16,Layout!$C38<Input!$D$17),1,"") ->  | N38: =IF(AND(N$26<Input!$D$16,Layout!$C38<Input!$D$17),1,"") ->  | O38: =IF(AND(O$26<Input!$D$16,Layout!$C38<Input!$D$17),1,"") ->  | P38: =IF(AND(P$26<Input!$D$16,Layout!$C38<Input!$D$17),1,"") ->  | Q38: =IF(AND(Q$26<Input!$D$16,Layout!$C38<Input!$D$17),1,"") ->  | R38: =IF(AND(R$26<Input!$D$16,Layout!$C38<Input!$D$17),1,"") ->  | S38: =IF(AND(S$26<Input!$D$16,Layout!$C38<Input!$D$17),1,"") ->  | T38: =IF(AND(T$26<Input!$D$16,Layout!$C38<Input!$D$17),1,"") ->  | U38: =IF(AND(U$26<Input!$D$16,Layout!$C38<Input!$D$17),1,"") ->  | V38: =IF(AND(V$26<Input!$D$16,Layout!$C38<Input!$D$17),1,"") ->  | W38: =IF(AND(W$26<Input!$D$16,Layout!$C38<Input!$D$17),1,"") -> 
C39: 13 | D39: =IF(AND(D$26<Input!$D$16,Layout!$C39<Input!$D$17),1,"") ->  | E39: =IF(AND(E$26<Input!$D$16,Layout!$C39<Input!$D$17),1,"") ->  | F39: =IF(AND(F$26<Input!$D$16,Layout!$C39<Input!$D$17),1,"") ->  | G39: =IF(AND(G$26<Input!$D$16,Layout!$C39<Input!$D$17),1,"") ->  | H39: =IF(AND(H$26<Input!$D$16,Layout!$C39<Input!$D$17),1,"") ->  | I39: =IF(AND(I$26<Input!$D$16,Layout!$C39<Input!$D$17),1,"") ->  | J39: =IF(AND(J$26<Input!$D$16,Layout!$C39<Input!$D$17),1,"") ->  | K39: =IF(AND(K$26<Input!$D$16,Layout!$C39<Input!$D$17),1,"") ->  | L39: =IF(AND(L$26<Input!$D$16,Layout!$C39<Input!$D$17),1,"") ->  | M39: =IF(AND(M$26<Input!$D$16,Layout!$C39<Input!$D$17),1,"") ->  | N39: =IF(AND(N$26<Input!$D$16,Layout!$C39<Input!$D$17),1,"") ->  | O39: =IF(AND(O$26<Input!$D$16,Layout!$C39<Input!$D$17),1,"") ->  | P39: =IF(AND(P$26<Input!$D$16,Layout!$C39<Input!$D$17),1,"") ->  | Q39: =IF(AND(Q$26<Input!$D$16,Layout!$C39<Input!$D$17),1,"") ->  | R39: =IF(AND(R$26<Input!$D$16,Layout!$C39<Input!$D$17),1,"") ->  | S39: =IF(AND(S$26<Input!$D$16,Layout!$C39<Input!$D$17),1,"") ->  | T39: =IF(AND(T$26<Input!$D$16,Layout!$C39<Input!$D$17),1,"") ->  | U39: =IF(AND(U$26<Input!$D$16,Layout!$C39<Input!$D$17),1,"") ->  | V39: =IF(AND(V$26<Input!$D$16,Layout!$C39<Input!$D$17),1,"") ->  | W39: =IF(AND(W$26<Input!$D$16,Layout!$C39<Input!$D$17),1,"") -> 
C40: 14 | D40: =IF(AND(D$26<Input!$D$16,Layout!$C40<Input!$D$17),1,"") ->  | E40: =IF(AND(E$26<Input!$D$16,Layout!$C40<Input!$D$17),1,"") ->  | F40: =IF(AND(F$26<Input!$D$16,Layout!$C40<Input!$D$17),1,"") ->  | G40: =IF(AND(G$26<Input!$D$16,Layout!$C40<Input!$D$17),1,"") ->  | H40: =IF(AND(H$26<Input!$D$16,Layout!$C40<Input!$D$17),1,"") ->  | I40: =IF(AND(I$26<Input!$D$16,Layout!$C40<Input!$D$17),1,"") ->  | J40: =IF(AND(J$26<Input!$D$16,Layout!$C40<Input!$D$17),1,"") ->  | K40: =IF(AND(K$26<Input!$D$16,Layout!$C40<Input!$D$17),1,"") ->  | L40: =IF(AND(L$26<Input!$D$16,Layout!$C40<Input!$D$17),1,"") ->  | M40: =IF(AND(M$26<Input!$D$16,Layout!$C40<Input!$D$17),1,"") ->  | N40: =IF(AND(N$26<Input!$D$16,Layout!$C40<Input!$D$17),1,"") ->  | O40: =IF(AND(O$26<Input!$D$16,Layout!$C40<Input!$D$17),1,"") ->  | P40: =IF(AND(P$26<Input!$D$16,Layout!$C40<Input!$D$17),1,"") ->  | Q40: =IF(AND(Q$26<Input!$D$16,Layout!$C40<Input!$D$17),1,"") ->  | R40: =IF(AND(R$26<Input!$D$16,Layout!$C40<Input!$D$17),1,"") ->  | S40: =IF(AND(S$26<Input!$D$16,Layout!$C40<Input!$D$17),1,"") ->  | T40: =IF(AND(T$26<Input!$D$16,Layout!$C40<Input!$D$17),1,"") ->  | U40: =IF(AND(U$26<Input!$D$16,Layout!$C40<Input!$D$17),1,"") ->  | V40: =IF(AND(V$26<Input!$D$16,Layout!$C40<Input!$D$17),1,"") ->  | W40: =IF(AND(W$26<Input!$D$16,Layout!$C40<Input!$D$17),1,"") -> 
C41: 15 | D41: =IF(AND(D$26<Input!$D$16,Layout!$C41<Input!$D$17),1,"") ->  | E41: =IF(AND(E$26<Input!$D$16,Layout!$C41<Input!$D$17),1,"") ->  | F41: =IF(AND(F$26<Input!$D$16,Layout!$C41<Input!$D$17),1,"") ->  | G41: =IF(AND(G$26<Input!$D$16,Layout!$C41<Input!$D$17),1,"") ->  | H41: =IF(AND(H$26<Input!$D$16,Layout!$C41<Input!$D$17),1,"") ->  | I41: =IF(AND(I$26<Input!$D$16,Layout!$C41<Input!$D$17),1,"") ->  | J41: =IF(AND(J$26<Input!$D$16,Layout!$C41<Input!$D$17),1,"") ->  | K41: =IF(AND(K$26<Input!$D$16,Layout!$C41<Input!$D$17),1,"") ->  | L41: =IF(AND(L$26<Input!$D$16,Layout!$C41<Input!$D$17),1,"") ->  | M41: =IF(AND(M$26<Input!$D$16,Layout!$C41<Input!$D$17),1,"") ->  | N41: =IF(AND(N$26<Input!$D$16,Layout!$C41<Input!$D$17),1,"") ->  | O41: =IF(AND(O$26<Input!$D$16,Layout!$C41<Input!$D$17),1,"") ->  | P41: =IF(AND(P$26<Input!$D$16,Layout!$C41<Input!$D$17),1,"") ->  | Q41: =IF(AND(Q$26<Input!$D$16,Layout!$C41<Input!$D$17),1,"") ->  | R41: =IF(AND(R$26<Input!$D$16,Layout!$C41<Input!$D$17),1,"") ->  | S41: =IF(AND(S$26<Input!$D$16,Layout!$C41<Input!$D$17),1,"") ->  | T41: =IF(AND(T$26<Input!$D$16,Layout!$C41<Input!$D$17),1,"") ->  | U41: =IF(AND(U$26<Input!$D$16,Layout!$C41<Input!$D$17),1,"") ->  | V41: =IF(AND(V$26<Input!$D$16,Layout!$C41<Input!$D$17),1,"") ->  | W41: =IF(AND(W$26<Input!$D$16,Layout!$C41<Input!$D$17),1,"") -> 
C42: 16 | D42: =IF(AND(D$26<Input!$D$16,Layout!$C42<Input!$D$17),1,"") ->  | E42: =IF(AND(E$26<Input!$D$16,Layout!$C42<Input!$D$17),1,"") ->  | F42: =IF(AND(F$26<Input!$D$16,Layout!$C42<Input!$D$17),1,"") ->  | G42: =IF(AND(G$26<Input!$D$16,Layout!$C42<Input!$D$17),1,"") ->  | H42: =IF(AND(H$26<Input!$D$16,Layout!$C42<Input!$D$17),1,"") ->  | I42: =IF(AND(I$26<Input!$D$16,Layout!$C42<Input!$D$17),1,"") ->  | J42: =IF(AND(J$26<Input!$D$16,Layout!$C42<Input!$D$17),1,"") ->  | K42: =IF(AND(K$26<Input!$D$16,Layout!$C42<Input!$D$17),1,"") ->  | L42: =IF(AND(L$26<Input!$D$16,Layout!$C42<Input!$D$17),1,"") ->  | M42: =IF(AND(M$26<Input!$D$16,Layout!$C42<Input!$D$17),1,"") ->  | N42: =IF(AND(N$26<Input!$D$16,Layout!$C42<Input!$D$17),1,"") ->  | O42: =IF(AND(O$26<Input!$D$16,Layout!$C42<Input!$D$17),1,"") ->  | P42: =IF(AND(P$26<Input!$D$16,Layout!$C42<Input!$D$17),1,"") ->  | Q42: =IF(AND(Q$26<Input!$D$16,Layout!$C42<Input!$D$17),1,"") ->  | R42: =IF(AND(R$26<Input!$D$16,Layout!$C42<Input!$D$17),1,"") ->  | S42: =IF(AND(S$26<Input!$D$16,Layout!$C42<Input!$D$17),1,"") ->  | T42: =IF(AND(T$26<Input!$D$16,Layout!$C42<Input!$D$17),1,"") ->  | U42: =IF(AND(U$26<Input!$D$16,Layout!$C42<Input!$D$17),1,"") ->  | V42: =IF(AND(V$26<Input!$D$16,Layout!$C42<Input!$D$17),1,"") ->  | W42: =IF(AND(W$26<Input!$D$16,Layout!$C42<Input!$D$17),1,"") -> 
C43: 17 | D43: =IF(AND(D$26<Input!$D$16,Layout!$C43<Input!$D$17),1,"") ->  | E43: =IF(AND(E$26<Input!$D$16,Layout!$C43<Input!$D$17),1,"") ->  | F43: =IF(AND(F$26<Input!$D$16,Layout!$C43<Input!$D$17),1,"") ->  | G43: =IF(AND(G$26<Input!$D$16,Layout!$C43<Input!$D$17),1,"") ->  | H43: =IF(AND(H$26<Input!$D$16,Layout!$C43<Input!$D$17),1,"") ->  | I43: =IF(AND(I$26<Input!$D$16,Layout!$C43<Input!$D$17),1,"") ->  | J43: =IF(AND(J$26<Input!$D$16,Layout!$C43<Input!$D$17),1,"") ->  | K43: =IF(AND(K$26<Input!$D$16,Layout!$C43<Input!$D$17),1,"") ->  | L43: =IF(AND(L$26<Input!$D$16,Layout!$C43<Input!$D$17),1,"") ->  | M43: =IF(AND(M$26<Input!$D$16,Layout!$C43<Input!$D$17),1,"") ->  | N43: =IF(AND(N$26<Input!$D$16,Layout!$C43<Input!$D$17),1,"") ->  | O43: =IF(AND(O$26<Input!$D$16,Layout!$C43<Input!$D$17),1,"") ->  | P43: =IF(AND(P$26<Input!$D$16,Layout!$C43<Input!$D$17),1,"") ->  | Q43: =IF(AND(Q$26<Input!$D$16,Layout!$C43<Input!$D$17),1,"") ->  | R43: =IF(AND(R$26<Input!$D$16,Layout!$C43<Input!$D$17),1,"") ->  | S43: =IF(AND(S$26<Input!$D$16,Layout!$C43<Input!$D$17),1,"") ->  | T43: =IF(AND(T$26<Input!$D$16,Layout!$C43<Input!$D$17),1,"") ->  | U43: =IF(AND(U$26<Input!$D$16,Layout!$C43<Input!$D$17),1,"") ->  | V43: =IF(AND(V$26<Input!$D$16,Layout!$C43<Input!$D$17),1,"") ->  | W43: =IF(AND(W$26<Input!$D$16,Layout!$C43<Input!$D$17),1,"") -> 
C44: 18 | D44: =IF(AND(D$26<Input!$D$16,Layout!$C44<Input!$D$17),1,"") ->  | E44: =IF(AND(E$26<Input!$D$16,Layout!$C44<Input!$D$17),1,"") ->  | F44: =IF(AND(F$26<Input!$D$16,Layout!$C44<Input!$D$17),1,"") ->  | G44: =IF(AND(G$26<Input!$D$16,Layout!$C44<Input!$D$17),1,"") ->  | H44: =IF(AND(H$26<Input!$D$16,Layout!$C44<Input!$D$17),1,"") ->  | I44: =IF(AND(I$26<Input!$D$16,Layout!$C44<Input!$D$17),1,"") ->  | J44: =IF(AND(J$26<Input!$D$16,Layout!$C44<Input!$D$17),1,"") ->  | K44: =IF(AND(K$26<Input!$D$16,Layout!$C44<Input!$D$17),1,"") ->  | L44: =IF(AND(L$26<Input!$D$16,Layout!$C44<Input!$D$17),1,"") ->  | M44: =IF(AND(M$26<Input!$D$16,Layout!$C44<Input!$D$17),1,"") ->  | N44: =IF(AND(N$26<Input!$D$16,Layout!$C44<Input!$D$17),1,"") ->  | O44: =IF(AND(O$26<Input!$D$16,Layout!$C44<Input!$D$17),1,"") ->  | P44: =IF(AND(P$26<Input!$D$16,Layout!$C44<Input!$D$17),1,"") ->  | Q44: =IF(AND(Q$26<Input!$D$16,Layout!$C44<Input!$D$17),1,"") ->  | R44: =IF(AND(R$26<Input!$D$16,Layout!$C44<Input!$D$17),1,"") ->  | S44: =IF(AND(S$26<Input!$D$16,Layout!$C44<Input!$D$17),1,"") ->  | T44: =IF(AND(T$26<Input!$D$16,Layout!$C44<Input!$D$17),1,"") ->  | U44: =IF(AND(U$26<Input!$D$16,Layout!$C44<Input!$D$17),1,"") ->  | V44: =IF(AND(V$26<Input!$D$16,Layout!$C44<Input!$D$17),1,"") ->  | W44: =IF(AND(W$26<Input!$D$16,Layout!$C44<Input!$D$17),1,"") -> 
C45: 19 | D45: =IF(AND(D$26<Input!$D$16,Layout!$C45<Input!$D$17),1,"") ->  | E45: =IF(AND(E$26<Input!$D$16,Layout!$C45<Input!$D$17),1,"") ->  | F45: =IF(AND(F$26<Input!$D$16,Layout!$C45<Input!$D$17),1,"") ->  | G45: =IF(AND(G$26<Input!$D$16,Layout!$C45<Input!$D$17),1,"") ->  | H45: =IF(AND(H$26<Input!$D$16,Layout!$C45<Input!$D$17),1,"") ->  | I45: =IF(AND(I$26<Input!$D$16,Layout!$C45<Input!$D$17),1,"") ->  | J45: =IF(AND(J$26<Input!$D$16,Layout!$C45<Input!$D$17),1,"") ->  | K45: =IF(AND(K$26<Input!$D$16,Layout!$C45<Input!$D$17),1,"") ->  | L45: =IF(AND(L$26<Input!$D$16,Layout!$C45<Input!$D$17),1,"") ->  | M45: =IF(AND(M$26<Input!$D$16,Layout!$C45<Input!$D$17),1,"") ->  | N45: =IF(AND(N$26<Input!$D$16,Layout!$C45<Input!$D$17),1,"") ->  | O45: =IF(AND(O$26<Input!$D$16,Layout!$C45<Input!$D$17),1,"") ->  | P45: =IF(AND(P$26<Input!$D$16,Layout!$C45<Input!$D$17),1,"") ->  | Q45: =IF(AND(Q$26<Input!$D$16,Layout!$C45<Input!$D$17),1,"") ->  | R45: =IF(AND(R$26<Input!$D$16,Layout!$C45<Input!$D$17),1,"") ->  | S45: =IF(AND(S$26<Input!$D$16,Layout!$C45<Input!$D$17),1,"") ->  | T45: =IF(AND(T$26<Input!$D$16,Layout!$C45<Input!$D$17),1,"") ->  | U45: =IF(AND(U$26<Input!$D$16,Layout!$C45<Input!$D$17),1,"") ->  | V45: =IF(AND(V$26<Input!$D$16,Layout!$C45<Input!$D$17),1,"") ->  | W45: =IF(AND(W$26<Input!$D$16,Layout!$C45<Input!$D$17),1,"") -> 
C46: 20 | D46: =IF(AND(D$26<Input!$D$16,Layout!$C46<Input!$D$17),1,"") ->  | E46: =IF(AND(E$26<Input!$D$16,Layout!$C46<Input!$D$17),1,"") ->  | F46: =IF(AND(F$26<Input!$D$16,Layout!$C46<Input!$D$17),1,"") ->  | G46: =IF(AND(G$26<Input!$D$16,Layout!$C46<Input!$D$17),1,"") ->  | H46: =IF(AND(H$26<Input!$D$16,Layout!$C46<Input!$D$17),1,"") ->  | I46: =IF(AND(I$26<Input!$D$16,Layout!$C46<Input!$D$17),1,"") ->  | J46: =IF(AND(J$26<Input!$D$16,Layout!$C46<Input!$D$17),1,"") ->  | K46: =IF(AND(K$26<Input!$D$16,Layout!$C46<Input!$D$17),1,"") ->  | L46: =IF(AND(L$26<Input!$D$16,Layout!$C46<Input!$D$17),1,"") ->  | M46: =IF(AND(M$26<Input!$D$16,Layout!$C46<Input!$D$17),1,"") ->  | N46: =IF(AND(N$26<Input!$D$16,Layout!$C46<Input!$D$17),1,"") ->  | O46: =IF(AND(O$26<Input!$D$16,Layout!$C46<Input!$D$17),1,"") ->  | P46: =IF(AND(P$26<Input!$D$16,Layout!$C46<Input!$D$17),1,"") ->  | Q46: =IF(AND(Q$26<Input!$D$16,Layout!$C46<Input!$D$17),1,"") ->  | R46: =IF(AND(R$26<Input!$D$16,Layout!$C46<Input!$D$17),1,"") ->  | S46: =IF(AND(S$26<Input!$D$16,Layout!$C46<Input!$D$17),1,"") ->  | T46: =IF(AND(T$26<Input!$D$16,Layout!$C46<Input!$D$17),1,"") ->  | U46: =IF(AND(U$26<Input!$D$16,Layout!$C46<Input!$D$17),1,"") ->  | V46: =IF(AND(V$26<Input!$D$16,Layout!$C46<Input!$D$17),1,"") ->  | W46: =IF(AND(W$26<Input!$D$16,Layout!$C46<Input!$D$17),1,"") -> 
B48: Disclaimer
B49: This is a suggested (modelled) sprinkler layout design. Please contact your irrigation company for pipe and delivery requirements to ensure the suggested sprinkler layout can operate as proposed with the required flow rates and operating pressure. This suggested (modelled) design proposes that the sprinklers are located at the minimum specified height above the crop to ensure the correct wetted diameter and operate at the specified pressure at the sprinkler.
B50: Whilst NGIQ has endeavoured to ensure the accuracy of the data within iSPACE, and in this report, the information provided is based on a “computer modelling program” supported by emitter (sprinkler) data provided by third parties beyond the control of NGIQ. NGIQ accepts no liability for the consequences to personal, property, business or otherwise arising from the application, implementation or use of the information contained in this report.

Sheet Water savings calculation
B2: Water Savings from Efficiency Improvements
B4: Comparison of the water use of two irrigation layouts
C6: Existing system | D6: New system
B7: Sprinkler | D7: =CONCATENATE(Layout!E8," ",Layout!E10) -> Philmac Challenger sprinkler. Deflector Standard?
B8: Spacing | D8: =Layout!L10 -> m between laterals. m along laterals. A total of 0 sprinklers required.
B9: Operating pressure kPa | D9: =Layout!E15 -> 150
B10: MAR mm/hr (BMP<15)* | D10: =Layout!Q8 -> 4.1
B11: CU% (BMP > 85%) | D11: =Layout!Q10 -> 0.9
B12: SC (BMP <1.5)* | D12: =Layout!Q12 -> 1.3
B13: Water requirement (mm) - default 5* | D13: =C13 -> 0
B14: Irrigation events/annum - default 330* | D14: =C14 -> 0
B15: Water cost /KL (1000 L) | D15: =C15 -> 0
B16: Growing media absorption rate (mm/hr) | C16: =Input!D3 -> 0 | D16: =C16 -> 0
B17: Irrigation time (minutes)+ | C17: =IF(C10>C16,C13/C16*60*C12,C13/C10*60*C12) ->  | D17: =IF(D10>D16,D13/D16*60*D12,D13/D10*60*D12) -> 
B18: Area Length | C18: =Input!B13 -> Please input the length of the growing area in metres | D18: =C18 -> Please input the length of the growing area in metres
B19: Area Width | C19: =Input!B12 -> Please input the width of the growing area in metres | D19: =C19 -> Please input the width of the growing area in metres
B20: Irrigated Area m² | C20: =C18*C19 ->  | D20: =D18*D19 -> 
B21: Water applied L/irrigation event | C21: =C10*(C17/60)*C20 ->  | D21: =D10*(D17/60)*D20 -> 
B22: Water retained in pots L/irrigation event | C22: =C20/1000*2450 ->  | D22: =D20/1000*2450 -> 
B23: Runoff losses L/irrigation event | C23: =C21-C22 ->  | D23: =D21-D22 -> 
B24: Total water applied ML/annum | C24: =C21*C14/1000000 ->  | D24: =D21*D14/1000000 -> 
B25: Water used by plants - ML/annum | C25: =C22*C14/1000000 ->  | D25: =D22*D14/1000000 -> 
B26: Annual runoff - ML/annum | C26: =C23*C14/1000000 ->  | D26: =D23*D14/1000000 -> 
B27: Water Used Difference by System 2 ML/annum | C27: =-(C24-D24) -> 
B28: Water Cost Difference by System 2 $/annum | C28: =(C27*1000*D15) -> 
B29: + Irrigation time is calculated using the time taken for the media to absorb the water required in the driest container. If the MAR exceeds the absorption rate of the growing media, the irrigation time is calculated using the absorption rate of the growing media i.e. Water requirement ÷ Absorption Rate x 60 x SC. If the MAR is less than the absorption rate, the MAR is used to calculate the run time i.e. Water requirement ÷ MAR x 60 x SC.
B30: Whilst NGIQ has endeavoured to ensure the accuracy of the data within iSPACE, and in this report, the information provided is based on a “computer modelling program” supported by emitter (sprinkler) data provided by third parties beyond the control of NGIQ. NGIQ accepts no liability for the consequences to personal, property, business or otherwise arising from the application, implementation or use of the information contained in this report.

Sheet Conversions
B1: Input the value and unit to convert from and the unit to convert to in the light grey cells. Unit is input from dropdown menu. Pressure and volume conversions can be made independently of each other. Converted values are calculated as entered.
B2: Input the value and unit to convert from and the unit to convert to in the light grey cells. Unit is input from dropdown menu. Pressure and volume conversions can be made independent of each other. Converted values are calculated when entered.
B3: Input the value and unit to convert from and the unit to convert to in the light grey cells. Unit is input from dropdown menu. Pressure and volume conversions can be made independent of each other. Converted values are calculated when entered.
B4: Input the value and unit to convert from and the unit to convert to in the light grey cells. Unit is input from dropdown menu. Pressure and volume conversions can be made independent of each other. Converted values are calculated when entered.
C6: Pressure conversion
C7: Current measure | D7: Unit
B8: Value | C8: 40 | D8: PSI | K8: =C8 -> 40 | M8: PSI | N8: kPa | O8: Bar | P8: m
B9: Equals | C9: =VLOOKUP(D8,K8:P12,VLOOKUP(D9,K9:L12,2,FALSE)+2,FALSE) -> 275.6 | D9: kPa | K9: PSI | L9: 1 | M9: =K8 -> 40 | N9: =K8*6.89 -> 275.6 | O9: =K8*0.0689 -> 2.756 | P9: =N9/9.8 -> 28.12244898
K10: kPa | L10: 2 | M10: =K8/6.89 -> 5.805515239 | N10: =K8 -> 40 | O10: =K8/100 -> 0.4 | P10: =N10/9.8 -> 4.081632653
C11: Volume conversion | K11: Bar | L11: 3 | M11: =K8*14.5 -> 580 | N11: =M11*6.8 -> 3944 | O11: =K8 -> 40 | P11: =N11/9.8 -> 402.4489796
C12: Current measure | D12: Unit | E12: /Time unit | K12: m | L12: 4 | M12: =N12/6.9 -> 56.8115942 | N12: =P12*9.8 -> 392 | O12: =M12/14 -> 4.057971014 | P12: =K8 -> 40
B13: Value | C13: 3 | D13: Litres | E13: Second
B14: Equals | C14: =VLOOKUP(D13,K14:P18,VLOOKUP(D14,K15:L17,2,FALSE)+2,FALSE) -> 0.6599077449 | D14: Gallons | K14: =C13 -> 3 | M14: Litres | N14: Gallons | O14: US Gallons
K15: Litres | L15: 1 | M15: =K14 -> 3 | N15: =K14/4.54609 -> 0.6599077449 | O15: =K14/3.78541 -> 0.7925165306
B16: Other calculated flow rates from input data | K16: Gallons | L16: 2 | M16: =K14*4.54609 -> 13.63827 | N16: =K14 -> 3 | O16: =K14*1.20095 -> 3.60285
B17: =IF($E$13=$K$19,C13*60,IF($E$13=$K$20,C13*3600,C13)) -> 10800 | C17: =CONCATENATE(D$13,"/hour") -> Litres/hour | D17: =IF($E$13=$K$19,C14*60,IF($E$13=$K$20,C14*3600,C14)) -> 2375.667882 | E17: =CONCATENATE(D$14,"/hour") -> Gallons/hour | K17: US Gallons | L17: 3 | M17: =K14*3.78541 -> 11.35623 | N17: =M17/1.20095 -> 9.456038969 | O17: =K14 -> 3
B18: =B17/60 -> 180 | C18: =CONCATENATE(D$13,"/minute") -> Litres/minute | D18: =D17/60 -> 39.59446469 | E18: =CONCATENATE(D$14,"/minute") -> Gallons/minute | K18: Hour
B19: =B18/60 -> 3 | C19: =CONCATENATE(D$13,"/second") -> Litres/second | D19: =D18/60 -> 0.6599077449 | E19: =CONCATENATE(D$14,"/second") -> Gallons/second | K19: Minute
K20: Second

Sheet Selections
A1: =Data!A1 -> Manufacturer | B1: =Data!B1 -> Sprinkler | C1: =Data!C1 -> Deflector | D1: =Data!D1 -> Flow rate L/hr | E1: =Data!F1 -> Pressure kPa | F1: =E1 -> Pressure kPa | G1: CU % | H1: =Data!H1 -> SC | I1: =Data!I1 -> MAR mm/hr | J1: =I1 -> MAR mm/hr | K1: =Data!J1 -> Spacing m | L1: =Data!K1 -> Position | M1: =Data!L1 -> Scenario | N1: =Data!M1 -> Sprinkler height cm. Note: Uniformity will be reduced if installed height is less than this height | O1: =Data!N1 -> Sprinkler stream type | P1: =Data!O1 -> Droplet Size | Q1: =Data!Q1 -> Droplet size ranking | R1: =Data!P1 -> Approximate wind tolerance | S1: =Data!R1 -> Wind tolerance ranking
B2: =IF(Input!B26="","",(Input!B26)) ->  | E2: =IF(Input!B11="",CONCATENATE(">=",0),CONCATENATE(">=",(Input!B11))) -> >=0 | F2: =IF(Input!B10="",CONCATENATE("<=",1000),CONCATENATE("<=",(Input!B10))) -> <=Please input the maximum operating pressure at the sprinkler in kPa | G2: =CONCATENATE(">=",(IF(Input!B24="",0.85,(Input!B24)))) -> >=0.85 | H2: =CONCATENATE("<=",(IF(Input!B25="",1.5,(Input!B25)))) -> <=1.5 | I2: =CONCATENATE(">=",(IF(Input!B23="",0,(Input!B23)))) -> >=0 | J2: =CONCATENATE("<=",IF(Input!B20>Input!D3,Input!D3,Input!B20)) -> <=0 | K2: =IF(Input!B14="","",Input!B14) -> 5mx5m | L2: =IF(Input!D8=3,"",IF(Input!D8=2,"Inverted","Upright")) -> Upright | N2: =IF(Input!B9="",CONCATENATE("<=",300),CONCATENATE("<=",Input!B9)) -> <=200 | P2: =_xlfn.IFNA(VLOOKUP(Input!D4,Dropdowns!C44:F47,Input!D5+1,FALSE),"") -> Medium | S2: =CONCATENATE(">=",VLOOKUP(Input!B6,Dropdowns!A59:B61,2,FALSE)) -> >=1
Q11: =_xlfn.IFNA(VLOOKUP(Input!D13,Dropdowns!C53:F56,Input!D16+1,FALSE),"") -> 

Sheet Dropdowns
A1: Format fows for colour format below output table
H40: Wind tolerance ranking
H41: Number | I41: Stream type | J41: Droplet size
A42: Droplet size required | C42: Plant size | H42: 1 | I42: Fast rotating and mist | J42: Small and medium | K42: Small droplet size flow rate below 55 L/hr medium below 400 L/hr
D43: Small | E43: Medium | F43: Large | H43: 2 | I43: Fast rotating, multistream and single stream rotator | J43: Medium and large | K43: Multistream medium size regardless of flow rate. Medium droplet size for others<400L/hr
D44: 1 | E44: 2 | F44: 3 | H44: 3 | I44: Impact and single stream rotator | J44: Medium and large
A45: Foliage density | B45: Sparse | C45: 1 | D45: Small | E45: Medium | F45: Medium
B46: Medium | C46: 2 | D46: Medium | E46: Medium | F46: Large
B47: Dense | C47: 3 | D47: Medium | E47: Large | F47: Large
D49: Droplet size | H49: Wind tolerance ranking | J49: Droplet size
A50: Wind performance | D50: Small | E50: Medium | F50: Large | J50: Small | K50: Medium | L50: Large
D51: 1 | E51: 2 | F51: 3 | J51: 1 | K51: 2 | L51: 3
A52: Sprinkler stream type | B52: 1 | C52: Fast rotating | D52: =$A$59 -> Light < 11km/hr. Wind felt on face | E52: =$A$59 -> Light < 11km/hr. Wind felt on face | F52: =$A$60 -> Gentle < 19 km/hr. Flags flap | H52: 1 | I52: Fast rotating | J52: 1 | K52: 1 | L52: 2
B53: 2 | C53: Single stream rotator | D53: =$A$60 -> Gentle < 19 km/hr. Flags flap | E53: =$A$60 -> Gentle < 19 km/hr. Flags flap | F53: =$A$61 -> Moderate <28 km/hr. Dust & loose paper lifted. | H53: 2 | I53: Single stream rotator | J53: 2 | K53: 2 | L53: 3
B54: 3 | C54: Multi-stream | E54: =$A$60 -> Gentle < 19 km/hr. Flags flap | F54: =$A$61 -> Moderate <28 km/hr. Dust & loose paper lifted. | H54: 3 | I54: Multi-stream | J54: 2 | K54: 2 | L54: 3
B55: 4 | C55: Impact | D55: =$A$61 -> Moderate <28 km/hr. Dust & loose paper lifted. | E55: =$A$61 -> Moderate <28 km/hr. Dust & loose paper lifted. | F55: =$A$61 -> Moderate <28 km/hr. Dust & loose paper lifted. | H55: 4 | I55: Impact | J55: 3 | K55: 3 | L55: 3
B56: 5 | C56: Mist | D56: =$A$59 -> Light < 11km/hr. Wind felt on face | H56: 5 | I56: Mist | J56: 1 | K56: 1 | L56: 1
A58: Wind speed | B58: Ranking number | C58: Wind speed
A59: =W79 -> Light < 11km/hr. Wind felt on face | B59: 1 | C59: =A59 -> Light < 11km/hr. Wind felt on face
A60: =W80 -> Gentle < 19 km/hr. Flags flap | B60: 2 | C60: =A60 -> Gentle < 19 km/hr. Flags flap
A61: =W81 -> Moderate <28 km/hr. Dust & loose paper lifted. | B61: 3 | C61: Moderate <28 km/hr. Dust & loose paper lifted.
G64: =IF(Input!B24="",0.85,Input!B24) -> 0.85
A65: Manufacturer | B65: Sprinkler | C65: Deflector | D65: Flow rate L/hr | E65: Nozzle size/colour | F65: =CONCATENATE(Selections!E2," and ",Selections!F2," kPa ","Pressure ") -> >=0 and <=Please input the maximum operating pressure at the sprinkler in kPa kPa Pressure | G65: =CONCATENATE(">=",G64*100,"% ","CU ") -> >=85% CU | H65: =CONCATENATE("<=",RIGHT(Selections!H2,3)," SC") -> <=1.5 SC | I65: =CONCATENATE(Selections!I2," and ",LEFT(Selections!J2,6)," mm/hr ","MAR " ) -> >=0 and <=0 mm/hr MAR | J65: =CONCATENATE(Selections!K2," approximate sprinkler spacing", ) -> 5mx5m approximate sprinkler spacing | K65: =CONCATENATE(Selections!L2," Position") -> Upright Position | L65: Scenario | M65: Sprinkler test height cm. Note: Uniformity will be affected if installed height is less than this height | N65: Sprinkler stream type | O65: =CONCATENATE("Droplet Size (",Input!A4," ",Input!B4,". ",Input!A5," ",Input!B5,")") -> Droplet Size (Plant size Medium. Foliage density Medium) | P65: =CONCATENATE("Approximate tolerance of wind conditions - ",Input!B6,) -> Approximate tolerance of wind conditions - Light < 11km/hr. Wind felt on face
A67: iSPACE Sprinkler Selections
A73: Row 74 format for output lines
Q74: 1 | R74: 1
A77: Manufacturer | B77: Sprinkler | C77: Deflector | D77: FlowRate | E77: Nozzle | F77: Pressure | G77: CU | H77: SC | I77: MAR | J77: Spacing | K77: Spacing number | L77: Position | M77: Scenario | N77: SprinklerHeight | O77: SprinklerType | P77: Wind capability | Q77: Upright/inverted | R77: Growing media | S77: Growing media absorption rate | T77: Plant size | U77: Foliage density | V77: Droplet size | W77: Average wind conditions | X77: Minimum height above crop | Y77: Map? | Z77: Total sprinklers | AA77: Area dimensions
B78: 5022 | D78: Please input the maximum flow rate to the growing area in L/hr | F78: Please input the maximum operating pressure at the sprinkler in kPa | I78: 0 | J78: Please select the approximate spacing from the dropdown | N78: Please select approximate sprinkler height from dropdown | Q78: Please select sprinkler orientation from dropdown | R78: Please select growing media type from dropdown | U78: Please select foliage density from dropdown | V78: Please select plant size from dropdown | W78: Please select wind conditions from dropdown | AA78: Please input the width of the growing area in metres
B79: 5035 | F79: Optional | G79: 0.85 | H79: 1.5 | I79: 1 | J79: 2mx2m | K79: 2 | N79: 10 | Q79: Upright | R79: Bark - MAR <15 mm/hr | S79: 15 | T79: Small | U79: Sparse | V79: Small | W79: Light < 11km/hr. Wind felt on face | AA79: Please input the length of the growing area in metres
B80: Challenger | G80: 0.86 | H80: 1.4 | I80: 2 | J80: 2.5mx2.5m | K80: 2.5 | N80: 20 | Q80: Inverted | R80: Bark + Wetting Agent - MAR <20 mm/hr | S80: 20 | T80: Medium | U80: Medium | V80: Medium | W80: Gentle < 19 km/hr. Flags flap
B81: Gyronet | G81: 0.87 | H81: 1.3 | I81: 3 | J81: 3mx3m | K81: 3 | N81: 30 | R81: Coir/Coir blend - MAR <25 mm/hr | S81: 25 | T81: Large | U81: Dense | V81: Large | W81: Moderate <28 km/hr. Dust & loose paper lifted.
B82: Inverted Rotor Max | G82: 0.88 | H82: 1.2 | I82: 4 | J82: 3.5mx3.5m | K82: 3.5 | N82: 40
B83: Inverted Rotor Spray | G83: 0.89 | H83: 1.1 | I83: 5 | J83: 4mx4m | K83: 4 | N83: 50
B84: LF1200 | G84: 0.9 | I84: 6 | J84: 4.5mx4.5m | K84: 4.5 | N84: 60
B85: LF2400 | G85: 0.91 | I85: 7 | J85: 5mx5m | K85: 5 | N85: 70
B86: LF800 | G86: 0.92 | I86: 8 | J86: 5.5mx5.5m | K86: 5.5 | N86: 80
B87: Mamkad 16 | G87: 0.93 | I87: 9 | J87: 6mx6m | K87: 6 | N87: 90
B88: Modular Group | G88: 0.94 | I88: 10 | J88: 6.5mx6.5m | K88: 6.5 | N88: 100
B89: MP Rotator 2000 | G89: 0.95 | I89: 11 | J89: 7mx7m | K89: 7 | N89: 110
B90: MP Rotator 3000 | G90: 0.96 | I90: 12 | J90: 7.5mx7.5m | K90: 7.5 | N90: 120
B91: N-85 | G91: 0.97 | I91: 13 | J91: 8mx8m | K91: 8 | N91: 130
B92: N-95 | G92: 0.98 | I92: 14 | J92: 8.5mx8.5m | K92: 8.5 | N92: 140
B93: PowerNet | G93: 0.99 | I93: 15 | J93: 9mx9m | K93: 9 | N93: 150
B94: R10 | G94: 1 | I94: 16 | J94: 9.5mx9.5m | K94: 9.5 | N94: 160
B95: R10TG | I95: 17 | J95: 10mx10m | K95: 10 | N95: 170
B96: R10TURBO | I96: 18 | J96: 10.5mx10.5m | K96: 10.5 | N96: 180
B97: R2000 | I97: 19 | J97: 11mx11m | K97: 11 | N97: 190
B98: Rondo | I98: 20 | J98: 11.5mx11.5m | K98: 11.5 | N98: 200
B99: Rondo Anti-ant | I99: 21 | J99: 12mx12m | K99: 12
B100: Rondo inverted | I100: 22 | J100: 12.5mx12.5m | K100: 12.5
B101: Rotoframe | I101: 23 | J101: 13mx13m | K101: 13
B102: Rotor Max | I102: 24 | J102: 13.5mx13.5m | K102: 13.5
B103: Rotor Rain | J103: 14mx14m | K103: 14
B104: Rotor Spray | J104: 14.5mx14.5m | K104: 14.5
B105: S10 | J105: 15mx15m | K105: 15
B106: S11 | J106: 15.5mx15.5m | K106: 15.5
B107: Spin Clear | J107: 16mx16m | K107: 16
B108: StreamMaster | J108: 16.5mx16.5m | K108: 16.5
B109: Super 10 | J109: 17mx17m | K109: 17
B110: SuperNet | J110: 17.5mx17.5m | K110: 17.5
B111: Vibro Spray | J111: 18mx18m | K111: 18
B112: XP 300 | J112: 18.5mx18.5m | K112: 18.5
J113: 19mx19m | K113: 19
J114: 19.5mx19.5m | K114: 19.5
J115: 20mx20m | K115: 20
A125: Formulas for database
A126: Manufacturer | B126: Sprinkler | C126: Deflector | D126: Flow rate L/hr | E126: Nozzle size/colour | F126: Pressure kPa | G126: CU % | H126: SC | I126: MAR mm/hr | J126: Spacing m | K126: Position | L126: Scenario | M126: Sprinkler height cm. Note: Uniformity will be reduced if installed height is less than this height | N126: Sprinkler stream type | O126: Droplet Size | P126: Approximate wind tolerance | Q126: Droplet size ranking | R126: Wind tolerance ranking
A127: Rivulus | B127: Rondo inverted | C127: Green? | D127: 147 | E127: 1.8 Violet | F127: 150 | G127: 1 | H127: 1 | I127: 22.8 | J127: 2.5mx2.5m | K127: Inverted | L127: Modelled | M127: 200 | N127: Fast rotating | O127: =IF(D127<56,"Small",IF(AND(D127>55,D127<401),"Medium","Large")) -> Medium | P127: =VLOOKUP(N127,Dropdowns!$C$51:$F$55,Data!R2256+1,FALSE) -> Light < 11km/hr. Wind felt on face | Q127: =IF(O127="Small",1,IF(O127="Medium",2,IF(O127="Large",3,4))) -> 2 | R127: =VLOOKUP(N127,Dropdowns!$I$52:$L$56,HLOOKUP(O127,Dropdowns!$J$50:$L$51,2,FALSE)+1,FALSE) -> 1
A131: Whilst NGIQ has endeavoured to ensure the accuracy of the data within iSPACE, and in this report, the information provided is based on a “computer modelling program” supported by emitter (sprinkler) data provided by third parties beyond the control of NGIQ. NGIQ accepts no liability for the consequences to personal, property, business or otherwise arising from the application, implementation or use of the information contained in this report.

Sheet Data
A1: Manufacturer | B1: Sprinkler | C1: Deflector | D1: Flow rate L/hr | E1: Nozzle size/colour | F1: Pressure kPa | G1: CU % | H1: SC | I1: MAR mm/hr | J1: Spacing m | K1: Position | L1: Scenario | M1: Sprinkler height cm. Note: Uniformity will be reduced if installed height is less than this height | N1: Sprinkler stream type | O1: Droplet Size | P1: Approximate wind tolerance | Q1: Droplet size ranking | R1: Wind tolerance ranking
A2: Rivulis | B2: Rondo inverted | C2: Green? | D2: 147 | E2: 1.8 Violet | F2: 150 | G2: 1 | H2: 1 | I2: 22.8 | J2: 2.5mx2.5m | K2: Inverted | L2: Modelled | M2: 200 | N2: Fast rotating | O2: =IF(D2<56,"Small",IF(AND(D2>55,D2<401),"Medium","Large")) -> Medium | P2: =VLOOKUP(N2,Dropdowns!$C$51:$F$56,R2+1,FALSE) -> Light < 11km/hr. Wind felt on face | Q2: =IF(O2="Small",1,IF(O2="Medium",2,IF(O2="Large",3,4))) -> 2 | R2: =VLOOKUP(N2,Dropdowns!$I$52:$L$56,HLOOKUP(O2,Dropdowns!$J$50:$L$51,2,FALSE)+1,FALSE) -> 1
A3: RainBird | B3: LF2400 | C3: 10-lime | D3: 584 | E3: Green | F3: 385 | G3: 0.99 | H3: 1.3 | I3: 3.6 | J3: 12.5mx12.5m | K3: Upright | L3: Modelled | M3: 30 | N3: Impact | O3: =IF(D3<56,"Small",IF(AND(D3>55,D3<401),"Medium","Large")) -> Large | P3: =VLOOKUP(N3,Dropdowns!$C$51:$F$56,R3+1,FALSE) -> Moderate <28 km/hr. Dust & loose paper lifted. | Q3: =IF(O3="Small",1,IF(O3="Medium",2,IF(O3="Large",3,4))) -> 3 | R3: =VLOOKUP(N3,Dropdowns!$I$52:$L$56,HLOOKUP(O3,Dropdowns!$J$50:$L$51,2,FALSE)+1,FALSE) -> 3
A4: Rivulis | B4: Rondo inverted | C4: Green? | D4: 45 | E4: 1.0 Blue | F4: 200 | G4: 0.99 | H4: 1 | I4: 11.1 | J4: 2mx2m | K4: Inverted | L4: Modelled | M4: 200 | N4: Fast rotating | O4: Small | P4: =VLOOKUP(N4,Dropdowns!$C$51:$F$56,R4+1,FALSE) -> Light < 11km/hr. Wind felt on face | Q4: 1 | R4: =VLOOKUP(N4,Dropdowns!$I$52:$L$56,HLOOKUP(O4,Dropdowns!$J$50:$L$51,2,FALSE)+1,FALSE) -> 1
A5: Rivulis | B5: Rondo inverted | C5: Green? | D5: 73 | E5: 1.2 Green | F5: 200 | G5: 0.99 | H5: 1 | I5: 11.5 | J5: 2.5mx2.5m | K5: Inverted | L5: Modelled | M5: 200 | N5: Fast rotating | O5: Medium | P5: =VLOOKUP(N5,Dropdowns!$C$51:$F$56,R5+1,FALSE) -> Light < 11km/hr. Wind felt on face | Q5: 2 | R5: =VLOOKUP(N5,Dropdowns!$I$52:$L$56,HLOOKUP(O5,Dropdowns!$J$50:$L$51,2,FALSE)+1,FALSE) -> 1
A6: RainBird | B6: LF800 | C6: 15-brown | D6: 241 | E6: White | F6: 385 | G6: 0.99 | H6: 1 | I6: 13.2 | J6: 4mx4m | K6: Upright | L6: Modelled | M6: 30 | N6: Impact | O6: Medium | P6: =VLOOKUP(N6,Dropdowns!$C$51:$F$56,R6+1,FALSE) -> Moderate <28 km/hr. Dust & loose paper lifted. | Q6: 2 | R6: =VLOOKUP(N6,Dropdowns!$I$52:$L$56,HLOOKUP(O6,Dropdowns!$J$50:$L$51,2,FALSE)+1,FALSE) -> 3
A7: RainBird | B7: LF800 | C7: 15-brown | D7: 252 | E7: White | F7: 420 | G7: 0.99 | H7: 1 | I7: 14 | J7: 4mx4m | K7: Upright | L7: Modelled | M7: 30 | N7: Impact | O7: Medium | P7: =VLOOKUP(N7,Dropdowns!$C$51:$F$56,R7+1,FALSE) -> Moderate <28 km/hr. Dust & loose paper lifted. | Q7: 2 | R7: =VLOOKUP(N7,Dropdowns!$I$52:$L$56,HLOOKUP(O7,Dropdowns!$J$50:$L$51,2,FALSE)+1,FALSE) -> 3
A8: Antelco | B8: Rotor Rain | C8: Standard | D8: 145 | E8: 1.7 Blue | F8: 200 | G8: 0.99 | H8: 1.1 | I8: 14.6 | J8: 3mx3m | K8: Upright | L8: Modelled | M8: 50 | N8: Fast rotating | O8: Medium | P8: =VLOOKUP(N8,Dropdowns!$C$51:$F$56,R8+1,FALSE) -> Light < 11km/hr. Wind felt on face | Q8: 2 | R8: =VLOOKUP(N8,Dropdowns!$I$52:$L$56,HLOOKUP(O8,Dropdowns!$J$50:$L$51,2,FALSE)+1,FALSE) -> 1
A9: Rivulis | B9: Rondo inverted | C9: Green? | D9: 100 | E9: 1.4 Red | F9: 200 | G9: 0.99 | H9: 1 | I9: 14.7 | J9: 2.5mx2.5m | K9: Inverted | L9: Modelled | M9: 200 | N9: Fast rotating | O9: Medium | P9: =VLOOKUP(N9,Dropdowns!$C$51:$F$56,R9+1,FALSE) -> Light < 11km/hr. Wind felt on face | Q9: 2 | R9: =VLOOKUP(N9,Dropdowns!$I$52:$L$56,HLOOKUP(O9,Dropdowns!$J$50:$L$51,2,FALSE)+1,FALSE) -> 1
A10: Philmac | B10: Challenger | C10: Standard? | D10: 139 | E10: Blue | F10: 200 | G10: 0.99 | H10: 1 | I10: 16.2 | J10: 3mx3m | K10: Upright | L10: Modelled | M10: 20 | N10: Fast rotating | O10: Medium | P10: =VLOOKUP(N10,Dropdowns!$C$51:$F$56,R10+1,FALSE) -> Light < 11km/hr. Wind felt on face | Q10: 2 | R10: =VLOOKUP(N10,Dropdowns!$I$52:$L$56,HLOOKUP(O10,Dropdowns!$J$50:$L$51,2,FALSE)+1,FALSE) -> 1
A11: Nelson | B11: R10 | C11: P4 9° White | D11: 145 | E11: #60 Light Red | F11: 276 | G11: 0.99 | H11: 1 | I11: 17 | J11: 3mx3m | K11: Upright | L11: Modelled | M11: 30.5 | N11: Single stream rotator | O11: Medium | P11: =VLOOKUP(N11,Dropdowns!$C$51:$F$56,R11+1,FALSE) -> Gentle < 19 km/hr. Flags flap | Q11: 2 | R11: =VLOOKUP(N11,Dropdowns!$I$52:$L$56,HLOOKUP(O11,Dropdowns!$J$50:$L$51,2,FALSE)+1,FALSE) -> 2
A12: Rivulis | B12: Rondo inverted | C12: Green? | D12: 114 | E12: 1.6 White | F12: 150 | G12: 0.99 | H12: 1 | I12: 17.2 | J12: 2.5mx2.5m | K12: Inverted | L12: Modelled | M12: 200 | N12: Fast rotating | O12: Medium | P12: =VLOOKUP(N12,Dropdowns!$C$51:$F$56,R12+1,FALSE) -> Light < 11km/hr. Wind felt on face | Q12: 2 | R12: =VLOOKUP(N12,Dropdowns!$I$52:$L$56,HLOOKUP(O12,Dropdowns!$J$50:$L$51,2,FALSE)+1,FALSE) -> 1
A13: Rivulis | B13: Rondo inverted | C13: Green? | D13: 73 | E13: 1.2 Green | F13: 200 | G13: 0.99 | H13: 1 | I13: 18 | J13: 2mx2m | K13: Inverted | L13: Modelled | M13: 200 | N13: Fast rotating | O13: Medium | P13: =VLOOKUP(N13,Dropdowns!$C$51:$F$56,R13+1,FALSE) -> Light < 11km/hr. Wind felt on face | Q13: 2 | R13: =VLOOKUP(N13,Dropdowns!$I$52:$L$56,HLOOKUP(O13,Dropdowns!$J$50:$L$51,2,FALSE)+1,FALSE) -> 1
A14: Rivulis | B14: Rondo Anti-ant | C14: Black? | D14: 302 | E14: 2.4 Orange | F14: 200 | G14: 0.99 | H14: 1 | I14: 18.9 | J14: 4mx4m | K14: Upright | L14: Modelled | M14: 20 | N14: Fast rotating | O14: Medium | P14: =VLOOKUP(N14,Dropdowns!$C$51:$F$56,R14+1,FALSE) -> Light < 11km/hr. Wind felt on face | Q14: 2 | R14: =VLOOKUP(N14,Dropdowns!$I$52:$L$56,HLOOKUP(O14,Dropdowns!$J$50:$L$51,2,FALSE)+1,FALSE) -> 1
A15: Rivulis | B15: Rondo inverted | C15: Green? | D15: 81 | E15: 1.4 Red | F15: 150 | G15: 0.99 | H15: 1 | I15: 19.4 | J15: 2mx2m | K15: Inverted | L15: Modelled | M15: 200 | N15: Fast rotating | O15: Medium | P15: =VLOOKUP(N15,Dropdowns!$C$51:$F$56,R15+1,FALSE) -> Light < 11km/hr. Wind felt on face | Q15: 2 | R15: =VLOOKUP(N15,Dropdowns!$I$52:$L$56,HLOOKUP(O15,Dropdowns!$J$50:$L$51,2,FALSE)+1,FALSE) -> 1
A16: RainBird | B16: LF2400 | C16: 22-dark green | D16: 727 | E16: Red | F16: 350 | G16: 0.99 | H16: 1 | I16: 19.6 | J16: 6mx6m | K16: Upright | L16: Modelled | M16: 30 | N16: Impact | O16: Large | P16: =VLOOKUP(N16,Dropdowns!$C$51:$F$56,R16+1,FALSE) -> Moderate <28 km/hr. Dust & loose paper lifted. | Q16: 3 | R16: =VLOOKUP(N16,Dropdowns!$I$52:$L$56,HLOOKUP(O16,Dropdowns!$J$50:$L$51,2,FALSE)+1,FALSE) -> 3
A17: Antelco | B17: Rotor Spray | C17: Upright Rotor | D17: 95 | E17: 1.5 Red | F17: 133 | G17: 0.99 | H17: 1 | I17: 19.6 | J17: 2mx2m | K17: Upright | L17: Modelled | M17: 50 | N17: Fast rotating | O17: Medium | P17: =VLOOKUP(N17,Dropdowns!$C$51:$F$56,R17+1,FALSE) -> Light < 11km/hr. Wind felt on face | Q17: 2 | R17: =VLOOKUP(N17,Dropdowns!$I$52:$L$56,HLOOKUP(O17,Dropdowns!$J$50:$L$51,2,FALSE)+1,FALSE) -> 1
A18: RainBird | B18: LF2400 | C18: 15-tangerine | D18: 799 | E18: Red | F18: 420 | G18: 0.99 | H18: 1 | I18: 21.6 | J18: 6mx6m | K18: Upright | L18: Modelled | M18: 30 | N18: Impact | O18: Large | P18: =VLOOKUP(N18,Dropdowns!$C$51:$F$56,R18+1,FALSE) -> Moderate <28 km/hr. Dust & loose paper lifted. | Q18: 3 | R18: =VLOOKUP(N18,Dropdowns!$I$52:$L$56,HLOOKUP(O18,Dropdowns!$J$50:$L$51,2,FALSE)+1,FALSE) -> 3
A19: RainBird | B19: LF2400 | C19: 22-dark green | D19: 799 | E19: Red | F19: 420 | G19: 0.99 | H19: 1 | I19: 21.6 | J19: 6mx6m | K19: Upright | L19: Modelled | M19: 30 | N19: Impact | O19: Large | P19: =VLOOKUP(N19,Dropdowns!$C$51:$F$56,R19+1,FALSE) -> Moderate <28 km/hr. Dust & loose paper lifted. | Q19: 3 | R19: =VLOOKUP(N19,Dropdowns!$I$52:$L$56,HLOOKUP(O19,Dropdowns!$J$50:$L$51,2,FALSE)+1,FALSE) -> 3
A20: RainBird | B20: LF2400 | C20: 22-dark green | D20: 738 | E20: Black | F20: 280 | G20: 0.99 | H20: 1 | I20: 22.1 | J20: 5.5mx5.5m | K20: Upright | L20: Modelled | M20: 30 | N20: Impact | O20: Large | P20: =VLOOKUP(N20,Dropdowns!$C$51:$F$56,R20+1,FALSE) -> Moderate <28 km/hr. Dust & loose paper lifted. | Q20: 3 | R20: =VLOOKUP(N20,Dropdowns!$I$52:$L$56,HLOOKUP(O20,Dropdowns!$J$50:$L$51,2,FALSE)+1,FALSE) -> 3
A21: RainBird | B21: LF2400 | C21: 22-dark green | D21: 852 | E21: Black | F21: 385 | G21: 0.99 | H21: 1 | I21: 22.9 | J21: 6mx6m | K21: Upright | L21: Modelled | M21: 30 | N21: Impact | O21: Large | P21: =VLOOKUP(N21,Dropdowns!$C$51:$F$56,R21+1,FALSE) -> Moderate <28 km/hr. Dust & loose paper lifted. | Q21: 3 | R21: =VLOOKUP(N21,Dropdowns!$I$52:$L$56,HLOOKUP(O21,Dropdowns!$J$50:$L$51,2,FALSE)+1,FALSE) -> 3
A22: Rivulis | B22: Rondo inverted | C22: Green? | D22: 100 | E22: 1.4 Red | F22: 200 | G22: 0.99 | H22: 1 | I22: 23 | J22: 2mx2m | K22: Inverted | L22: Modelled | M22: 200 | N22: Fast rotating | O22: Medium | P22: =VLOOKUP(N22,Dropdowns!$C$51:$F$56,R22+1,FALSE) -> Light < 11km/hr. Wind felt on face | Q22: 2 | R22: =VLOOKUP(N22,Dropdowns!$I$52:$L$56,HLOOKUP(O22,Dropdowns!$J$50:$L$51,2,FALSE)+1,FALSE) -> 1
A23: Philmac | B23: Challenger | C23: Standard? | D23: 139 | E23: Blue | F23: 200 | G23: 0.99 | H23: 1 | I23: 23.3 | J23: 2.5mx2.5m | K23: Upright | L23: Modelled | M23: 20 | N23: Fast rotating | O23: Medium | P23: =VLOOKUP(N23,Dropdowns!$C$51:$F$56,R23+1,FALSE) -> Light < 11km/hr. Wind felt on face | Q23: 2 | R23: =VLOOKUP(N23,Dropdowns!$I$52:$L$56,HLOOKUP(O23,Dropdowns!$J$50:$L$51,2,FALSE)+1,FALSE) -> 1
A24: RainBird | B24: LF2400 | C24: 22-dark green | D24: 784 | E24: Black | F24: 315 | G24: 0.99 | H24: 1 | I24: 23.4 | J24: 5.5mx5.5m | K24: Upright | L24: Modelled | M24: 30 | N24: Impact | O24: Large | P24: =VLOOKUP(N24,Dropdowns!$C$51:$F$56,R24+1,FALSE) -> Moderate <28 km/hr. Dust & loose paper lifted. | Q24: 3 | R24: =VLOOKUP(N24,Dropdowns!$I$52:$L$56,HLOOKUP(O24,Dropdowns!$J$50:$L$51,2,FALSE)+1,FALSE) -> 3
A25: Nelson | B25: R10TURBO | C25: P6 9° Blue | D25: 152 | E25: #65 Gray | F25: 207 | G25: 0.99 | H25: 1 | I25: 23.5 | J25: 2.5mx2.5m | K25: Upright | L25: Modelled | M25: 31 | N25: Single stream rotator | O25: Medium | P25: =VLOOKUP(N25,Dropdowns!$C$51:$F$56,R25+1,FALSE) -> Gentle < 19 km/hr. Flags flap | Q25: 2 | R25: =VLOOKUP(N25,Dropdowns!$I$52:$L$56,HLOOKUP(O25,Dropdowns!$J$50:$L$51,2,FALSE)+1,FALSE) -> 2
A26: Nelson | B26: R10TURBO | C26: P6 9° Blue | D26: 152 | E26: #65 Gray | F26: 207 | G26: 0.99 | H26: 1 | I26: 23.5 | J26: 2.5mx2.5m | K26: Upright | L26: Modelled | M26: 31 | N26: Single stream rotator | O26: Medium | P26: =VLOOKUP(N26,Dropdowns!$C$51:$F$56,R26+1,FALSE) -> Gentle < 19 km/hr. Flags flap | Q26: =IF(O26="Small",1,IF(O26="Medium",2,IF(O26="Large",3,4))) -> 2 | R26: =VLOOKUP(N26,Dropdowns!$I$52:$L$56,HLOOKUP(O26,Dropdowns!$J$50:$L$51,2,FALSE)+1,FALSE) -> 2
A27: RainBird | B27: LF2400 | C27: 22-dark green | D27: 881 | E27: Black | F27: 420 | G27: 0.99 | H27: 1 | I27: 23.6 | J27: 6mx6m | K27: Upright | L27: Modelled | M27: 30 | N27: Impact | O27: Large | P27: =VLOOKUP(N27,Dropdowns!$C$51:$F$56,R27+1,FALSE) -> Moderate <28 km/hr. Dust & loose paper lifted. | Q27: 3 | R27: =VLOOKUP(N27,Dropdowns!$I$52:$L$56,HLOOKUP(O27,Dropdowns!$J$50:$L$51,2,FALSE)+1,FALSE) -> 3
A28: Nelson | B28: R10TURBO | C28: P8 24° brown? | D28: 286 | E28: #86 Orange | F28: 241 | G28: 0.99 | H28: 1 | I28: 23.7 | J28: 3.5mx3.5m | K28: Upright | L28: Modelled | M28: 46 | N28: Single stream rotator | O28: Medium | P28: =VLOOKUP(N28,Dropdowns!$C$51:$F$56,R28+1,FALSE) -> Gentle < 19 km/hr. Flags flap | Q28: 2 | R28: =VLOOKUP(N28,Dropdowns!$I$52:$L$56,HLOOKUP(O28,Dropdowns!$J$50:$L$51,2,FALSE)+1,FALSE) -> 2
A29: RainBird | B29: LF2400 | C29: 22-dark green | D29: 818 | E29: Black | F29: 350 | G29: 0.99 | H29: 1 | I29: 24.4 | J29: 5.5mx5.5m | K29: Upright | L29: Modelled | M29: 30 | N29: Impact | O29: Large | P29: =VLOOKUP(N29,Dropdowns!$C$51:$F$56,R29+1,FALSE) -> Moderate <28 km/hr. Dust & loose paper lifted. | Q29: 3 | R29: =VLOOKUP(N29,Dropdowns!$I$52:$L$56,HLOOKUP(O29,Dropdowns!$J$50:$L$51,2,FALSE)+1,FALSE) -> 3
A30: RainBird | B30: LF2400 | C30: 22-dark green | D30: 913 | E30: Silver | F30: 315 | G30: 0.99 | H30: 1 | I30: 24.6 | J30: 6mx6m | K30: Upright | L30: Modelled | M30: 30 | N30: Impact | O30: Large | P30: =VLOOKUP(N30,Dropdowns!$C$51:$F$56,R30+1,FALSE) -> Moderate <28 km/hr. Dust & loose paper lifted. | Q30: 3 | R30: =VLOOKUP(N30,Dropdowns!$I$52:$L$56,HLOOKUP(O30,Dropdowns!$J$50:$L$51,2,FALSE)+1,FALSE) -> 3
A31: RainBird | B31: LF2400 | C31: 22-dark green | D31: 670 | E31: Tan | F31: 385 | G31: 0.99 | H31: 1 | I31: 24.9 | J31: 5mx5m | K31: Upright | L31: Modelled | M31: 30 | N31: Impact | O31: Large | P31: =VLOOKUP(N31,Dropdowns!$C$51:$F$56,R31+1,FALSE) -> Moderate <28 km/hr. Dust & loose paper lifted. | Q31: 3 | R31: =VLOOKUP(N31,Dropdowns!$I$52:$L$56,HLOOKUP(O31,Dropdowns!$J$50:$L$51,2,FALSE)+1,FALSE) -> 3
A32: Antelco | B32: Rotor Rain | C32: Standard | D32: 242 | E32: 2.0 Yellow | F32: 250 | G32: 0.99 | H32: 1 | I32: 25.8 | J32: 3mx3m | K32: Upright | L32: Modelled | M32: 50 | N32: Fast rotating | O32: Medium | P32: =VLOOKUP(N32,Dropdowns!$C$51:$F$56,R32+1,FALSE) -> Light < 11km/hr. Wind felt on face | Q32: 2 | R32: =VLOOKUP(N32,Dropdowns!$I$52:$L$56,HLOOKUP(O32,Dropdowns!$J$50:$L$51,2,FALSE)+1,FALSE) -> 1
A33: Antelco | B33: Rotor Rain | C33: Standard | D33: 315 | E33: 2.4 Red | F33: 250 | G33: 0.99 | H33: 1.1 | I33: 32.3 | J33: 3mx3m | K33: Upright | L33: Modelled | M33: 50 | N33: Fast rotating | O33: Medium | P33: =VLOOKUP(N33,Dropdowns!$C$51:$F$56,R33+1,FALSE) -> Light < 11km/hr. Wind felt on face | Q33: 2 | R33: =VLOOKUP(N33,Dropdowns!$I$52:$L$56,HLOOKUP(O33,Dropdowns!$J$50:$L$51,2,FALSE)+1,FALSE) -> 1
A34: Antelco | B34: Rotor Rain | C34: Standard | D34: 386 | E34: 2.8 Purple | F34: 200 | G34: 0.99 | H34: 1.1 | I34: 42.4 | J34: 3mx3m | K34: Upright | L34: Modelled | M34: 50 | N34: Fast rotating | O34: Medium | P34: =VLOOKUP(N34,Dropdowns!$C$51:$F$56,R34+1,FALSE) -> Light < 11km/hr. Wind felt on face | Q34: 2 | R34: =VLOOKUP(N34,Dropdowns!$I$52:$L$56,HLOOKUP(O34,Dropdowns!$J$50:$L$51,2,FALSE)+1,FALSE) -> 1
A35: Antelco | B35: Inverted Rotor Max | C35: Inverted | D35: 465 | E35: 2.8 Red | F35: 250 | G35: 0.99 | H35: 1 | I35: 51.9 | J35: 3mx3m | K35: Inverted | L35: Modelled | M35: 200 | N35: Fast rotating | O35: Large | P35: =VLOOKUP(N35,Dropdowns!$C$51:$F$56,R35+1,FALSE) -> Light < 11km/hr. Wind felt on face | Q35: 3 | R35: =VLOOKUP(N35,Dropdowns!$I$52:$L$56,HLOOKUP(O35,Dropdowns!$J$50:$L$51,2,FALSE)+1,FALSE) -> 2
A36: Rivulis | B36: Rondo inverted | C36: Green? | D36: 41 | E36: 1.0 Blue | F36: 150 | G36: 0.98 | H36: 1 | I36: 4.3 | J36: 3mx3m | K36: Inverted | L36: Modelled | M36: 200 | N36: Fast rotating | O36: Small | P36: =VLOOKUP(N36,Dropdowns!$C$51:$F$56,R36+1,FALSE) -> Light < 11km/hr. Wind felt on face | Q36: 1 | R36: =VLOOKUP(N36,Dropdowns!$I$52:$L$56,HLOOKUP(O36,Dropdowns!$J$50:$L$51,2,FALSE)+1,FALSE) -> 1
A37: Netafim | B37: Spin Clear | C37: Red | D37: 90 | E37: Orange | F37: 200 | G37: 0.98 | H37: 1 | I37: 5.7 | J37: 4mx4m | K37: Inverted | L37: Modelled | M37: 180 | N37: Fast rotating | O37: Medium | P37: =VLOOKUP(N37,Dropdowns!$C$51:$F$56,R37+1,FALSE) -> Light < 11km/hr. Wind felt on face | Q37: 2 | R37: =VLOOKUP(N37,Dropdowns!$I$52:$L$56,HLOOKUP(O37,Dropdowns!$J$50:$L$51,2,FALSE)+1,FALSE) -> 1
A38: Rivulis | B38: Rondo inverted | C38: Green? | D38: 73 | E38: 1.2 Green | F38: 200 | G38: 0.98 | H38: 1.1 | I38: 5.9 | J38: 3.5mx3.5m | K38: Inverted | L38: Modelled | M38: 200 | N38: Fast rotating | O38: Medium | P38: =VLOOKUP(N38,Dropdowns!$C$51:$F$56,R38+1,FALSE) -> Light < 11km/hr. Wind felt on face | Q38: 2 | R38: =VLOOKUP(N38,Dropdowns!$I$52:$L$56,HLOOKUP(O38,Dropdowns!$J$50:$L$51,2,FALSE)+1,FALSE) -> 1
A39: Rivulis | B39: Rondo inverted | C39: Green? | D39: 81 | E39: 1.4 Red | F39: 150 | G39: 0.98 | H39: 1.1 | I39: 6.3 | J39: 3.5mx3.5m | K39: Inverted | L39: Modelled | M39: 200 | N39: Fast rotating | O39: Medium | P39: =VLOOKUP(N39,Dropdowns!$C$51:$F$56,R39+1,FALSE) -> Light < 11km/hr. Wind felt on face | Q39: 2 | R39: =VLOOKUP(N39,Dropdowns!$I$52:$L$56,HLOOKUP(O39,Dropdowns!$J$50:$L$51,2,FALSE)+1,FALSE) -> 1
A40: Rivulis | B40: Rondo inverted | C40: Green? | D40: 63 | E40: 1.2 Green | F40: 150 | G40: 0.98 | H40: 1 | I40: 6.6 | J40: 3mx3m | K40: Inverted | L40: Modelled | M40: 200 | N40: Fast rotating | O40: Medium | P40: =VLOOKUP(N40,Dropdowns!$C$51:$F$56,R40+1,FALSE) -> Light < 11km/hr. Wind felt on face | Q40: 2 | R40: =VLOOKUP(N40,Dropdowns!$I$52:$L$56,HLOOKUP(O40,Dropdowns!$J$50:$L$51,2,FALSE)+1,FALSE) -> 1
A41: Rivulis | B41: Rondo inverted | C41: Green? | D41: 114 | E41: 1.6 White | F41: 150 | G41: 0.98 | H41: 1 | I41: 6.7 | J41: 4mx4m | K41: Inverted | L41: Modelled | M41: 200 | N41: Fast rotating | O41: Medium | P41: =VLOOKUP(N41,Dropdowns!$C$51:$F$56,R41+1,FALSE) -> Light < 11km/hr. Wind felt on face | Q41: 2 | R41: =VLOOKUP(N41,Dropdowns!$I$52:$L$56,HLOOKUP(O41,Dropdowns!$J$50:$L$51,2,FALSE)+1,FALSE) -> 1
A42: Nelson | B42: R2000 | C42: K4 12° Wine | D42: 459 | E42: #13 Yellow | F42: 310 | G42: 0.98 | H42: 1.1 | I42: 6.9 | J42: 8mx8m | K42: Upright | L42: Modelled | M42: 31 | N42: Single stream rotator | O42: Large | P42: =VLOOKUP(N42,Dropdowns!$C$51:$F$56,R42+1,FALSE) -> Moderate <28 km/hr. Dust & loose paper lifted. | Q42: 3 | R42: =VLOOKUP(N42,Dropdowns!$I$52:$L$56,HLOOKUP(O42,Dropdowns!$J$50:$L$51,2,FALSE)+1,FALSE) -> 3
A43: Rivulis | B43: Rondo inverted | C43: Green? | D43: 45 | E43: 1.0 Blue | F43: 200 | G43: 0.98 | H43: 1 | I43: 7.1 | J43: 2.5mx2.5m | K43: Inverted | L43: Modelled | M43: 200 | N43: Fast rotating | O43: Small | P43: =VLOOKUP(N43,Dropdowns!$C$51:$F$56,R43+1,FALSE) -> Light < 11km/hr. Wind felt on face | Q43: 1 | R43: =VLOOKUP(N43,Dropdowns!$I$52:$L$56,HLOOKUP(O43,Dropdowns!$J$50:$L$51,2,FALSE)+1,FALSE) -> 1
A44: Rivulis | B44: Rondo inverted | C44: Green? | D44: 73 | E44: 1.2 Green | F44: 200 | G44: 0.98 | H44: 1 | I44: 8 | J44: 3mx3m | K44: Inverted | L44: Modelled | M44: 200 | N44: Fast rotating | O44: Medium | P44: =VLOOKUP(N44,Dropdowns!$C$51:$F$56,R44+1,FALSE) -> Light < 11km/hr. Wind felt on face | Q44: 2 | R44: =VLOOKUP(N44,Dropdowns!$I$52:$L$56,HLOOKUP(O44,Dropdowns!$J$50:$L$51,2,FALSE)+1,FALSE) -> 1
A45: RainBird | B45: LF1200 | C45: 16-red | D45: 481 | E45: Yellow | F45: 350 | G45: 0.98 | H45: 1.1 | I45: 8.4 | J45: 7.5mx7.5m | K45: Upright | L45: Modelled | M45: 30 | N45: Impact | O45: Large | P45: =VLOOKUP(N45,Dropdowns!$C$51:$F$56,R45+1,FALSE) -> Moderate <28 km/hr. Dust & loose paper lifted. | Q45: 3 | R45: =VLOOKUP(N45,Dropdowns!$I$52:$L$56,HLOOKUP(O45,Dropdowns!$J$50:$L$51,2,FALSE)+1,FALSE) -> 3
A46: Nelson | B46: R10TURBO | C46: P6 9° Blue | D46: 220 | E46: #78 Blue | F46: 207 | G46: 0.98 | H46: 1 | I46: 9.1 | J46: 5mx5m | K46: Upright | L46: Modelled | M46: 30.5 | N46: Single stream rotator | O46: Medium | P46: =VLOOKUP(N46,Dropdowns!$C$51:$F$56,R46+1,FALSE) -> Gentle < 19 km/hr. Flags flap | Q46: 2 | R46: =VLOOKUP(N46,Dropdowns!$I$52:$L$56,HLOOKUP(O46,Dropdowns!$J$50:$L$51,2,FALSE)+1,FALSE) -> 2
A47: RainBird | B47: LF1200 | C47: 17-powder blue | D47: 379 | E47: Orange | F47: 420 | G47: 0.98 | H47: 1 | I47: 10.2 | J47: 6mx6m | K47: Upright | L47: Modelled | M47: 30 | N47: Impact | O47: Medium | P47: =VLOOKUP(N47,Dropdowns!$C$51:$F$56,R47+1,FALSE) -> Moderate <28 km/hr. Dust & loose paper lifted. | Q47: 2 | R47: =VLOOKUP(N47,Dropdowns!$I$52:$L$56,HLOOKUP(O47,Dropdowns!$J$50:$L$51,2,FALSE)+1,FALSE) -> 3
A48: RainBird | B48: LF2400 | C48: 10-lime | D48: 881 | E48: Black | F48: 420 | G48: 0.98 | H48: 1 | I48: 10.4 | J48: 9mx9m | K48: Upright | L48: Modelled | M48: 30 | N48: Impact | O48: Large | P48: =VLOOKUP(N48,Dropdowns!$C$51:$F$56,R48+1,FALSE) -> Moderate <28 km/hr. Dust & loose paper lifted. | Q48: 3 | R48: =VLOOKUP(N48,Dropdowns!$I$52:$L$56,HLOOKUP(O48,Dropdowns!$J$50:$L$51,2,FALSE)+1,FALSE) -> 3
A49: RainBird | B49: LF2400 | C49: Not specified | D49: 881 | E49: Black | F49: 420 | G49: 0.98 | H49: 1 | I49: 10.4 | J49: 9mx9m | K49: Upright | L49: Modelled | M49: 30 | N49: Impact | O49: Large | P49: =VLOOKUP(N49,Dropdowns!$C$51:$F$56,R49+1,FALSE) -> Moderate <28 km/hr. Dust & loose paper lifted. | Q49: 3 | R49: =VLOOKUP(N49,Dropdowns!$I$52:$L$56,HLOOKUP(O49,Dropdowns!$J$50:$L$51,2,FALSE)+1,FALSE) -> 3
A50: RainBird | B50: LF1200 | C50: 10-white | D50: 361 | E50: Orange | F50: 385 | G50: 0.98 | H50: 1.1 | I50: 10.7 | J50: 5.5mx5.5m | K50: Upright | L50: Modelled | M50: 30 | N50: Impact | O50: Medium | P50: =VLOOKUP(N50,Dropdowns!$C$51:$F$56,R50+1,FALSE) -> Moderate <28 km/hr. Dust & loose paper lifted. | Q50: 2 | R50: =VLOOKUP(N50,Dropdowns!$I$52:$L$56,HLOOKUP(O50,Dropdowns!$J$50:$L$51,2,FALSE)+1,FALSE) -> 3
A51: NaanDan | B51: Mamkad 16 | C51: Standard | D51: 270 | E51: Black 270 | F51: 200 | G51: 0.98 | H51: 1.1 | I51: 10.7 | J51: 5mx5m | K51: Upright | L51: Modelled | M51: 60 | N51: Single stream rotator | O51: Medium | P51: =VLOOKUP(N51,Dropdowns!$C$51:$F$56,R51+1,FALSE) -> Gentle < 19 km/hr. Flags flap | Q51: 2 | R51: =VLOOKUP(N51,Dropdowns!$I$52:$L$56,HLOOKUP(O51,Dropdowns!$J$50:$L$51,2,FALSE)+1,FALSE) -> 2
A52: RainBird | B52: LF1200 | C52: 21-olive | D52: 409 | E52: Purple | F52: 350 | G52: 0.98 | H52: 1 | I52: 10.9 | J52: 6mx6m | K52: Upright | L52: Modelled | M52: 30 | N52: Impact | O52: Large | P52: =VLOOKUP(N52,Dropdowns!$C$51:$F$56,R52+1,FALSE) -> Moderate <28 km/hr. Dust & loose paper lifted. | Q52: 3 | R52: =VLOOKUP(N52,Dropdowns!$I$52:$L$56,HLOOKUP(O52,Dropdowns!$J$50:$L$51,2,FALSE)+1,FALSE) -> 3
A53: Rivulis | B53: Rondo Anti-ant | C53: Black? | D53: 132 | E53: 1.6 White | F53: 200 | G53: 0.98 | H53: 1 | I53: 10.9 | J53: 3.5mx3.5m | K53: Upright | L53: Modelled | M53: 20 | N53: Fast rotating | O53: Medium | P53: =VLOOKUP(N53,Dropdowns!$C$51:$F$56,R53+1,FALSE) -> Light < 11km/hr. Wind felt on face | Q53: 2 | R53: =VLOOKUP(N53,Dropdowns!$I$52:$L$56,HLOOKUP(O53,Dropdowns!$J$50:$L$51,2,FALSE)+1,FALSE) -> 1
A54: Rivulis | B54: Rondo | C54: Black? | D54: 77 | E54: 1.2 Green | F54: 200 | G54: 0.98 | H54: 1 | I54: 11 | J54: 2.5mx2.5m | K54: Upright | L54: Modelled | M54: 20 | N54: Fast rotating | O54: Medium | P54: =VLOOKUP(N54,Dropdowns!$C$51:$F$56,R54+1,FALSE) -> Light < 11km/hr. Wind felt on face | Q54: 2 | R54: =VLOOKUP(N54,Dropdowns!$I$52:$L$56,HLOOKUP(O54,Dropdowns!$J$50:$L$51,2,FALSE)+1,FALSE) -> 1
A55: Nelson | B55: R10TURBO | C55: P6 9° Blue | D55: 139 | E55: #65 Gray | F55: 172 | G55: 0.98 | H55: 1 | I55: 11.1 | J55: 3.5mx3.5m | K55: Upright | L55: Modelled | M55: 31 | N55: Single stream rotator | O55: Medium | P55: =VLOOKUP(N55,Dropdowns!$C$51:$F$56,R55+1,FALSE) -> Gentle < 19 km/hr. Flags flap | Q55: 2 | R55: =VLOOKUP(N55,Dropdowns!$I$52:$L$56,HLOOKUP(O55,Dropdowns!$J$50:$L$51,2,FALSE)+1,FALSE) -> 2
A56: Nelson | B56: R10TURBO | C56: P6 9° Blue | D56: 139 | E56: #65 Gray | F56: 172 | G56: 0.98 | H56: 1 | I56: 11.1 | J56: 3.5mx3.5m | K56: Upright | L56: Modelled | M56: 31 | N56: Single stream rotator | O56: Medium | P56: =VLOOKUP(N56,Dropdowns!$C$51:$F$56,R56+1,FALSE) -> Gentle < 19 km/hr. Flags flap | Q56: 2 | R56: =VLOOKUP(N56,Dropdowns!$I$52:$L$56,HLOOKUP(O56,Dropdowns!$J$50:$L$51,2,FALSE)+1,FALSE) -> 2
A57: Nelson | B57: R2000 | C57: K4 24° Black | D57: 458 | E57: #13 Yellow | F57: 310 | G57: 0.98 | H57: 1 | I57: 11.1 | J57: 6.5mx6.5m | K57: Upright | L57: Modelled | M57: 45.7 | N57: Single stream rotator | O57: Large | P57: =VLOOKUP(N57,Dropdowns!$C$51:$F$56,R57+1,FALSE) -> Moderate <28 km/hr. Dust & loose paper lifted. | Q57: 3 | R57: =VLOOKUP(N57,Dropdowns!$I$52:$L$56,HLOOKUP(O57,Dropdowns!$J$50:$L$51,2,FALSE)+1,FALSE) -> 3
A58: Antelco | B58: Rotor Spray | C58: Upright Rotor | D58: 45 | E58: 1.0 Blue | F58: 150 | G58: 0.98 | H58: 1 | I58: 11.3 | J58: 2mx2m | K58: Upright | L58: Modelled | M58: 50 | N58: Fast rotating | O58: Small | P58: =VLOOKUP(N58,Dropdowns!$C$51:$F$56,R58+1,FALSE) -> Light < 11km/hr. Wind felt on face | Q58: 1 | R58: =VLOOKUP(N58,Dropdowns!$I$52:$L$56,HLOOKUP(O58,Dropdowns!$J$50:$L$51,2,FALSE)+1,FALSE) -> 1
A59: RainBird | B59: LF1200 | C59: 21-olive | D59: 429 | E59: Purple | F59: 385 | G59: 0.98 | H59: 1 | I59: 11.4 | J59: 6mx6m | K59: Upright | L59: Modelled | M59: 30 | N59: Impact | O59: Large | P59: =VLOOKUP(N59,Dropdowns!$C$51:$F$56,R59+1,FALSE) -> Moderate <28 km/hr. Dust & loose paper lifted. | Q59: 3 | R59: =VLOOKUP(N59,Dropdowns!$I$52:$L$56,HLOOKUP(O59,Dropdowns!$J$50:$L$51,2,FALSE)+1,FALSE) -> 3
A60: RainBird | B60: LF800 | C60: 12-copper | D60: 218 | E60: White | F60: 315 | G60: 0.98 | H60: 1 | I60: 11.9 | J60: 4mx4m | K60: Upright | L60: Modelled | M60: 30 | N60: Impact | O60: Medium | P60: =VLOOKUP(N60,Dropdowns!$C$51:$F$56,R60+1,FALSE) -> Moderate <28 km/hr. Dust & loose paper lifted. | Q60: 2 | R60: =VLOOKUP(N60,Dropdowns!$I$52:$L$56,HLOOKUP(O60,Dropdowns!$J$50:$L$51,2,FALSE)+1,FALSE) -> 3
A61: Nelson | B61: R10TURBO | C61: P6 9° Blue | D61: 152 | E61: #65 Gray | F61: 207 | G61: 0.98 | H61: 1 | I61: 12 | J61: 3.5mx3.5m | K61: Upright | L61: Modelled | M61: 31 | N61: Single stream rotator | O61: Medium | P61: =VLOOKUP(N61,Dropdowns!$C$51:$F$56,R61+1,FALSE) -> Gentle < 19 km/hr. Flags flap | Q61: 2 | R61: =VLOOKUP(N61,Dropdowns!$I$52:$L$56,HLOOKUP(O61,Dropdowns!$J$50:$L$51,2,FALSE)+1,FALSE) -> 2
A62: Nelson | B62: R10TURBO | C62: P6 9° Blue | D62: 152 | E62: #65 Gray | F62: 207 | G62: 0.98 | H62: 1 | I62: 12 | J62: 3.5mx3.5m | K62: Upright | L62: Modelled | M62: 31 | N62: Single stream rotator | O62: Medium | P62: =VLOOKUP(N62,Dropdowns!$C$51:$F$56,R62+1,FALSE) -> Gentle < 19 km/hr. Flags flap | Q62: 2 | R62: =VLOOKUP(N62,Dropdowns!$I$52:$L$56,HLOOKUP(O62,Dropdowns!$J$50:$L$51,2,FALSE)+1,FALSE) -> 2
A63: RainBird | B63: LF1200 | C63: 16-red | D63: 450 | E63: Purple | F63: 350 | G63: 0.98 | H63: 1 | I63: 12.2 | J63: 5.5mx5.5m | K63: Upright | L63: Modelled | M63: 30 | N63: Impact | O63: Large | P63: =VLOOKUP(N63,Dropdowns!$C$51:$F$56,R63+1,FALSE) -> Moderate <28 km/hr. Dust & loose paper lifted. | Q63: 3 | R63: =VLOOKUP(N63,Dropdowns!$I$52:$L$56,HLOOKUP(O63,Dropdowns!$J$50:$L$51,2,FALSE)+1,FALSE) -> 3
A64: Rivulis | B64: Rondo inverted | C64: Green? | D64: 81 | E64: 1.4 Red | F64: 150 | G64: 0.98 | H64: 1 | I64: 12.4 | J64: 2.5mx2.5m | K64: Inverted | L64: Modelled | M64: 200 | N64: Fast rotating | O64: Medium | P64: =VLOOKUP(N64,Dropdowns!$C$51:$F$56,R64+1,FALSE) -> Light < 11km/hr. Wind felt on face | Q64: 2 | R64: =VLOOKUP(N64,Dropdowns!$I$52:$L$56,HLOOKUP(O64,Dropdowns!$J$50:$L$51,2,FALSE)+1,FALSE) -> 1
A65: Nelson | B65: R10 | C65: P4 9° White | D65: 145 | E65: #60 Light Red | F65: 276 | G65: 0.98 | H65: 1 | I65: 12.5 | J65: 3.5mx3.5m | K65: Upright | L65: Modelled | M65: 31 | N65: Single stream rotator | O65: Medium | P65: =VLOOKUP(N65,Dropdowns!$C$51:$F$56,R65+1,FALSE) -> Gentle < 19 km/hr. Flags flap | Q65: 2 | R65: =VLOOKUP(N65,Dropdowns!$I$52:$L$56,HLOOKUP(O65,Dropdowns!$J$50:$L$51,2,FALSE)+1,FALSE) -> 2
A66: RainBird | B66: LF800 | C66: 15-brown | D66: 229 | E66: White | F66: 350 | G66: 0.98 | H66: 1 | I66: 12.7 | J66: 4mx4m | K66: Upright | L66: Modelled | M66: 30 | N66: Impact | O66: Medium | P66: =VLOOKUP(N66,Dropdowns!$C$51:$F$56,R66+1,FALSE) -> Moderate <28 km/hr. Dust & loose paper lifted. | Q66: =IF(O66="Small",1,IF(O66="Medium",2,IF(O66="Large",3,4))) -> 2 | R66: =VLOOKUP(N66,Dropdowns!$I$52:$L$56,HLOOKUP(O66,Dropdowns!$J$50:$L$51,2,FALSE)+1,FALSE) -> 3
A67: Antelco | B67: Rotor Rain | C67: Standard | D67: 122 | E67: 1.7 Blue | F67: 150 | G67: 0.98 | H67: 1.1 | I67: 12.8 | J67: 3mx3m | K67: Upright | L67: Modelled | M67: 50 | N67: Fast rotating | O67: =IF(D67<56,"Small",IF(AND(D67>55,D67<401),"Medium","Large")) -> Medium | P67: =VLOOKUP(N67,Dropdowns!$C$51:$F$56,R67+1,FALSE) -> Light < 11km/hr. Wind felt on face | Q67: 2 | R67: =VLOOKUP(N67,Dropdowns!$I$52:$L$56,HLOOKUP(O67,Dropdowns!$J$50:$L$51,2,FALSE)+1,FALSE) -> 1
A68: RainBird | B68: LF1200 | C68: 21-olive | D68: 481 | E68: Yellow | F68: 350 | G68: 0.98 | H68: 1 | I68: 13 | J68: 6mx6m | K68: Upright | L68: Modelled | M68: 30 | N68: Impact | O68: Large | P68: =VLOOKUP(N68,Dropdowns!$C$51:$F$56,R68+1,FALSE) -> Moderate <28 km/hr. Dust & loose paper lifted. | Q68: 3 | R68: =VLOOKUP(N68,Dropdowns!$I$52:$L$56,HLOOKUP(O68,Dropdowns!$J$50:$L$51,2,FALSE)+1,FALSE) -> 3
A69: Philmac | B69: Challenger | C69: Standard? | D69: 120 | E69: Blue | F69: 150 | G69: 0.98 | H69: 1.1 | I69: 13.2 | J69: 3mx3m | K69: Upright | L69: Modelled | M69: 20 | N69: Fast rotating | O69: Medium | P69: =VLOOKUP(N69,Dropdowns!$C$51:$F$56,R69+1,FALSE) -> Light < 11km/hr. Wind felt on face | Q69: 2 | R69: =VLOOKUP(N69,Dropdowns!$I$52:$L$56,HLOOKUP(O69,Dropdowns!$J$50:$L$51,2,FALSE)+1,FALSE) -> 1
A70: RainBird | B70: LF1200 | C70: 16-red | D70: 454 | E70: Yellow | F70: 315 | G70: 0.98 | H70: 1 | I70: 13.5 | J70: 5.5mx5.5m | K70: Upright | L70: Modelled | M70: 30 | N70: Impact | O70: Large | P70: =VLOOKUP(N70,Dropdowns!$C$51:$F$56,R70+1,FALSE) -> Moderate <28 km/hr. Dust & loose paper lifted. | Q70: 3 | R70: =VLOOKUP(N70,Dropdowns!$I$52:$L$56,HLOOKUP(O70,Dropdowns!$J$50:$L$51,2,FALSE)+1,FALSE) -> 3
A71: Nelson | B71: R10TURBO | C71: P6 9° Blue | D71: 174 | E71: #70 White | F71: 207 | G71: 0.98 | H71: 1 | I71: 13.8 | J71: 3.5mx3.5m | K71: Upright | L71: Modelled | M71: 31 | N71: Single stream rotator | O71: Medium | P71: =VLOOKUP(N71,Dropdowns!$C$51:$F$56,R71+1,FALSE) -> Gentle < 19 km/hr. Flags flap | Q71: 2 | R71: =VLOOKUP(N71,Dropdowns!$I$52:$L$56,HLOOKUP(O71,Dropdowns!$J$50:$L$51,2,FALSE)+1,FALSE) -> 2
A72: Nelson | B72: R10TURBO | C72: P6 9° Blue | D72: 174 | E72: #70 White | F72: 207 | G72: 0.98 | H72: 1 | I72: 13.8 | J72: 3.5mx3.5m | K72: Upright | L72: Modelled | M72: 31 | N72: Single stream rotator | O72: Medium | P72: =VLOOKUP(N72,Dropdowns!$C$51:$F$56,R72+1,FALSE) -> Gentle < 19 km/hr. Flags flap | Q72: 2 | R72: =VLOOKUP(N72,Dropdowns!$I$52:$L$56,HLOOKUP(O72,Dropdowns!$J$50:$L$51,2,FALSE)+1,FALSE) -> 2
A73: RainBird | B73: LF1200 | C73: 17-powder blue | D73: 254 | E73: Blue | F73: 280 | G73: 0.98 | H73: 1 | I73: 14 | J73: 4mx4m | K73: Upright | L73: Modelled | M73: 30 | N73: Impact | O73: Medium | P73: =VLOOKUP(N73,Dropdowns!$C$51:$F$56,R73+1,FALSE) -> Moderate <28 km/hr. Dust & loose paper lifted. | Q73: 2 | R73: =VLOOKUP(N73,Dropdowns!$I$52:$L$56,HLOOKUP(O73,Dropdowns!$J$50:$L$51,2,FALSE)+1,FALSE) -> 3
A74: RainBird | B74: LF1200 | C74: 12-cyan | D74: 379 | E74: Orange | F74: 420 | G74: 0.98 | H74: 1 | I74: 14.2 | J74: 5mx5m | K74: Upright | L74: Modelled | M74: 30 | N74: Impact | O74: Medium | P74: =VLOOKUP(N74,Dropdowns!$C$51:$F$56,R74+1,FALSE) -> Moderate <28 km/hr. Dust & loose paper lifted. | Q74: 2 | R74: =VLOOKUP(N74,Dropdowns!$I$52:$L$56,HLOOKUP(O74,Dropdowns!$J$50:$L$51,2,FALSE)+1,FALSE) -> 3
A75: RainBird | B75: LF1200 | C75: 16-red | D75: 488 | E75: Green | F75: 280 | G75: 0.98 | H75: 1 | I75: 14.5 | J75: 5.5mx5.5m | K75: Upright | L75: Modelled | M75: 30 | N75: Impact | O75: Large | P75: =VLOOKUP(N75,Dropdowns!$C$51:$F$56,R75+1,FALSE) -> Moderate <28 km/hr. Dust & loose paper lifted. | Q75: 3 | R75: =VLOOKUP(N75,Dropdowns!$I$52:$L$56,HLOOKUP(O75,Dropdowns!$J$50:$L$51,2,FALSE)+1,FALSE) -> 3
A76: Toro | B76: S11 | C76: Standard | D76: 2160 | E76: Green x Yellow | F76: 400 | G76: 0.98 | H76: 1 | I76: 14.5 | J76: 12.5mx12.5m | K76: Upright | L76: Modelled | M76: 100 | N76: Impact | O76: Large | P76: =VLOOKUP(N76,Dropdowns!$C$51:$F$56,R76+1,FALSE) -> Moderate <28 km/hr. Dust & loose paper lifted. | Q76: 3 | R76: =VLOOKUP(N76,Dropdowns!$I$52:$L$56,HLOOKUP(O76,Dropdowns!$J$50:$L$51,2,FALSE)+1,FALSE) -> 3
A77: Rivulis | B77: Rondo inverted | C77: Green? | D77: 63 | E77: 1.2 Green | F77: 150 | G77: 0.98 | H77: 1.1 | I77: 14.9 | J77: 2mx2m | K77: Inverted | L77: Modelled | M77: 200 | N77: Fast rotating | O77: Medium | P77: =VLOOKUP(N77,Dropdowns!$C$51:$F$56,R77+1,FALSE) -> Light < 11km/hr. Wind felt on face | Q77: 2 | R77: =VLOOKUP(N77,Dropdowns!$I$52:$L$56,HLOOKUP(O77,Dropdowns!$J$50:$L$51,2,FALSE)+1,FALSE) -> 1
A78: RainBird | B78: LF2400 | C78: 22-dark green | D78: 670 | E78: Tan | F78: 385 | G78: 0.98 | H78: 1 | I78: 15 | J78: 6.5mx6.5m | K78: Upright | L78: Modelled | M78: 30 | N78: Impact | O78: Large | P78: =VLOOKUP(N78,Dropdowns!$C$51:$F$56,R78+1,FALSE) -> Moderate <28 km/hr. Dust & loose paper lifted. | Q78: 3 | R78: =VLOOKUP(N78,Dropdowns!$I$52:$L$56,HLOOKUP(O78,Dropdowns!$J$50:$L$51,2,FALSE)+1,FALSE) -> 3
A79: NaanDan | B79: Super 10 | C79: 360° | D79: 450 | E79: Yellow 450 | F79: 250 | G79: 0.98 | H79: 1.1 | I79: 15.3 | J79: 5.5mx5.5m | K79: Upright | L79: Modelled | M79: 60 | N79: Single stream rotator | O79: Large | P79: =VLOOKUP(N79,Dropdowns!$C$51:$F$56,R79+1,FALSE) -> Moderate <28 km/hr. Dust & loose paper lifted. | Q79: 3 | R79: =VLOOKUP(N79,Dropdowns!$I$52:$L$56,HLOOKUP(O79,Dropdowns!$J$50:$L$51,2,FALSE)+1,FALSE) -> 3
A80: RainBird | B80: LF2400 | C80: 22-dark green | D80: 702 | E80: Tan | F80: 420 | G80: 0.98 | H80: 1 | I80: 15.5 | J80: 6.5mx6.5m | K80: Upright | L80: Modelled | M80: 30 | N80: Impact | O80: Large | P80: =VLOOKUP(N80,Dropdowns!$C$51:$F$56,R80+1,FALSE) -> Moderate <28 km/hr. Dust & loose paper lifted. | Q80: 3 | R80: =VLOOKUP(N80,Dropdowns!$I$52:$L$56,HLOOKUP(O80,Dropdowns!$J$50:$L$51,2,FALSE)+1,FALSE) -> 3
A81: Nelson | B81: R10 | C81: P4 9° White | D81: 140 | E81: #60 Light Red | F81: 241 | G81: 0.98 | H81: 1.1 | I81: 15.6 | J81: 3mx3m | K81: Upright | L81: Modelled | M81: 30.5 | N81: Single stream rotator | O81: Medium | P81: =VLOOKUP(N81,Dropdowns!$C$51:$F$56,R81+1,FALSE) -> Gentle < 19 km/hr. Flags flap | Q81: 2 | R81: =VLOOKUP(N81,Dropdowns!$I$52:$L$56,HLOOKUP(O81,Dropdowns!$J$50:$L$51,2,FALSE)+1,FALSE) -> 2
A82: NaanDan | B82: 5035 | C82: Standard | D82: 2652 | E82: 6.0 x 2.5 | F82: 300 | G82: 0.98 | H82: 1 | I82: 15.7 | J82: 13mx13m | K82: Upright | L82: Modelled | M82: 50 | N82: Impact | O82: Large | P82: =VLOOKUP(N82,Dropdowns!$C$51:$F$56,R82+1,FALSE) -> Moderate <28 km/hr. Dust & loose paper lifted. | Q82: 3 | R82: =VLOOKUP(N82,Dropdowns!$I$52:$L$56,HLOOKUP(O82,Dropdowns!$J$50:$L$51,2,FALSE)+1,FALSE) -> 3
A83: Nelson | B83: R10TURBO | C83: P8 24° brown? | D83: 256 | E83: #78 Dark Blue | F83: 276 | G83: 0.98 | H83: 1 | I83: 16.2 | J83: 4mx4m | K83: Upright | L83: Modelled | M83: 46 | N83: Single stream rotator | O83: Medium | P83: =VLOOKUP(N83,Dropdowns!$C$51:$F$56,R83+1,FALSE) -> Gentle < 19 km/hr. Flags flap | Q83: 2 | R83: =VLOOKUP(N83,Dropdowns!$I$52:$L$56,HLOOKUP(O83,Dropdowns!$J$50:$L$51,2,FALSE)+1,FALSE) -> 2
A84: Rivulis | B84: Rondo | C84: Black? | D84: 122 | E84: 1.4 Red | F84: 250 | G84: 0.98 | H84: 1 | I84: 16.2 | J84: 2.5mx2.5m | K84: Upright | L84: Modelled | M84: 20 | N84: Fast rotating | O84: Medium | P84: =VLOOKUP(N84,Dropdowns!$C$51:$F$56,R84+1,FALSE) -> Light < 11km/hr. Wind felt on face | Q84: 2 | R84: =VLOOKUP(N84,Dropdowns!$I$52:$L$56,HLOOKUP(O84,Dropdowns!$J$50:$L$51,2,FALSE)+1,FALSE) -> 1
A85: RainBird | B85: LF800 | C85: 12-copper | D85: 298 | E85: Blue | F85: 385 | G85: 0.98 | H85: 1 | I85: 16.3 | J85: 4mx4m | K85: Upright | L85: Modelled | M85: 30 | N85: Impact | O85: Medium | P85: =VLOOKUP(N85,Dropdowns!$C$51:$F$56,R85+1,FALSE) -> Moderate <28 km/hr. Dust & loose paper lifted. | Q85: 2 | R85: =VLOOKUP(N85,Dropdowns!$I$52:$L$56,HLOOKUP(O85,Dropdowns!$J$50:$L$51,2,FALSE)+1,FALSE) -> 3
A86: Philmac | B86: Challenger | C86: Standard? | D86: 148 | E86: Grey | F86: 150 | G86: 0.98 | H86: 1 | I86: 16.6 | J86: 3mx3m | K86: Upright | L86: Modelled | M86: 20 | N86: Fast rotating | O86: Medium | P86: =VLOOKUP(N86,Dropdowns!$C$51:$F$56,R86+1,FALSE) -> Light < 11km/hr. Wind felt on face | Q86: 2 | R86: =VLOOKUP(N86,Dropdowns!$I$52:$L$56,HLOOKUP(O86,Dropdowns!$J$50:$L$51,2,FALSE)+1,FALSE) -> 1
A87: NaanDan | B87: Mamkad 16 | C87: Standard | D87: 270 | E87: Black 270 | F87: 200 | G87: 0.98 | H87: 1.1 | I87: 16.7 | J87: 4mx4m | K87: Upright | L87: Modelled | M87: 60 | N87: Single stream rotator | O87: Medium | P87: =VLOOKUP(N87,Dropdowns!$C$51:$F$56,R87+1,FALSE) -> Gentle < 19 km/hr. Flags flap | Q87: 2 | R87: =VLOOKUP(N87,Dropdowns!$I$52:$L$56,HLOOKUP(O87,Dropdowns!$J$50:$L$51,2,FALSE)+1,FALSE) -> 2
A88: RainBird | B88: LF1200 | C88: 16-red | D88: 307 | E88: Orange | F88: 280 | G88: 0.98 | H88: 1 | I88: 16.8 | J88: 4mx4m | K88: Upright | L88: Modelled | M88: 30 | N88: Impact | O88: Medium | P88: =VLOOKUP(N88,Dropdowns!$C$51:$F$56,R88+1,FALSE) -> Moderate <28 km/hr. Dust & loose paper lifted. | Q88: 2 | R88: =VLOOKUP(N88,Dropdowns!$I$52:$L$56,HLOOKUP(O88,Dropdowns!$J$50:$L$51,2,FALSE)+1,FALSE) -> 3
A89: RainBird | B89: LF1200 | C89: 21-olive | D89: 307 | E89: Orange | F89: 280 | G89: 0.98 | H89: 1 | I89: 16.8 | J89: 4mx4m | K89: Upright | L89: Modelled | M89: 30 | N89: Impact | O89: Medium | P89: =VLOOKUP(N89,Dropdowns!$C$51:$F$56,R89+1,FALSE) -> Moderate <28 km/hr. Dust & loose paper lifted. | Q89: 2 | R89: =VLOOKUP(N89,Dropdowns!$I$52:$L$56,HLOOKUP(O89,Dropdowns!$J$50:$L$51,2,FALSE)+1,FALSE) -> 3
A90: RainBird | B90: LF1200 | C90: 17-powder blue | D90: 311 | E90: Blue | F90: 420 | G90: 0.98 | H90: 1 | I90: 17 | J90: 4mx4m | K90: Upright | L90: Modelled | M90: 30 | N90: Impact | O90: Medium | P90: =VLOOKUP(N90,Dropdowns!$C$51:$F$56,R90+1,FALSE) -> Moderate <28 km/hr. Dust & loose paper lifted. | Q90: 2 | R90: =VLOOKUP(N90,Dropdowns!$I$52:$L$56,HLOOKUP(O90,Dropdowns!$J$50:$L$51,2,FALSE)+1,FALSE) -> 3
A91: RainBird | B91: LF1200 | C91: 10-white | D91: 454 | E91: Yellow | F91: 315 | G91: 0.98 | H91: 1 | I91: 17 | J91: 5mx5m | K91: Upright | L91: Modelled | M91: 30 | N91: Impact | O91: Large | P91: =VLOOKUP(N91,Dropdowns!$C$51:$F$56,R91+1,FALSE) -> Moderate <28 km/hr. Dust & loose paper lifted. | Q91: 3 | R91: =VLOOKUP(N91,Dropdowns!$I$52:$L$56,HLOOKUP(O91,Dropdowns!$J$50:$L$51,2,FALSE)+1,FALSE) -> 3
A92: RainBird | B92: LF800 | C92: 15-brown | D92: 311 | E92: Blue | F92: 420 | G92: 0.98 | H92: 1 | I92: 17 | J92: 4mx4m | K92: Upright | L92: Modelled | M92: 30 | N92: Impact | O92: Medium | P92: =VLOOKUP(N92,Dropdowns!$C$51:$F$56,R92+1,FALSE) -> Moderate <28 km/hr. Dust & loose paper lifted. | Q92: 2 | R92: =VLOOKUP(N92,Dropdowns!$I$52:$L$56,HLOOKUP(O92,Dropdowns!$J$50:$L$51,2,FALSE)+1,FALSE) -> 3
A93: NaanDan | B93: 5022 | C93: Standard | D93: 841 | E93: 3.0 x 1.8 | F93: 300 | G93: 0.98 | H93: 1 | I93: 17.1 | J93: 7mx7m | K93: Upright | L93: Modelled | M93: 50 | N93: Impact | O93: Large | P93: =VLOOKUP(N93,Dropdowns!$C$51:$F$56,R93+1,FALSE) -> Moderate <28 km/hr. Dust & loose paper lifted. | Q93: 3 | R93: =VLOOKUP(N93,Dropdowns!$I$52:$L$56,HLOOKUP(O93,Dropdowns!$J$50:$L$51,2,FALSE)+1,FALSE) -> 3
A94: Nelson | B94: R10TURBO | C94: P6 9° Blue | D94: 202 | E94: #70 White | F94: 276 | G94: 0.98 | H94: 1 | I94: 17.1 | J94: 3.5mx3.5m | K94: Upright | L94: Modelled | M94: 31 | N94: Single stream rotator | O94: Medium | P94: =VLOOKUP(N94,Dropdowns!$C$51:$F$56,R94+1,FALSE) -> Gentle < 19 km/hr. Flags flap | Q94: 2 | R94: =VLOOKUP(N94,Dropdowns!$I$52:$L$56,HLOOKUP(O94,Dropdowns!$J$50:$L$51,2,FALSE)+1,FALSE) -> 2
A95: Nelson | B95: R10TURBO | C95: P6 9° Blue | D95: 159 | E95: #70 White | F95: 172 | G95: 0.98 | H95: 1.1 | I95: 17.2 | J95: 3mx3m | K95: Upright | L95: Modelled | M95: 30.5 | N95: Single stream rotator | O95: Medium | P95: =VLOOKUP(N95,Dropdowns!$C$51:$F$56,R95+1,FALSE) -> Gentle < 19 km/hr. Flags flap | Q95: 2 | R95: =VLOOKUP(N95,Dropdowns!$I$52:$L$56,HLOOKUP(O95,Dropdowns!$J$50:$L$51,2,FALSE)+1,FALSE) -> 2
A96: Nelson | B96: R10TURBO | C96: P6 9° Blue | D96: 159 | E96: #70 White | F96: 172 | G96: 0.98 | H96: 1.1 | I96: 17.2 | J96: 3mx3m | K96: Upright | L96: Modelled | M96: 30.5 | N96: Single stream rotator | O96: Medium | P96: =VLOOKUP(N96,Dropdowns!$C$51:$F$56,R96+1,FALSE) -> Gentle < 19 km/hr. Flags flap | Q96: 2 | R96: =VLOOKUP(N96,Dropdowns!$I$52:$L$56,HLOOKUP(O96,Dropdowns!$J$50:$L$51,2,FALSE)+1,FALSE) -> 2
A97: RainBird | B97: LF1200 | C97: 16-red | D97: 316 | E97: Purple | F97: 210 | G97: 0.98 | H97: 1 | I97: 17.3 | J97: 4mx4m | K97: Upright | L97: Modelled | M97: 30 | N97: Impact | O97: Medium | P97: =VLOOKUP(N97,Dropdowns!$C$51:$F$56,R97+1,FALSE) -> Moderate <28 km/hr. Dust & loose paper lifted. | Q97: 2 | R97: =VLOOKUP(N97,Dropdowns!$I$52:$L$56,HLOOKUP(O97,Dropdowns!$J$50:$L$51,2,FALSE)+1,FALSE) -> 3
A98: Rivulis | B98: Rondo inverted | C98: Blue? | D98: 114 | E98: 1.6 White | F98: 150 | G98: 0.98 | H98: 1.1 | I98: 17.4 | J98: 2.5mx2.5m | K98: Inverted | L98: Modelled | M98: 200 | N98: Fast rotating | O98: Medium | P98: =VLOOKUP(N98,Dropdowns!$C$51:$F$56,R98+1,FALSE) -> Light < 11km/hr. Wind felt on face | Q98: 2 | R98: =VLOOKUP(N98,Dropdowns!$I$52:$L$56,HLOOKUP(O98,Dropdowns!$J$50:$L$51,2,FALSE)+1,FALSE) -> 1
A99: NaanDan | B99: Modular Group | C99: Green swivel | D99: 70 | E99: Grey 70 | F99: 200 | G99: 0.98 | H99: 1 | I99: 17.7 | J99: 2mx2m | K99: Inverted | L99: Modelled | M99: 180 | N99: Fast rotating | O99: Medium | P99: =VLOOKUP(N99,Dropdowns!$C$51:$F$56,R99+1,FALSE) -> Light < 11km/hr. Wind felt on face | Q99: 2 | R99: =VLOOKUP(N99,Dropdowns!$I$52:$L$56,HLOOKUP(O99,Dropdowns!$J$50:$L$51,2,FALSE)+1,FALSE) -> 1
A100: RainBird | B100: LF1200 | C100: 21-olive | D100: 286 | E100: Orange | F100: 245 | G100: 0.98 | H100: 1 | I100: 17.8 | J100: 4mx4m | K100: Upright | L100: Modelled | M100: 30 | N100: Impact | O100: Medium | P100: =VLOOKUP(N100,Dropdowns!$C$51:$F$56,R100+1,FALSE) -> Moderate <28 km/hr. Dust & loose paper lifted. | Q100: 2 | R100: =VLOOKUP(N100,Dropdowns!$I$52:$L$56,HLOOKUP(O100,Dropdowns!$J$50:$L$51,2,FALSE)+1,FALSE) -> 3
A101: RainBird | B101: LF1200 | C101: 12-cyan | D101: 481 | E101: Yellow | F101: 350 | G101: 0.98 | H101: 1 | I101: 18 | J101: 5mx5m | K101: Upright | L101: Modelled | M101: 30 | N101: Impact | O101: Large | P101: =VLOOKUP(N101,Dropdowns!$C$51:$F$56,R101+1,FALSE) -> Moderate <28 km/hr. Dust & loose paper lifted. | Q101: 3 | R101: =VLOOKUP(N101,Dropdowns!$I$52:$L$56,HLOOKUP(O101,Dropdowns!$J$50:$L$51,2,FALSE)+1,FALSE) -> 3
A102: RainBird | B102: LF1200 | C102: 17-powder blue | D102: 481 | E102: Yellow | F102: 350 | G102: 0.98 | H102: 1 | I102: 18 | J102: 5mx5m | K102: Upright | L102: Modelled | M102: 30 | N102: Impact | O102: Large | P102: =VLOOKUP(N102,Dropdowns!$C$51:$F$56,R102+1,FALSE) -> Moderate <28 km/hr. Dust & loose paper lifted. | Q102: 3 | R102: =VLOOKUP(N102,Dropdowns!$I$52:$L$56,HLOOKUP(O102,Dropdowns!$J$50:$L$51,2,FALSE)+1,FALSE) -> 3
A103: RainBird | B103: LF2400 | C103: 22-dark green | D103: 575 | E103: Tan | F103: 315 | G103: 0.98 | H103: 1.1 | I103: 18 | J103: 5.5mx5.5m | K103: Upright | L103: Modelled | M103: 30 | N103: Impact | O103: Large | P103: =VLOOKUP(N103,Dropdowns!$C$51:$F$56,R103+1,FALSE) -> Moderate <28 km/hr. Dust & loose paper lifted. | Q103: 3 | R103: =VLOOKUP(N103,Dropdowns!$I$52:$L$56,HLOOKUP(O103,Dropdowns!$J$50:$L$51,2,FALSE)+1,FALSE) -> 3
A104: Rivulis | B104: Rondo inverted | C104: Blue? | D104: 168 | E104: 1.8 Violet | F104: 200 | G104: 0.98 | H104: 1 | I104: 18.1 | J104: 3mx3m | K104: Inverted | L104: Modelled | M104: 200 | N104: Fast rotating | O104: Medium | P104: =VLOOKUP(N104,Dropdowns!$C$51:$F$56,R104+1,FALSE) -> Light < 11km/hr. Wind felt on face | Q104: 2 | R104: =VLOOKUP(N104,Dropdowns!$I$52:$L$56,HLOOKUP(O104,Dropdowns!$J$50:$L$51,2,FALSE)+1,FALSE) -> 1
A105: RainBird | B105: LF1200 | C105: 21-olive | D105: 493 | E105: Tan | F105: 210 | G105: 0.98 | H105: 1 | I105: 18.3 | J105: 5mx5m | K105: Upright | L105: Modelled | M105: 30 | N105: Impact | O105: Large | P105: =VLOOKUP(N105,Dropdowns!$C$51:$F$56,R105+1,FALSE) -> Moderate <28 km/hr. Dust & loose paper lifted. | Q105: 3 | R105: =VLOOKUP(N105,Dropdowns!$I$52:$L$56,HLOOKUP(O105,Dropdowns!$J$50:$L$51,2,FALSE)+1,FALSE) -> 3
A106: RainBird | B106: LF2400 | C106: 13-maroon | D106: 613 | E106: Green | F106: 420 | G106: 0.98 | H106: 1 | I106: 18.3 | J106: 5.5mx5.5m | K106: Upright | L106: Modelled | M106: 30 | N106: Impact | O106: Large | P106: =VLOOKUP(N106,Dropdowns!$C$51:$F$56,R106+1,FALSE) -> Moderate <28 km/hr. Dust & loose paper lifted. | Q106: 3 | R106: =VLOOKUP(N106,Dropdowns!$I$52:$L$56,HLOOKUP(O106,Dropdowns!$J$50:$L$51,2,FALSE)+1,FALSE) -> 3
A107: Rivulis | B107: Rondo | C107: Black? | D107: 290 | E107: 2.2 Brown | F107: 250 | G107: 0.98 | H107: 1 | I107: 18.4 | J107: 4mx4m | K107: Upright | L107: Modelled | M107: 20 | N107: Fast rotating | O107: Medium | P107: =VLOOKUP(N107,Dropdowns!$C$51:$F$56,R107+1,FALSE) -> Light < 11km/hr. Wind felt on face | Q107: 2 | R107: =VLOOKUP(N107,Dropdowns!$I$52:$L$56,HLOOKUP(O107,Dropdowns!$J$50:$L$51,2,FALSE)+1,FALSE) -> 1
A108: Antelco | B108: Rotor Rain | C108: Standard | D108: 122 | E108: 1.7 Blue | F108: 150 | G108: 0.98 | H108: 1.1 | I108: 18.4 | J108: 2.5mx2.5m | K108: Upright | L108: Modelled | M108: 50 | N108: Fast rotating | O108: Medium | P108: =VLOOKUP(N108,Dropdowns!$C$51:$F$56,R108+1,FALSE) -> Light < 11km/hr. Wind felt on face | Q108: 2 | R108: =VLOOKUP(N108,Dropdowns!$I$52:$L$56,HLOOKUP(O108,Dropdowns!$J$50:$L$51,2,FALSE)+1,FALSE) -> 1
A109: Philmac | B109: Challenger | C109: Standard? | D109: 169 | E109: Grey | F109: 200 | G109: 0.98 | H109: 1 | I109: 18.5 | J109: 3mx3m | K109: Upright | L109: Modelled | M109: 20 | N109: Fast rotating | O109: Medium | P109: =VLOOKUP(N109,Dropdowns!$C$51:$F$56,R109+1,FALSE) -> Light < 11km/hr. Wind felt on face | Q109: 2 | R109: =VLOOKUP(N109,Dropdowns!$I$52:$L$56,HLOOKUP(O109,Dropdowns!$J$50:$L$51,2,FALSE)+1,FALSE) -> 1
A110: Nelson | B110: R10TURBO | C110: P6 9° Blue | D110: 220 | E110: #78 Blue | F110: 207 | G110: 0.98 | H110: 1 | I110: 18.5 | J110: 3.5mx3.5m | K110: Upright | L110: Modelled | M110: 31 | N110: Single stream rotator | O110: Medium | P110: =VLOOKUP(N110,Dropdowns!$C$51:$F$56,R110+1,FALSE) -> Gentle < 19 km/hr. Flags flap | Q110: 2 | R110: =VLOOKUP(N110,Dropdowns!$I$52:$L$56,HLOOKUP(O110,Dropdowns!$J$50:$L$51,2,FALSE)+1,FALSE) -> 2
A111: RainBird | B111: LF1200 | C111: 16-red | D111: 286 | E111: Orange | F111: 245 | G111: 0.98 | H111: 1 | I111: 18.8 | J111: 4mx4m | K111: Upright | L111: Modelled | M111: 30 | N111: Impact | O111: Medium | P111: =VLOOKUP(N111,Dropdowns!$C$51:$F$56,R111+1,FALSE) -> Moderate <28 km/hr. Dust & loose paper lifted. | Q111: 2 | R111: =VLOOKUP(N111,Dropdowns!$I$52:$L$56,HLOOKUP(O111,Dropdowns!$J$50:$L$51,2,FALSE)+1,FALSE) -> 3
A112: RainBird | B112: LF1200 | C112: 10-white | D112: 343 | E112: Orange | F112: 350 | G112: 0.98 | H112: 1 | I112: 18.8 | J112: 4mx4m | K112: Upright | L112: Modelled | M112: 30 | N112: Impact | O112: Medium | P112: =VLOOKUP(N112,Dropdowns!$C$51:$F$56,R112+1,FALSE) -> Moderate <28 km/hr. Dust & loose paper lifted. | Q112: 2 | R112: =VLOOKUP(N112,Dropdowns!$I$52:$L$56,HLOOKUP(O112,Dropdowns!$J$50:$L$51,2,FALSE)+1,FALSE) -> 3
A113: RainBird | B113: LF1200 | C113: 16-red | D113: 341 | E113: Purple | F113: 245 | G113: 0.98 | H113: 1 | I113: 18.8 | J113: 4mx4m | K113: Upright | L113: Modelled | M113: 30 | N113: Impact | O113: Medium | P113: =VLOOKUP(N113,Dropdowns!$C$51:$F$56,R113+1,FALSE) -> Moderate <28 km/hr. Dust & loose paper lifted. | Q113: 2 | R113: =VLOOKUP(N113,Dropdowns!$I$52:$L$56,HLOOKUP(O113,Dropdowns!$J$50:$L$51,2,FALSE)+1,FALSE) -> 3
A114: RainBird | B114: LF2400 | C114: 10-lime | D114: 702 | E114: Tan | F114: 420 | G114: 0.98 | H114: 1 | I114: 18.8 | J114: 6mx6m | K114: Upright | L114: Modelled | M114: 30 | N114: Impact | O114: Large | P114: =VLOOKUP(N114,Dropdowns!$C$51:$F$56,R114+1,FALSE) -> Moderate <28 km/hr. Dust & loose paper lifted. | Q114: 3 | R114: =VLOOKUP(N114,Dropdowns!$I$52:$L$56,HLOOKUP(O114,Dropdowns!$J$50:$L$51,2,FALSE)+1,FALSE) -> 3
A115: RainBird | B115: LF2400 | C115: 13-maroon | D115: 702 | E115: Tan | F115: 420 | G115: 0.98 | H115: 1 | I115: 18.8 | J115: 6mx6m | K115: Upright | L115: Modelled | M115: 30 | N115: Impact | O115: Large | P115: =VLOOKUP(N115,Dropdowns!$C$51:$F$56,R115+1,FALSE) -> Moderate <28 km/hr. Dust & loose paper lifted. | Q115: 3 | R115: =VLOOKUP(N115,Dropdowns!$I$52:$L$56,HLOOKUP(O115,Dropdowns!$J$50:$L$51,2,FALSE)+1,FALSE) -> 3
A116: RainBird | B116: LF2400 | C116: 15-tangerine | D116: 702 | E116: Tan | F116: 420 | G116: 0.98 | H116: 1 | I116: 18.8 | J116: 6mx6m | K116: Upright | L116: Modelled | M116: 30 | N116: Impact | O116: Large | P116: =VLOOKUP(N116,Dropdowns!$C$51:$F$56,R116+1,FALSE) -> Moderate <28 km/hr. Dust & loose paper lifted. | Q116: 3 | R116: =VLOOKUP(N116,Dropdowns!$I$52:$L$56,HLOOKUP(O116,Dropdowns!$J$50:$L$51,2,FALSE)+1,FALSE) -> 3
A117: Nelson | B117: R10TURBO | C117: P6 9° Blue | D117: 174 | E117: #70 White | F117: 207 | G117: 0.98 | H117: 1 | I117: 18.8 | J117: 3mx3m | K117: Upright | L117: Modelled | M117: 30.5 | N117: Single stream rotator | O117: Medium | P117: =VLOOKUP(N117,Dropdowns!$C$51:$F$56,R117+1,FALSE) -> Gentle < 19 km/hr. Flags flap | Q117: 2 | R117: =VLOOKUP(N117,Dropdowns!$I$52:$L$56,HLOOKUP(O117,Dropdowns!$J$50:$L$51,2,FALSE)+1,FALSE) -> 2
A118: Nelson | B118: R10TURBO | C118: P6 9° Blue | D118: 174 | E118: #70 White | F118: 207 | G118: 0.98 | H118: 1 | I118: 18.8 | J118: 3mx3m | K118: Upright | L118: Modelled | M118: 30.5 | N118: Single stream rotator | O118: Medium | P118: =VLOOKUP(N118,Dropdowns!$C$51:$F$56,R118+1,FALSE) -> Gentle < 19 km/hr. Flags flap | Q118: 2 | R118: =VLOOKUP(N118,Dropdowns!$I$52:$L$56,HLOOKUP(O118,Dropdowns!$J$50:$L$51,2,FALSE)+1,FALSE) -> 2
A119: Nelson | B119: R2000 | C119: K4 24° Black | D119: 458 | E119: #13 Yellow | F119: 310 | G119: 0.98 | H119: 1.1 | I119: 18.8 | J119: 5mx5m | K119: Upright | L119: Modelled | M119: 45.7 | N119: Single stream rotator | O119: Large | P119: =VLOOKUP(N119,Dropdowns!$C$51:$F$56,R119+1,FALSE) -> Moderate <28 km/hr. Dust & loose paper lifted. | Q119: 3 | R119: =VLOOKUP(N119,Dropdowns!$I$52:$L$56,HLOOKUP(O119,Dropdowns!$J$50:$L$51,2,FALSE)+1,FALSE) -> 3
A120: RainBird | B120: LF2400 | C120: 15-tangerine | D120: 727 | E120: Red | F120: 350 | G120: 0.98 | H120: 1 | I120: 19.6 | J120: 6mx6m | K120: Upright | L120: Modelled | M120: 30 | N120: Impact | O120: Large | P120: =VLOOKUP(N120,Dropdowns!$C$51:$F$56,R120+1,FALSE) -> Moderate <28 km/hr. Dust & loose paper lifted. | Q120: 3 | R120: =VLOOKUP(N120,Dropdowns!$I$52:$L$56,HLOOKUP(O120,Dropdowns!$J$50:$L$51,2,FALSE)+1,FALSE) -> 3
A121: Philmac | B121: StreamMaster | C121: Red flipper | D121: 81 | E121: Maroon | F121: 200 | G121: 0.98 | H121: 1 | I121: 19.8 | J121: 2mx2m | K121: Upright | L121: Modelled | M121: 20 | N121: Fast rotating | O121: Medium | P121: =VLOOKUP(N121,Dropdowns!$C$51:$F$56,R121+1,FALSE) -> Light < 11km/hr. Wind felt on face | Q121: 2 | R121: =VLOOKUP(N121,Dropdowns!$I$52:$L$56,HLOOKUP(O121,Dropdowns!$J$50:$L$51,2,FALSE)+1,FALSE) -> 1
A122: RainBird | B122: LF1200 | C122: 16-red | D122: 366 | E122: Purple | F122: 280 | G122: 0.98 | H122: 1 | I122: 20.1 | J122: 4mx4m | K122: Upright | L122: Modelled | M122: 30 | N122: Impact | O122: Medium | P122: =VLOOKUP(N122,Dropdowns!$C$51:$F$56,R122+1,FALSE) -> Moderate <28 km/hr. Dust & loose paper lifted. | Q122: 2 | R122: =VLOOKUP(N122,Dropdowns!$I$52:$L$56,HLOOKUP(O122,Dropdowns!$J$50:$L$51,2,FALSE)+1,FALSE) -> 3
A123: RainBird | B123: LF2400 | C123: 13-maroon | D123: 670 | E123: Tan | F123: 385 | G123: 0.98 | H123: 1 | I123: 20.1 | J123: 5.5mx5.5m | K123: Upright | L123: Modelled | M123: 30 | N123: Impact | O123: Large | P123: =VLOOKUP(N123,Dropdowns!$C$51:$F$56,R123+1,FALSE) -> Moderate <28 km/hr. Dust & loose paper lifted. | Q123: 3 | R123: =VLOOKUP(N123,Dropdowns!$I$52:$L$56,HLOOKUP(O123,Dropdowns!$J$50:$L$51,2,FALSE)+1,FALSE) -> 3
A124: RainBird | B124: LF2400 | C124: 22-dark green | D124: 670 | E124: Tan | F124: 385 | G124: 0.98 | H124: 1.1 | I124: 20.1 | J124: 5.5mx5.5m | K124: Upright | L124: Modelled | M124: 30 | N124: Impact | O124: Large | P124: =VLOOKUP(N124,Dropdowns!$C$51:$F$56,R124+1,FALSE) -> Moderate <28 km/hr. Dust & loose paper lifted. | Q124: 3 | R124: =VLOOKUP(N124,Dropdowns!$I$52:$L$56,HLOOKUP(O124,Dropdowns!$J$50:$L$51,2,FALSE)+1,FALSE) -> 3
A125: NaanDan | B125: 5022 | C125: Standard | D125: 900 | E125: 3.2 x 1.8 | F125: 300 | G125: 0.98 | H125: 1 | I125: 20.2 | J125: 7mx7m | K125: Upright | L125: Modelled | M125: 50 | N125: Impact | O125: Large | P125: =VLOOKUP(N125,Dropdowns!$C$51:$F$56,R125+1,FALSE) -> Moderate <28 km/hr. Dust & loose paper lifted. | Q125: 3 | R125: =VLOOKUP(N125,Dropdowns!$I$52:$L$56,HLOOKUP(O125,Dropdowns!$J$50:$L$51,2,FALSE)+1,FALSE) -> 3
A126: Rivulis | B126: Rondo inverted | C126: Green? | D126: 132 | E126: 1.6 White | F126: 200 | G126: 0.98 | H126: 1 | I126: 20.2 | J126: 2.5mx2.5m | K126: Inverted | L126: Modelled | M126: 200 | N126: Fast rotating | O126: Medium | P126: =VLOOKUP(N126,Dropdowns!$C$51:$F$56,R126+1,FALSE) -> Light < 11km/hr. Wind felt on face | Q126: 2 | R126: =VLOOKUP(N126,Dropdowns!$I$52:$L$56,HLOOKUP(O126,Dropdowns!$J$50:$L$51,2,FALSE)+1,FALSE) -> 1
A127: RainBird | B127: LF1200 | C127: 16-red | D127: 370 | E127: Yellow | F127: 210 | G127: 0.98 | H127: 1 | I127: 20.3 | J127: 4mx4m | K127: Upright | L127: Modelled | M127: 30 | N127: Impact | O127: Medium | P127: =VLOOKUP(N127,Dropdowns!$C$51:$F$56,R127+1,FALSE) -> Moderate <28 km/hr. Dust & loose paper lifted. | Q127: 2 | R127: =VLOOKUP(N127,Dropdowns!$I$52:$L$56,HLOOKUP(O127,Dropdowns!$J$50:$L$51,2,FALSE)+1,FALSE) -> 3
A128: Rivulis | B128: Rondo | C128: Black? | D128: 250 | E128: 2.2 Brown | F128: 200 | G128: 0.98 | H128: 1 | I128: 20.4 | J128: 3.5mx3.5m | K128: Upright | L128: Modelled | M128: 20 | N128: Fast rotating | O128: Medium | P128: =VLOOKUP(N128,Dropdowns!$C$51:$F$56,R128+1,FALSE) -> Light < 11km/hr. Wind felt on face | Q128: 2 | R128: =VLOOKUP(N128,Dropdowns!$I$52:$L$56,HLOOKUP(O128,Dropdowns!$J$50:$L$51,2,FALSE)+1,FALSE) -> 1
A129: RainBird | B129: LF2400 | C129: 13-maroon | D129: 763 | E129: Red | F129: 385 | G129: 0.98 | H129: 1 | I129: 20.6 | J129: 6mx6m | K129: Upright | L129: Modelled | M129: 30 | N129: Impact | O129: Large | P129: =VLOOKUP(N129,Dropdowns!$C$51:$F$56,R129+1,FALSE) -> Moderate <28 km/hr. Dust & loose paper lifted. | Q129: 3 | R129: =VLOOKUP(N129,Dropdowns!$I$52:$L$56,HLOOKUP(O129,Dropdowns!$J$50:$L$51,2,FALSE)+1,FALSE) -> 3
A130: RainBird | B130: LF2400 | C130: 15-tangerine | D130: 763 | E130: Red | F130: 385 | G130: 0.98 | H130: 1 | I130: 20.6 | J130: 6mx6m | K130: Upright | L130: Modelled | M130: 30 | N130: Impact | O130: Large | P130: =VLOOKUP(N130,Dropdowns!$C$51:$F$56,R130+1,FALSE) -> Moderate <28 km/hr. Dust & loose paper lifted. | Q130: =IF(O130="Small",1,IF(O130="Medium",2,IF(O130="Large",3,4))) -> 3 | R130: =VLOOKUP(N130,Dropdowns!$I$52:$L$56,HLOOKUP(O130,Dropdowns!$J$50:$L$51,2,FALSE)+1,FALSE) -> 3
A131: RainBird | B131: LF2400 | C131: 22-dark green | D131: 763 | E131: Red | F131: 385 | G131: 0.98 | H131: 1 | I131: 20.6 | J131: 6mx6m | K131: Upright | L131: Modelled | M131: 30 | N131: Impact | O131: =IF(D131<56,"Small",IF(AND(D131>55,D131<401),"Medium","Large")) -> Large | P131: =VLOOKUP(N131,Dropdowns!$C$51:$F$56,R131+1,FALSE) -> Moderate <28 km/hr. Dust & loose paper lifted. | Q131: 3 | R131: =VLOOKUP(N131,Dropdowns!$I$52:$L$56,HLOOKUP(O131,Dropdowns!$J$50:$L$51,2,FALSE)+1,FALSE) -> 3
A132: Nelson | B132: R2000 | C132: K3 15° Red | D132: 338 | E132: #12 Purple | F132: 241 | G132: 0.98 | H132: 1 | I132: 20.7 | J132: 4mx4m | K132: Upright | L132: Modelled | M132: 31 | N132: Single stream rotator | O132: Medium | P132: =VLOOKUP(N132,Dropdowns!$C$51:$F$56,R132+1,FALSE) -> Gentle < 19 km/hr. Flags flap | Q132: 2 | R132: =VLOOKUP(N132,Dropdowns!$I$52:$L$56,HLOOKUP(O132,Dropdowns!$J$50:$L$51,2,FALSE)+1,FALSE) -> 2
A133: RainBird | B133: LF1200 | C133: 17-powder blue | D133: 379 | E133: Orange | F133: 420 | G133: 0.98 | H133: 1 | I133: 20.8 | J133: 4mx4m | K133: Upright | L133: Modelled | M133: 30 | N133: Impact | O133: Medium | P133: =VLOOKUP(N133,Dropdowns!$C$51:$F$56,R133+1,FALSE) -> Moderate <28 km/hr. Dust & loose paper lifted. | Q133: 2 | R133: =VLOOKUP(N133,Dropdowns!$I$52:$L$56,HLOOKUP(O133,Dropdowns!$J$50:$L$51,2,FALSE)+1,FALSE) -> 3
A134: RainBird | B134: LF2400 | C134: 22-dark green | D134: 556 | E134: Green | F134: 350 | G134: 0.98 | H134: 1 | I134: 20.8 | J134: 5mx5m | K134: Upright | L134: Modelled | M134: 30 | N134: Impact | O134: Large | P134: =VLOOKUP(N134,Dropdowns!$C$51:$F$56,R134+1,FALSE) -> Moderate <28 km/hr. Dust & loose paper lifted. | Q134: 3 | R134: =VLOOKUP(N134,Dropdowns!$I$52:$L$56,HLOOKUP(O134,Dropdowns!$J$50:$L$51,2,FALSE)+1,FALSE) -> 3
A135: RainBird | B135: LF2400 | C135: 22-dark green | D135: 697 | E135: Red | F135: 315 | G135: 0.98 | H135: 1 | I135: 20.8 | J135: 5.5mx5.5m | K135: Upright | L135: Modelled | M135: 30 | N135: Impact | O135: Large | P135: =VLOOKUP(N135,Dropdowns!$C$51:$F$56,R135+1,FALSE) -> Moderate <28 km/hr. Dust & loose paper lifted. | Q135: 3 | R135: =VLOOKUP(N135,Dropdowns!$I$52:$L$56,HLOOKUP(O135,Dropdowns!$J$50:$L$51,2,FALSE)+1,FALSE) -> 3
A136: RainBird | B136: LF2400 | C136: 13-maroon | D136: 702 | E136: Tan | F136: 420 | G136: 0.98 | H136: 1 | I136: 20.8 | J136: 5.5mx5.5m | K136: Upright | L136: Modelled | M136: 30 | N136: Impact | O136: Large | P136: =VLOOKUP(N136,Dropdowns!$C$51:$F$56,R136+1,FALSE) -> Moderate <28 km/hr. Dust & loose paper lifted. | Q136: 3 | R136: =VLOOKUP(N136,Dropdowns!$I$52:$L$56,HLOOKUP(O136,Dropdowns!$J$50:$L$51,2,FALSE)+1,FALSE) -> 3
A137: RainBird | B137: LF2400 | C137: 15-tangerine | D137: 702 | E137: Tan | F137: 420 | G137: 0.98 | H137: 1 | I137: 20.8 | J137: 5.5mx5.5m | K137: Upright | L137: Modelled | M137: 30 | N137: Impact | O137: Large | P137: =VLOOKUP(N137,Dropdowns!$C$51:$F$56,R137+1,FALSE) -> Moderate <28 km/hr. Dust & loose paper lifted. | Q137: 3 | R137: =VLOOKUP(N137,Dropdowns!$I$52:$L$56,HLOOKUP(O137,Dropdowns!$J$50:$L$51,2,FALSE)+1,FALSE) -> 3
A138: Nelson | B138: R10TURBO | C138: P8 24° brown? | D138: 290 | E138: #94 Purple | F138: 172 | G138: 0.98 | H138: 1 | I138: 20.9 | J138: 3.5mx3.5m | K138: Upright | L138: Modelled | M138: 46 | N138: Single stream rotator | O138: Medium | P138: =VLOOKUP(N138,Dropdowns!$C$51:$F$56,R138+1,FALSE) -> Gentle < 19 km/hr. Flags flap | Q138: 2 | R138: =VLOOKUP(N138,Dropdowns!$I$52:$L$56,HLOOKUP(O138,Dropdowns!$J$50:$L$51,2,FALSE)+1,FALSE) -> 2
A139: Antelco | B139: Rotor Rain | C139: Standard | D139: 280 | E139: 2.4 Red | F139: 200 | G139: 0.98 | H139: 1 | I139: 20.9 | J139: 3.5mx3.5m | K139: Upright | L139: Modelled | M139: 50 | N139: Fast rotating | O139: Medium | P139: =VLOOKUP(N139,Dropdowns!$C$51:$F$56,R139+1,FALSE) -> Light < 11km/hr. Wind felt on face | Q139: 2 | R139: =VLOOKUP(N139,Dropdowns!$I$52:$L$56,HLOOKUP(O139,Dropdowns!$J$50:$L$51,2,FALSE)+1,FALSE) -> 1
A140: Antelco | B140: Rotor Max | C140: Upright Black | D140: 604 | E140: 3.2 Black | F140: 250 | G140: 0.98 | H140: 1.1 | I140: 21 | J140: 5.5mx5.5m | K140: Upright | L140: Modelled | M140: 50 | N140: Fast rotating | O140: Large | P140: =VLOOKUP(N140,Dropdowns!$C$51:$F$56,R140+1,FALSE) -> Light < 11km/hr. Wind felt on face | Q140: 3 | R140: =VLOOKUP(N140,Dropdowns!$I$52:$L$56,HLOOKUP(O140,Dropdowns!$J$50:$L$51,2,FALSE)+1,FALSE) -> 2
A141: RainBird | B141: LF1200 | C141: 16-red | D141: 384 | E141: Green | F141: 175 | G141: 0.98 | H141: 1 | I141: 21.1 | J141: 4mx4m | K141: Upright | L141: Modelled | M141: 30 | N141: Impact | O141: Medium | P141: =VLOOKUP(N141,Dropdowns!$C$51:$F$56,R141+1,FALSE) -> Moderate <28 km/hr. Dust & loose paper lifted. | Q141: 2 | R141: =VLOOKUP(N141,Dropdowns!$I$52:$L$56,HLOOKUP(O141,Dropdowns!$J$50:$L$51,2,FALSE)+1,FALSE) -> 3
A142: RainBird | B142: LF2400 | C142: 13-maroon | D142: 784 | E142: Black | F142: 315 | G142: 0.98 | H142: 1 | I142: 21.1 | J142: 6mx6m | K142: Upright | L142: Modelled | M142: 30 | N142: Impact | O142: Large | P142: =VLOOKUP(N142,Dropdowns!$C$51:$F$56,R142+1,FALSE) -> Moderate <28 km/hr. Dust & loose paper lifted. | Q142: 3 | R142: =VLOOKUP(N142,Dropdowns!$I$52:$L$56,HLOOKUP(O142,Dropdowns!$J$50:$L$51,2,FALSE)+1,FALSE) -> 3
A143: Nelson | B143: R10TURBO | C143: P8 24° brown? | D143: 256 | E143: #78 Dark Blue | F143: 276 | G143: 0.98 | H143: 1 | I143: 21.1 | J143: 3.5mx3.5m | K143: Upright | L143: Modelled | M143: 46 | N143: Single stream rotator | O143: Medium | P143: =VLOOKUP(N143,Dropdowns!$C$51:$F$56,R143+1,FALSE) -> Gentle < 19 km/hr. Flags flap | Q143: 2 | R143: =VLOOKUP(N143,Dropdowns!$I$52:$L$56,HLOOKUP(O143,Dropdowns!$J$50:$L$51,2,FALSE)+1,FALSE) -> 2
A144: Nelson | B144: R10TURBO | C144: P6 9° Blue | D144: 250 | E144: #78 Blue | F144: 276 | G144: 0.98 | H144: 1 | I144: 21.2 | J144: 3.5mx3.5m | K144: Upright | L144: Modelled | M144: 31 | N144: Single stream rotator | O144: Medium | P144: =VLOOKUP(N144,Dropdowns!$C$51:$F$56,R144+1,FALSE) -> Gentle < 19 km/hr. Flags flap | Q144: 2 | R144: =VLOOKUP(N144,Dropdowns!$I$52:$L$56,HLOOKUP(O144,Dropdowns!$J$50:$L$51,2,FALSE)+1,FALSE) -> 2
A145: RainBird | B145: LF1200 | C145: 16-red | D145: 388 | E145: Purple | F145: 315 | G145: 0.98 | H145: 1 | I145: 21.3 | J145: 4mx4m | K145: Upright | L145: Modelled | M145: 30 | N145: Impact | O145: Medium | P145: =VLOOKUP(N145,Dropdowns!$C$51:$F$56,R145+1,FALSE) -> Moderate <28 km/hr. Dust & loose paper lifted. | Q145: 2 | R145: =VLOOKUP(N145,Dropdowns!$I$52:$L$56,HLOOKUP(O145,Dropdowns!$J$50:$L$51,2,FALSE)+1,FALSE) -> 3
A146: RainBird | B146: LF1200 | C146: 21-olive | D146: 388 | E146: Purple | F146: 315 | G146: 0.98 | H146: 1 | I146: 21.3 | J146: 4mx4m | K146: Upright | L146: Modelled | M146: 30 | N146: Impact | O146: Medium | P146: =VLOOKUP(N146,Dropdowns!$C$51:$F$56,R146+1,FALSE) -> Moderate <28 km/hr. Dust & loose paper lifted. | Q146: 2 | R146: =VLOOKUP(N146,Dropdowns!$I$52:$L$56,HLOOKUP(O146,Dropdowns!$J$50:$L$51,2,FALSE)+1,FALSE) -> 3
A147: RainBird | B147: LF1200 | C147: 10-white | D147: 575 | E147: Tan | F147: 280 | G147: 0.98 | H147: 1 | I147: 21.3 | J147: 5mx5m | K147: Upright | L147: Modelled | M147: 30 | N147: Impact | O147: Large | P147: =VLOOKUP(N147,Dropdowns!$C$51:$F$56,R147+1,FALSE) -> Moderate <28 km/hr. Dust & loose paper lifted. | Q147: 3 | R147: =VLOOKUP(N147,Dropdowns!$I$52:$L$56,HLOOKUP(O147,Dropdowns!$J$50:$L$51,2,FALSE)+1,FALSE) -> 3
A148: Rivulis | B148: Rondo Anti-ant | C148: Black? | D148: 132 | E148: 1.6 White | F148: 200 | G148: 0.98 | H148: 1 | I148: 21.4 | J148: 2.5mx2.5m | K148: Upright | L148: Modelled | M148: 20 | N148: Fast rotating | O148: Medium | P148: =VLOOKUP(N148,Dropdowns!$C$51:$F$56,R148+1,FALSE) -> Light < 11km/hr. Wind felt on face | Q148: 2 | R148: =VLOOKUP(N148,Dropdowns!$I$52:$L$56,HLOOKUP(O148,Dropdowns!$J$50:$L$51,2,FALSE)+1,FALSE) -> 1
A149: Rivulis | B149: Rondo | C149: Black? | D149: 86 | E149: 1.4 Red | F149: 150 | G149: 0.98 | H149: 1.1 | I149: 21.5 | J149: 2mx2m | K149: Upright | L149: Modelled | M149: 20 | N149: Fast rotating | O149: Medium | P149: =VLOOKUP(N149,Dropdowns!$C$51:$F$56,R149+1,FALSE) -> Light < 11km/hr. Wind felt on face | Q149: 2 | R149: =VLOOKUP(N149,Dropdowns!$I$52:$L$56,HLOOKUP(O149,Dropdowns!$J$50:$L$51,2,FALSE)+1,FALSE) -> 1
A150: RainBird | B150: LF2400 | C150: 13-maroon | D150: 727 | E150: Red | F150: 350 | G150: 0.98 | H150: 1 | I150: 21.6 | J150: 5.5mx5.5m | K150: Upright | L150: Modelled | M150: 30 | N150: Impact | O150: Large | P150: =VLOOKUP(N150,Dropdowns!$C$51:$F$56,R150+1,FALSE) -> Moderate <28 km/hr. Dust & loose paper lifted. | Q150: 3 | R150: =VLOOKUP(N150,Dropdowns!$I$52:$L$56,HLOOKUP(O150,Dropdowns!$J$50:$L$51,2,FALSE)+1,FALSE) -> 3
A151: RainBird | B151: LF2400 | C151: 22-dark green | D151: 727 | E151: Red | F151: 350 | G151: 0.98 | H151: 1 | I151: 21.6 | J151: 5.5mx5.5m | K151: Upright | L151: Modelled | M151: 30 | N151: Impact | O151: Large | P151: =VLOOKUP(N151,Dropdowns!$C$51:$F$56,R151+1,FALSE) -> Moderate <28 km/hr. Dust & loose paper lifted. | Q151: 3 | R151: =VLOOKUP(N151,Dropdowns!$I$52:$L$56,HLOOKUP(O151,Dropdowns!$J$50:$L$51,2,FALSE)+1,FALSE) -> 3
A152: RainBird | B152: LF2400 | C152: 13-maroon | D152: 799 | E152: Red | F152: 420 | G152: 0.98 | H152: 1 | I152: 21.6 | J152: 6mx6m | K152: Upright | L152: Modelled | M152: 30 | N152: Impact | O152: Large | P152: =VLOOKUP(N152,Dropdowns!$C$51:$F$56,R152+1,FALSE) -> Moderate <28 km/hr. Dust & loose paper lifted. | Q152: 3 | R152: =VLOOKUP(N152,Dropdowns!$I$52:$L$56,HLOOKUP(O152,Dropdowns!$J$50:$L$51,2,FALSE)+1,FALSE) -> 3
A153: NaanDan | B153: Mamkad 16 | C153: Standard | D153: 270 | E153: Black 270 | F153: 200 | G153: 0.98 | H153: 1 | I153: 21.8 | J153: 3.5mx3.5m | K153: Upright | L153: Modelled | M153: 60 | N153: Single stream rotator | O153: Medium | P153: =VLOOKUP(N153,Dropdowns!$C$51:$F$56,R153+1,FALSE) -> Gentle < 19 km/hr. Flags flap | Q153: 2 | R153: =VLOOKUP(N153,Dropdowns!$I$52:$L$56,HLOOKUP(O153,Dropdowns!$J$50:$L$51,2,FALSE)+1,FALSE) -> 2
A154: Nelson | B154: R10TURBO | C154: P6 9° Blue | D154: 139 | E154: #65 Gray | F154: 172 | G154: 0.98 | H154: 1 | I154: 21.8 | J154: 2.5mx2.5m | K154: Upright | L154: Modelled | M154: 31 | N154: Single stream rotator | O154: Medium | P154: =VLOOKUP(N154,Dropdowns!$C$51:$F$56,R154+1,FALSE) -> Gentle < 19 km/hr. Flags flap | Q154: 2 | R154: =VLOOKUP(N154,Dropdowns!$I$52:$L$56,HLOOKUP(O154,Dropdowns!$J$50:$L$51,2,FALSE)+1,FALSE) -> 2
A155: Nelson | B155: R10TURBO | C155: P6 9° Blue | D155: 139 | E155: #65 Gray | F155: 172 | G155: 0.98 | H155: 1 | I155: 21.8 | J155: 2.5mx2.5m | K155: Upright | L155: Modelled | M155: 31 | N155: Single stream rotator | O155: Medium | P155: =VLOOKUP(N155,Dropdowns!$C$51:$F$56,R155+1,FALSE) -> Gentle < 19 km/hr. Flags flap | Q155: 2 | R155: =VLOOKUP(N155,Dropdowns!$I$52:$L$56,HLOOKUP(O155,Dropdowns!$J$50:$L$51,2,FALSE)+1,FALSE) -> 2
A156: Nelson | B156: R10TURBO | C156: P6 9° Blue | D156: 175 | E156: #65 Gray | F156: 276 | G156: 0.98 | H156: 1 | I156: 21.9 | J156: 3mx3m | K156: Upright | L156: Modelled | M156: 30.5 | N156: Single stream rotator | O156: Medium | P156: =VLOOKUP(N156,Dropdowns!$C$51:$F$56,R156+1,FALSE) -> Gentle < 19 km/hr. Flags flap | Q156: 2 | R156: =VLOOKUP(N156,Dropdowns!$I$52:$L$56,HLOOKUP(O156,Dropdowns!$J$50:$L$51,2,FALSE)+1,FALSE) -> 2
A157: RainBird | B157: LF2400 | C157: 15-tangerine | D157: 818 | E157: Black | F157: 350 | G157: 0.98 | H157: 1 | I157: 22.1 | J157: 6mx6m | K157: Upright | L157: Modelled | M157: 30 | N157: Impact | O157: Large | P157: =VLOOKUP(N157,Dropdowns!$C$51:$F$56,R157+1,FALSE) -> Moderate <28 km/hr. Dust & loose paper lifted. | Q157: 3 | R157: =VLOOKUP(N157,Dropdowns!$I$52:$L$56,HLOOKUP(O157,Dropdowns!$J$50:$L$51,2,FALSE)+1,FALSE) -> 3
A158: RainBird | B158: LF2400 | C158: 22-dark green | D158: 818 | E158: Black | F158: 350 | G158: 0.98 | H158: 1 | I158: 22.1 | J158: 6mx6m | K158: Upright | L158: Modelled | M158: 30 | N158: Impact | O158: Large | P158: =VLOOKUP(N158,Dropdowns!$C$51:$F$56,R158+1,FALSE) -> Moderate <28 km/hr. Dust & loose paper lifted. | Q158: 3 | R158: =VLOOKUP(N158,Dropdowns!$I$52:$L$56,HLOOKUP(O158,Dropdowns!$J$50:$L$51,2,FALSE)+1,FALSE) -> 3
A159: Nelson | B159: S10 | C159: Green? | D159: 593 | E159: #18 Gold | F159: 138 | G159: 0.98 | H159: 1 | I159: 22.1 | J159: 5mx5m | K159: Upright | L159: Modelled | M159: 61 | N159: Fast rotating | O159: Large | P159: =VLOOKUP(N159,Dropdowns!$C$51:$F$56,R159+1,FALSE) -> Light < 11km/hr. Wind felt on face | Q159: 3 | R159: =VLOOKUP(N159,Dropdowns!$I$52:$L$56,HLOOKUP(O159,Dropdowns!$J$50:$L$51,2,FALSE)+1,FALSE) -> 2
A160: RainBird | B160: LF1200 | C160: 10-white | D160: 409 | E160: Purple | F160: 350 | G160: 0.98 | H160: 1 | I160: 22.4 | J160: 4mx4m | K160: Upright | L160: Modelled | M160: 30 | N160: Impact | O160: Large | P160: =VLOOKUP(N160,Dropdowns!$C$51:$F$56,R160+1,FALSE) -> Moderate <28 km/hr. Dust & loose paper lifted. | Q160: 3 | R160: =VLOOKUP(N160,Dropdowns!$I$52:$L$56,HLOOKUP(O160,Dropdowns!$J$50:$L$51,2,FALSE)+1,FALSE) -> 3
A161: RainBird | B161: LF1200 | C161: 16-red | D161: 409 | E161: Purple | F161: 350 | G161: 0.98 | H161: 1 | I161: 22.4 | J161: 4mx4m | K161: Upright | L161: Modelled | M161: 30 | N161: Impact | O161: Large | P161: =VLOOKUP(N161,Dropdowns!$C$51:$F$56,R161+1,FALSE) -> Moderate <28 km/hr. Dust & loose paper lifted. | Q161: 3 | R161: =VLOOKUP(N161,Dropdowns!$I$52:$L$56,HLOOKUP(O161,Dropdowns!$J$50:$L$51,2,FALSE)+1,FALSE) -> 3
A162: RainBird | B162: LF1200 | C162: 21-olive | D162: 409 | E162: Purple | F162: 350 | G162: 0.98 | H162: 1 | I162: 22.4 | J162: 4mx4m | K162: Upright | L162: Modelled | M162: 30 | N162: Impact | O162: Large | P162: =VLOOKUP(N162,Dropdowns!$C$51:$F$56,R162+1,FALSE) -> Moderate <28 km/hr. Dust & loose paper lifted. | Q162: 3 | R162: =VLOOKUP(N162,Dropdowns!$I$52:$L$56,HLOOKUP(O162,Dropdowns!$J$50:$L$51,2,FALSE)+1,FALSE) -> 3
A163: Nelson | B163: R10TURBO | C163: P6 9° Blue | D163: 268 | E163: #78 Blue | F163: 310 | G163: 0.98 | H163: 1 | I163: 22.4 | J163: 3.5mx3.5m | K163: Upright | L163: Modelled | M163: 31 | N163: Single stream rotator | O163: Medium | P163: =VLOOKUP(N163,Dropdowns!$C$51:$F$56,R163+1,FALSE) -> Gentle < 19 km/hr. Flags flap | Q163: 2 | R163: =VLOOKUP(N163,Dropdowns!$I$52:$L$56,HLOOKUP(O163,Dropdowns!$J$50:$L$51,2,FALSE)+1,FALSE) -> 2
A164: Philmac | B164: Challenger | C164: Standard? | D164: 275 | E164: Red | F164: 200 | G164: 0.98 | H164: 1.1 | I164: 22.9 | J164: 3.5mx3.5m | K164: Upright | L164: Modelled | M164: 20 | N164: Fast rotating | O164: Medium | P164: =VLOOKUP(N164,Dropdowns!$C$51:$F$56,R164+1,FALSE) -> Light < 11km/hr. Wind felt on face | Q164: 2 | R164: =VLOOKUP(N164,Dropdowns!$I$52:$L$56,HLOOKUP(O164,Dropdowns!$J$50:$L$51,2,FALSE)+1,FALSE) -> 1
A165: RainBird | B165: LF2400 | C165: 13-maroon | D165: 852 | E165: Black | F165: 385 | G165: 0.98 | H165: 1 | I165: 22.9 | J165: 6mx6m | K165: Upright | L165: Modelled | M165: 30 | N165: Impact | O165: Large | P165: =VLOOKUP(N165,Dropdowns!$C$51:$F$56,R165+1,FALSE) -> Moderate <28 km/hr. Dust & loose paper lifted. | Q165: 3 | R165: =VLOOKUP(N165,Dropdowns!$I$52:$L$56,HLOOKUP(O165,Dropdowns!$J$50:$L$51,2,FALSE)+1,FALSE) -> 3
A166: RainBird | B166: LF2400 | C166: 15-tangerine | D166: 852 | E166: Black | F166: 385 | G166: 0.98 | H166: 1 | I166: 22.9 | J166: 6mx6m | K166: Upright | L166: Modelled | M166: 30 | N166: Impact | O166: Large | P166: =VLOOKUP(N166,Dropdowns!$C$51:$F$56,R166+1,FALSE) -> Moderate <28 km/hr. Dust & loose paper lifted. | Q166: 3 | R166: =VLOOKUP(N166,Dropdowns!$I$52:$L$56,HLOOKUP(O166,Dropdowns!$J$50:$L$51,2,FALSE)+1,FALSE) -> 3
A167: RainBird | B167: LF2400 | C167: 15-tangerine | D167: 613 | E167: Green | F167: 420 | G167: 0.98 | H167: 1 | I167: 22.9 | J167: 5mx5m | K167: Upright | L167: Modelled | M167: 30 | N167: Impact | O167: Large | P167: =VLOOKUP(N167,Dropdowns!$C$51:$F$56,R167+1,FALSE) -> Moderate <28 km/hr. Dust & loose paper lifted. | Q167: 3 | R167: =VLOOKUP(N167,Dropdowns!$I$52:$L$56,HLOOKUP(O167,Dropdowns!$J$50:$L$51,2,FALSE)+1,FALSE) -> 3
A168: RainBird | B168: LF2400 | C168: 15-tangerine | D168: 763 | E168: Red | F168: 385 | G168: 0.98 | H168: 1.1 | I168: 22.9 | J168: 5.5mx5.5m | K168: Upright | L168: Modelled | M168: 30 | N168: Impact | O168: Large | P168: =VLOOKUP(N168,Dropdowns!$C$51:$F$56,R168+1,FALSE) -> Moderate <28 km/hr. Dust & loose paper lifted. | Q168: 3 | R168: =VLOOKUP(N168,Dropdowns!$I$52:$L$56,HLOOKUP(O168,Dropdowns!$J$50:$L$51,2,FALSE)+1,FALSE) -> 3
A169: RainBird | B169: LF2400 | C169: 22-dark green | D169: 763 | E169: Red | F169: 385 | G169: 0.98 | H169: 1 | I169: 22.9 | J169: 5.5mx5.5m | K169: Upright | L169: Modelled | M169: 30 | N169: Impact | O169: Large | P169: =VLOOKUP(N169,Dropdowns!$C$51:$F$56,R169+1,FALSE) -> Moderate <28 km/hr. Dust & loose paper lifted. | Q169: 3 | R169: =VLOOKUP(N169,Dropdowns!$I$52:$L$56,HLOOKUP(O169,Dropdowns!$J$50:$L$51,2,FALSE)+1,FALSE) -> 3
A170: Antelco | B170: Inverted Rotor Max | C170: Inverted | D170: 465 | E170: 2.8 Red | F170: 250 | G170: 0.98 | H170: 1.1 | I170: 23.1 | J170: 4.5mx4.5m | K170: Inverted | L170: Modelled | M170: 200 | N170: Fast rotating | O170: Large | P170: =VLOOKUP(N170,Dropdowns!$C$51:$F$56,R170+1,FALSE) -> Light < 11km/hr. Wind felt on face | Q170: 3 | R170: =VLOOKUP(N170,Dropdowns!$I$52:$L$56,HLOOKUP(O170,Dropdowns!$J$50:$L$51,2,FALSE)+1,FALSE) -> 2
A171: RainBird | B171: LF1200 | C171: 16-red | D171: 420 | E171: Green | F171: 210 | G171: 0.98 | H171: 1 | I171: 23.1 | J171: 4mx4m | K171: Upright | L171: Modelled | M171: 30 | N171: Impact | O171: Large | P171: =VLOOKUP(N171,Dropdowns!$C$51:$F$56,R171+1,FALSE) -> Moderate <28 km/hr. Dust & loose paper lifted. | Q171: 3 | R171: =VLOOKUP(N171,Dropdowns!$I$52:$L$56,HLOOKUP(O171,Dropdowns!$J$50:$L$51,2,FALSE)+1,FALSE) -> 3
A172: RainBird | B172: LF2400 | C172: 13-maroon | D172: 858 | E172: Silver | F172: 280 | G172: 0.98 | H172: 1 | I172: 23.1 | J172: 6mx6m | K172: Upright | L172: Modelled | M172: 30 | N172: Impact | O172: Large | P172: =VLOOKUP(N172,Dropdowns!$C$51:$F$56,R172+1,FALSE) -> Moderate <28 km/hr. Dust & loose paper lifted. | Q172: 3 | R172: =VLOOKUP(N172,Dropdowns!$I$52:$L$56,HLOOKUP(O172,Dropdowns!$J$50:$L$51,2,FALSE)+1,FALSE) -> 3
A173: RainBird | B173: LF2400 | C173: 22-dark green | D173: 858 | E173: Silver | F173: 280 | G173: 0.98 | H173: 1 | I173: 23.1 | J173: 6mx6m | K173: Upright | L173: Modelled | M173: 30 | N173: Impact | O173: Large | P173: =VLOOKUP(N173,Dropdowns!$C$51:$F$56,R173+1,FALSE) -> Moderate <28 km/hr. Dust & loose paper lifted. | Q173: 3 | R173: =VLOOKUP(N173,Dropdowns!$I$52:$L$56,HLOOKUP(O173,Dropdowns!$J$50:$L$51,2,FALSE)+1,FALSE) -> 3
A174: Nelson | B174: R2000 | C174: K4 24° Black | D174: 458 | E174: #13 Yellow | F174: 310 | G174: 0.98 | H174: 1 | I174: 23.2 | J174: 4mx4m | K174: Upright | L174: Modelled | M174: 46 | N174: Single stream rotator | O174: Large | P174: =VLOOKUP(N174,Dropdowns!$C$51:$F$56,R174+1,FALSE) -> Moderate <28 km/hr. Dust & loose paper lifted. | Q174: 3 | R174: =VLOOKUP(N174,Dropdowns!$I$52:$L$56,HLOOKUP(O174,Dropdowns!$J$50:$L$51,2,FALSE)+1,FALSE) -> 3
A175: Rivulis | B175: Rondo inverted | C175: Blue? | D175: 100 | E175: 1.4 Red | F175: 200 | G175: 0.98 | H175: 1.1 | I175: 23.2 | J175: 2mx2m | K175: Inverted | L175: Modelled | M175: 200 | N175: Fast rotating | O175: Medium | P175: =VLOOKUP(N175,Dropdowns!$C$51:$F$56,R175+1,FALSE) -> Light < 11km/hr. Wind felt on face | Q175: 2 | R175: =VLOOKUP(N175,Dropdowns!$I$52:$L$56,HLOOKUP(O175,Dropdowns!$J$50:$L$51,2,FALSE)+1,FALSE) -> 1
A176: Nelson | B176: R10TURBO | C176: P6 9° Blue | D176: 202 | E176: #70 White | F176: 276 | G176: 0.98 | H176: 1 | I176: 23.3 | J176: 3mx3m | K176: Upright | L176: Modelled | M176: 30.5 | N176: Single stream rotator | O176: Medium | P176: =VLOOKUP(N176,Dropdowns!$C$51:$F$56,R176+1,FALSE) -> Gentle < 19 km/hr. Flags flap | Q176: 2 | R176: =VLOOKUP(N176,Dropdowns!$I$52:$L$56,HLOOKUP(O176,Dropdowns!$J$50:$L$51,2,FALSE)+1,FALSE) -> 2
A177: RainBird | B177: LF2400 | C177: 13-maroon | D177: 784 | E177: Black | F177: 315 | G177: 0.98 | H177: 1 | I177: 23.4 | J177: 5.5mx5.5m | K177: Upright | L177: Modelled | M177: 30 | N177: Impact | O177: Large | P177: =VLOOKUP(N177,Dropdowns!$C$51:$F$56,R177+1,FALSE) -> Moderate <28 km/hr. Dust & loose paper lifted. | Q177: 3 | R177: =VLOOKUP(N177,Dropdowns!$I$52:$L$56,HLOOKUP(O177,Dropdowns!$J$50:$L$51,2,FALSE)+1,FALSE) -> 3
A178: Antelco | B178: Rotor Spray | C178: Upright Rotor | D178: 104 | E178: 1.5 Red | F178: 150 | G178: 0.98 | H178: 1 | I178: 23.5 | J178: 2mx2m | K178: Upright | L178: Modelled | M178: 50 | N178: Fast rotating | O178: Medium | P178: =VLOOKUP(N178,Dropdowns!$C$51:$F$56,R178+1,FALSE) -> Light < 11km/hr. Wind felt on face | Q178: 2 | R178: =VLOOKUP(N178,Dropdowns!$I$52:$L$56,HLOOKUP(O178,Dropdowns!$J$50:$L$51,2,FALSE)+1,FALSE) -> 1
A179: RainBird | B179: LF1200 | C179: 21-olive | D179: 429 | E179: Purple | F179: 385 | G179: 0.98 | H179: 1 | I179: 23.6 | J179: 4mx4m | K179: Upright | L179: Modelled | M179: 30 | N179: Impact | O179: Large | P179: =VLOOKUP(N179,Dropdowns!$C$51:$F$56,R179+1,FALSE) -> Moderate <28 km/hr. Dust & loose paper lifted. | Q179: 3 | R179: =VLOOKUP(N179,Dropdowns!$I$52:$L$56,HLOOKUP(O179,Dropdowns!$J$50:$L$51,2,FALSE)+1,FALSE) -> 3
A180: RainBird | B180: LF1200 | C180: 10-white | D180: 429 | E180: Yellow | F180: 280 | G180: 0.98 | H180: 1 | I180: 23.6 | J180: 4mx4m | K180: Upright | L180: Modelled | M180: 30 | N180: Impact | O180: Large | P180: =VLOOKUP(N180,Dropdowns!$C$51:$F$56,R180+1,FALSE) -> Moderate <28 km/hr. Dust & loose paper lifted. | Q180: 3 | R180: =VLOOKUP(N180,Dropdowns!$I$52:$L$56,HLOOKUP(O180,Dropdowns!$J$50:$L$51,2,FALSE)+1,FALSE) -> 3
A181: RainBird | B181: LF1200 | C181: 16-red | D181: 429 | E181: Yellow | F181: 280 | G181: 0.98 | H181: 1 | I181: 23.6 | J181: 4mx4m | K181: Upright | L181: Modelled | M181: 30 | N181: Impact | O181: Large | P181: =VLOOKUP(N181,Dropdowns!$C$51:$F$56,R181+1,FALSE) -> Moderate <28 km/hr. Dust & loose paper lifted. | Q181: 3 | R181: =VLOOKUP(N181,Dropdowns!$I$52:$L$56,HLOOKUP(O181,Dropdowns!$J$50:$L$51,2,FALSE)+1,FALSE) -> 3
A182: RainBird | B182: LF2400 | C182: 13-maroon | D182: 881 | E182: Black | F182: 420 | G182: 0.98 | H182: 1 | I182: 23.6 | J182: 6mx6m | K182: Upright | L182: Modelled | M182: 30 | N182: Impact | O182: Large | P182: =VLOOKUP(N182,Dropdowns!$C$51:$F$56,R182+1,FALSE) -> Moderate <28 km/hr. Dust & loose paper lifted. | Q182: 3 | R182: =VLOOKUP(N182,Dropdowns!$I$52:$L$56,HLOOKUP(O182,Dropdowns!$J$50:$L$51,2,FALSE)+1,FALSE) -> 3
A183: RainBird | B183: LF2400 | C183: 15-tangerine | D183: 881 | E183: Black | F183: 420 | G183: 0.98 | H183: 1 | I183: 23.6 | J183: 6mx6m | K183: Upright | L183: Modelled | M183: 30 | N183: Impact | O183: Large | P183: =VLOOKUP(N183,Dropdowns!$C$51:$F$56,R183+1,FALSE) -> Moderate <28 km/hr. Dust & loose paper lifted. | Q183: 3 | R183: =VLOOKUP(N183,Dropdowns!$I$52:$L$56,HLOOKUP(O183,Dropdowns!$J$50:$L$51,2,FALSE)+1,FALSE) -> 3
A184: Toro | B184: S11 | C184: Standard | D184: 1674 | E184: Black x Orange | F184: 400 | G184: 0.98 | H184: 1 | I184: 23.6 | J184: 8.5mx8.5m | K184: Upright | L184: Modelled | M184: 100 | N184: Impact | O184: Large | P184: =VLOOKUP(N184,Dropdowns!$C$51:$F$56,R184+1,FALSE) -> Moderate <28 km/hr. Dust & loose paper lifted. | Q184: 3 | R184: =VLOOKUP(N184,Dropdowns!$I$52:$L$56,HLOOKUP(O184,Dropdowns!$J$50:$L$51,2,FALSE)+1,FALSE) -> 3
A185: Rivulis | B185: Rondo | C185: Black? | D185: 302 | E185: 2.4 Orange | F185: 200 | G185: 0.98 | H185: 1.1 | I185: 23.7 | J185: 3.5mx3.5m | K185: Upright | L185: Modelled | M185: 20 | N185: Fast rotating | O185: Medium | P185: =VLOOKUP(N185,Dropdowns!$C$51:$F$56,R185+1,FALSE) -> Light < 11km/hr. Wind felt on face | Q185: 2 | R185: =VLOOKUP(N185,Dropdowns!$I$52:$L$56,HLOOKUP(O185,Dropdowns!$J$50:$L$51,2,FALSE)+1,FALSE) -> 1
A186: Philmac | B186: Challenger | C186: Standard? | D186: 212 | E186: Yellow | F186: 200 | G186: 0.98 | H186: 1.1 | I186: 23.9 | J186: 3mx3m | K186: Upright | L186: Modelled | M186: 20 | N186: Fast rotating | O186: Medium | P186: =VLOOKUP(N186,Dropdowns!$C$51:$F$56,R186+1,FALSE) -> Light < 11km/hr. Wind felt on face | Q186: 2 | R186: =VLOOKUP(N186,Dropdowns!$I$52:$L$56,HLOOKUP(O186,Dropdowns!$J$50:$L$51,2,FALSE)+1,FALSE) -> 1
A187: RainBird | B187: LF2400 | C187: 22-dark green | D187: 799 | E187: Red | F187: 420 | G187: 0.98 | H187: 1 | I187: 23.9 | J187: 5.5mx5.5m | K187: Upright | L187: Modelled | M187: 30 | N187: Impact | O187: Large | P187: =VLOOKUP(N187,Dropdowns!$C$51:$F$56,R187+1,FALSE) -> Moderate <28 km/hr. Dust & loose paper lifted. | Q187: 3 | R187: =VLOOKUP(N187,Dropdowns!$I$52:$L$56,HLOOKUP(O187,Dropdowns!$J$50:$L$51,2,FALSE)+1,FALSE) -> 3
A188: RainBird | B188: LF2400 | C188: 22-dark green | D188: 802 | E188: Silver | F188: 245 | G188: 0.98 | H188: 1 | I188: 23.9 | J188: 5.5mx5.5m | K188: Upright | L188: Modelled | M188: 30 | N188: Impact | O188: Large | P188: =VLOOKUP(N188,Dropdowns!$C$51:$F$56,R188+1,FALSE) -> Moderate <28 km/hr. Dust & loose paper lifted. | Q188: 3 | R188: =VLOOKUP(N188,Dropdowns!$I$52:$L$56,HLOOKUP(O188,Dropdowns!$J$50:$L$51,2,FALSE)+1,FALSE) -> 3
A189: RainBird | B189: LF2400 | C189: 15-tangerine | D189: 493 | E189: Tan | F189: 350 | G189: 0.98 | H189: 1 | I189: 23.9 | J189: 5mx5m | K189: Upright | L189: Modelled | M189: 30 | N189: Impact | O189: Large | P189: =VLOOKUP(N189,Dropdowns!$C$51:$F$56,R189+1,FALSE) -> Moderate <28 km/hr. Dust & loose paper lifted. | Q189: 3 | R189: =VLOOKUP(N189,Dropdowns!$I$52:$L$56,HLOOKUP(O189,Dropdowns!$J$50:$L$51,2,FALSE)+1,FALSE) -> 3
A190: NaanDan | B190: 5035 | C190: Standard | D190: 1950 | E190: 5.0 x 2.5 | F190: 300 | G190: 0.98 | H190: 1.1 | I190: 24 | J190: 9mx9m | K190: Upright | L190: Modelled | M190: 50 | N190: Impact | O190: Large | P190: =VLOOKUP(N190,Dropdowns!$C$51:$F$56,R190+1,FALSE) -> Moderate <28 km/hr. Dust & loose paper lifted. | Q190: 3 | R190: =VLOOKUP(N190,Dropdowns!$I$52:$L$56,HLOOKUP(O190,Dropdowns!$J$50:$L$51,2,FALSE)+1,FALSE) -> 3
A191: NaanDan | B191: 5035 | C191: Not specified | D191: 1950 | E191: 5.0 x 2.5 | F191: 300 | G191: 0.98 | H191: 1.1 | I191: 24 | J191: 9mx9m | K191: Upright | L191: Modelled | M191: 50 | N191: Impact | O191: Large | P191: =VLOOKUP(N191,Dropdowns!$C$51:$F$56,R191+1,FALSE) -> Moderate <28 km/hr. Dust & loose paper lifted. | Q191: 3 | R191: =VLOOKUP(N191,Dropdowns!$I$52:$L$56,HLOOKUP(O191,Dropdowns!$J$50:$L$51,2,FALSE)+1,FALSE) -> 3
A192: Toro | B192: S11 | C192: Standard | D192: 1842 | E192: Grey x Red | F192: 400 | G192: 0.98 | H192: 1.1 | I192: 24.2 | J192: 9mx9m | K192: Upright | L192: Modelled | M192: 100 | N192: Impact | O192: Large | P192: =VLOOKUP(N192,Dropdowns!$C$51:$F$56,R192+1,FALSE) -> Moderate <28 km/hr. Dust & loose paper lifted. | Q192: 3 | R192: =VLOOKUP(N192,Dropdowns!$I$52:$L$56,HLOOKUP(O192,Dropdowns!$J$50:$L$51,2,FALSE)+1,FALSE) -> 3
A193: Toro | B193: S11 | C193: Not specified | D193: 1842 | E193: Grey x Red | F193: 400 | G193: 0.98 | H193: 1.1 | I193: 24.2 | J193: 9mx9m | K193: Upright | L193: Modelled | M193: 100 | N193: Impact | O193: Large | P193: =VLOOKUP(N193,Dropdowns!$C$51:$F$56,R193+1,FALSE) -> Moderate <28 km/hr. Dust & loose paper lifted. | Q193: 3 | R193: =VLOOKUP(N193,Dropdowns!$I$52:$L$56,HLOOKUP(O193,Dropdowns!$J$50:$L$51,2,FALSE)+1,FALSE) -> 3
A194: Nelson | B194: R10 | C194: P4 9° White | D194: 145 | E194: #60 Light Red | F194: 276 | G194: 0.98 | H194: 1.1 | I194: 24.4 | J194: 2.5mx2.5m | K194: Upright | L194: Modelled | M194: 31 | N194: Single stream rotator | O194: Medium | P194: =VLOOKUP(N194,Dropdowns!$C$51:$F$56,R194+1,FALSE) -> Gentle < 19 km/hr. Flags flap | Q194: =IF(O194="Small",1,IF(O194="Medium",2,IF(O194="Large",3,4))) -> 2 | R194: =VLOOKUP(N194,Dropdowns!$I$52:$L$56,HLOOKUP(O194,Dropdowns!$J$50:$L$51,2,FALSE)+1,FALSE) -> 2
A195: RainBird | B195: LF1200 | C195: 12-cyan | D195: 450 | E195: Purple | F195: 420 | G195: 0.98 | H195: 1 | I195: 24.6 | J195: 4mx4m | K195: Upright | L195: Modelled | M195: 30 | N195: Impact | O195: =IF(D195<56,"Small",IF(AND(D195>55,D195<401),"Medium","Large")) -> Large | P195: =VLOOKUP(N195,Dropdowns!$C$51:$F$56,R195+1,FALSE) -> Moderate <28 km/hr. Dust & loose paper lifted. | Q195: 3 | R195: =VLOOKUP(N195,Dropdowns!$I$52:$L$56,HLOOKUP(O195,Dropdowns!$J$50:$L$51,2,FALSE)+1,FALSE) -> 3
A196: RainBird | B196: LF1200 | C196: 17-powder blue | D196: 450 | E196: Purple | F196: 420 | G196: 0.98 | H196: 1 | I196: 24.6 | J196: 4mx4m | K196: Upright | L196: Modelled | M196: 30 | N196: Impact | O196: Large | P196: =VLOOKUP(N196,Dropdowns!$C$51:$F$56,R196+1,FALSE) -> Moderate <28 km/hr. Dust & loose paper lifted. | Q196: 3 | R196: =VLOOKUP(N196,Dropdowns!$I$52:$L$56,HLOOKUP(O196,Dropdowns!$J$50:$L$51,2,FALSE)+1,FALSE) -> 3
A197: RainBird | B197: LF1200 | C197: 21-olive | D197: 450 | E197: Purple | F197: 420 | G197: 0.98 | H197: 1 | I197: 24.6 | J197: 4mx4m | K197: Upright | L197: Modelled | M197: 30 | N197: Impact | O197: Large | P197: =VLOOKUP(N197,Dropdowns!$C$51:$F$56,R197+1,FALSE) -> Moderate <28 km/hr. Dust & loose paper lifted. | Q197: 3 | R197: =VLOOKUP(N197,Dropdowns!$I$52:$L$56,HLOOKUP(O197,Dropdowns!$J$50:$L$51,2,FALSE)+1,FALSE) -> 3
A198: Nelson | B198: R10TURBO | C198: P6 9° Blue | D198: 159 | E198: #70 White | F198: 172 | G198: 0.98 | H198: 1 | I198: 24.7 | J198: 2.5mx2.5m | K198: Upright | L198: Modelled | M198: 31 | N198: Single stream rotator | O198: Medium | P198: =VLOOKUP(N198,Dropdowns!$C$51:$F$56,R198+1,FALSE) -> Gentle < 19 km/hr. Flags flap | Q198: 2 | R198: =VLOOKUP(N198,Dropdowns!$I$52:$L$56,HLOOKUP(O198,Dropdowns!$J$50:$L$51,2,FALSE)+1,FALSE) -> 2
A199: Nelson | B199: R10TURBO | C199: P6 9° Blue | D199: 159 | E199: #70 White | F199: 172 | G199: 0.98 | H199: 1 | I199: 24.7 | J199: 2.5mx2.5m | K199: Upright | L199: Modelled | M199: 31 | N199: Single stream rotator | O199: Medium | P199: =VLOOKUP(N199,Dropdowns!$C$51:$F$56,R199+1,FALSE) -> Gentle < 19 km/hr. Flags flap | Q199: 2 | R199: =VLOOKUP(N199,Dropdowns!$I$52:$L$56,HLOOKUP(O199,Dropdowns!$J$50:$L$51,2,FALSE)+1,FALSE) -> 2
A200: NaanDan | B200: 5035 | C200: Standard | D200: 2250 | E200: 5.0 x 2.5 | F200: 400 | G200: 0.98 | H200: 1.1 | I200: 24.9 | J200: 9.5mx9.5m | K200: Upright | L200: Modelled | M200: 50 | N200: Impact | O200: Large | P200: =VLOOKUP(N200,Dropdowns!$C$51:$F$56,R200+1,FALSE) -> Moderate <28 km/hr. Dust & loose paper lifted. | Q200: 3 | R200: =VLOOKUP(N200,Dropdowns!$I$52:$L$56,HLOOKUP(O200,Dropdowns!$J$50:$L$51,2,FALSE)+1,FALSE) -> 3
... 3122 more rows

Sheet Original data
A1: Manufacturer | B1: Sprinkler | C1: Flow rate L/hr | D1: Nozzle size/colour | E1: Pressure kPa | F1: CU % | G1: SC | H1: MAR mm/hr | I1: Spacing m | J1: Position | K1: Scenario | L1: Sprinkler height cm. Note: Uniformity will be reduced if installed height is less than this height | M1: Sprinkler stream type | N1: Droplet Size | O1: Approximate wind tolerance | P1: Droplet size ranking | Q1: Wind tolerance ranking | R1: 65 | S1: 15.3 | T1: 2 | U1: =S1*T1*T1/(100/R1) -> 39.78 | V1: =T1*T1*S1*220/227 -> 59.31277533
A2: RainBird | B2: LF1200 | C2: 343 | D2: orange | E2: 350 | F2: 0.93 | G2: 1.1 | H2: 3.1 | I2: 10.5mx10.5m | J2: Upright | K2: Modelled | L2: 30 | M2: Impact | N2: Large | O2: =VLOOKUP(M2,Dropdowns!$C$51:$F$55,Data!R2519+1,FALSE) -> Moderate <28 km/hr. Dust & loose paper lifted. | P2: =IF(N2="Small",1,IF(N2="Medium",2,IF(N2="Large",3,4))) -> 3 | Q2: 3 | R2: =H2*LEFT(I2,4)*LEFT(I2,4) -> 341.775 | S2: =(R2-C2)/C2 -> -0.003571428571
A3: RainBird | B3: LF1200 | C3: 343 | D3: orange | E3: 350 | F3: 0.91 | G3: 1.1 | H3: 3.1 | I3: 10.5mx10.5m | J3: Upright | K3: Modelled | L3: 30 | M3: Impact | N3: Large | O3: =VLOOKUP(M3,Dropdowns!$C$51:$F$55,Data!R2521+1,FALSE) -> Moderate <28 km/hr. Dust & loose paper lifted. | P3: 3 | Q3: 3 | R3: 341.775 | S3: -0.003571428571
A4: RainBird | B4: LF1200 | C4: 343 | D4: orange | E4: 350 | F4: 0.89 | G4: 1.2 | H4: 3.1 | I4: 10.5mx10.5m | J4: Upright | K4: Modelled | L4: 30 | M4: Impact | N4: Large | O4: =VLOOKUP(M4,Dropdowns!$C$51:$F$55,Data!R2523+1,FALSE) -> Moderate <28 km/hr. Dust & loose paper lifted. | P4: 3 | Q4: 3 | R4: 341.775 | S4: -0.003571428571
A5: RainBird | B5: LF1200 | C5: 343 | D5: orange | E5: 350 | F5: 0.89 | G5: 1.2 | H5: 3.1 | I5: 10.5mx10.5m | J5: Upright | K5: Modelled | L5: 30 | M5: Impact | N5: Large | O5: =VLOOKUP(M5,Dropdowns!$C$51:$F$55,Data!R2524+1,FALSE) -> Moderate <28 km/hr. Dust & loose paper lifted. | P5: 3 | Q5: 3 | R5: 341.775 | S5: -0.003571428571
A6: RainBird | B6: LF1200 | C6: 361 | D6: orange | E6: 385 | F6: 0.92 | G6: 1.1 | H6: 3.1 | I6: 10.5mx10.5m | J6: Upright | K6: Modelled | L6: 30 | M6: Impact | N6: Large | O6: =VLOOKUP(M6,Dropdowns!$C$51:$F$55,Data!R2520+1,FALSE) -> Moderate <28 km/hr. Dust & loose paper lifted. | P6: 3 | Q6: 3 | R6: 341.775 | S6: -0.05325484765
A7: RainBird | B7: LF800 | C7: 361 | D7: orange | E7: 385 | F7: 0.9 | G7: 1.1 | H7: 3.1 | I7: 10.5mx10.5m | J7: Upright | K7: Modelled | L7: 30 | M7: Impact | N7: Large | O7: =VLOOKUP(M7,Dropdowns!$C$51:$F$55,Data!R2522+1,FALSE) -> Moderate <28 km/hr. Dust & loose paper lifted. | P7: 3 | Q7: 3 | R7: 341.775 | S7: -0.05325484765
A8: Netafim | B8: N-85 (2.60+0) | C8: 430 | D8: 23deg | E8: 250 | F8: 0.88 | G8: 1.2 | H8: 3.2 | I8: 10.5mx10.5m | J8: Upright | K8: Modelled | L8: 100 | M8: Impact | N8: Large | O8: =VLOOKUP(M8,Dropdowns!$C$51:$F$55,Data!R2593+1,FALSE) -> Moderate <28 km/hr. Dust & loose paper lifted. | P8: 3 | Q8: 3 | R8: 352.8 | S8: -0.1795348837
A9: RainBird | B9: LF1200 | C9: 379 | D9: orange | E9: 420 | F9: 0.93 | G9: 1.1 | H9: 3.3 | I9: 10.5mx10.5m | J9: Upright | K9: Modelled | L9: 30 | M9: Impact | N9: Large | O9: =VLOOKUP(M9,Dropdowns!$C$51:$F$55,Data!R2525+1,FALSE) -> Moderate <28 km/hr. Dust & loose paper lifted. | P9: 3 | Q9: 3 | R9: 363.825 | S9: -0.04003957784
A10: RainBird | B10: LF800 | C10: 379 | D10: orange | E10: 420 | F10: 0.93 | G10: 1.1 | H10: 3.3 | I10: 10.5mx10.5m | J10: Upright | K10: Modelled | L10: 30 | M10: Impact | N10: Large | O10: =VLOOKUP(M10,Dropdowns!$C$51:$F$55,Data!R2526+1,FALSE) -> Moderate <28 km/hr. Dust & loose paper lifted. | P10: 3 | Q10: 3 | R10: 363.825 | S10: -0.04003957784
A11: RainBird | B11: LF1200 | C11: 379 | D11: orange | E11: 420 | F11: 0.92 | G11: 1.1 | H11: 3.3 | I11: 10.5mx10.5m | J11: Upright | K11: Modelled | L11: 30 | M11: Impact | N11: Large | O11: =VLOOKUP(M11,Dropdowns!$C$51:$F$55,Data!R2527+1,FALSE) -> Moderate <28 km/hr. Dust & loose paper lifted. | P11: 3 | Q11: 3 | R11: 363.825 | S11: -0.04003957784
A12: RainBird | B12: LF1200 | C12: 379 | D12: orange | E12: 420 | F12: 0.91 | G12: 1.1 | H12: 3.3 | I12: 10.5mx10.5m | J12: Upright | K12: Modelled | L12: 30 | M12: Impact | N12: Large | O12: =VLOOKUP(M12,Dropdowns!$C$51:$F$55,Data!R2528+1,FALSE) -> Moderate <28 km/hr. Dust & loose paper lifted. | P12: 3 | Q12: 3 | R12: 363.825 | S12: -0.04003957784
A13: RainBird | B13: LF1200 | C13: 388 | D13: purple | E13: 315 | F13: 0.88 | G13: 1.2 | H13: 3.3 | I13: 10.5mx10.5m | J13: Upright | K13: Modelled | L13: 30 | M13: Impact | N13: Large | O13: =VLOOKUP(M13,Dropdowns!$C$51:$F$55,Data!R2529+1,FALSE) -> Moderate <28 km/hr. Dust & loose paper lifted. | P13: 3 | Q13: 3 | R13: 363.825 | S13: -0.06230670103
A14: Netafim | B14: N-85 (2.25+1.5) | C14: 486 | D14: 23deg | E14: 250 | F14: 0.88 | G14: 1.2 | H14: 3.5 | I14: 10.5mx10.5m | J14: Upright | K14: Modelled | L14: 100 | M14: Impact | N14: Large | O14: =VLOOKUP(M14,Dropdowns!$C$51:$F$55,Data!R2594+1,FALSE) -> Moderate <28 km/hr. Dust & loose paper lifted. | P14: 3 | Q14: 3 | R14: 385.875 | S14: -0.2060185185
A15: RainBird | B15: LF1200 | C15: 409 | D15: purple | E15: 350 | F15: 0.91 | G15: 1.1 | H15: 3.6 | I15: 10.5mx10.5m | J15: Upright | K15: Modelled | L15: 30 | M15: Impact | N15: Large | O15: =VLOOKUP(M15,Dropdowns!$C$51:$F$55,Data!R2530+1,FALSE) -> Moderate <28 km/hr. Dust & loose paper lifted. | P15: 3 | Q15: 3 | R15: 396.9 | S15: -0.02958435208
A16: Nelson | B16: R2000 15 K4 | C16: 458 | D16: #13Yellow | E16: 310 | F16: 0.91 | G16: 1.3 | H16: 3.6 | I16: 10.5mx10.5m | J16: Upright | K16: Modelled | L16: 30.5 | M16: Single stream rotator | N16: Large | O16: =VLOOKUP(M16,Dropdowns!$C$51:$F$55,Data!R2531+1,FALSE) -> Gentle < 19 km/hr. Flags flap | P16: 3 | Q16: 3 | R16: 396.9 | S16: -0.1334061135
A17: Nelson | B17: R2000 24 K4 | C17: 404 | D17: #13 Yellow | E17: 214 | F17: 0.89 | G17: 1.4 | H17: 3.7 | I17: 10.5mx10.5m | J17: Upright | K17: Modelled | L17: 45.7 | M17: Single stream rotator | N17: Large | O17: =VLOOKUP(M17,Dropdowns!$C$51:$F$55,Data!R2532+1,FALSE) -> Moderate <28 km/hr. Dust & loose paper lifted. | P17: 3 | Q17: 3 | R17: 407.925 | S17: 0.009715346535
A18: Nelson | B18: R2000 24 K3 | C18: 386 | D18: #12Purple | E18: 310 | F18: 0.88 | G18: 1.3 | H18: 3.8 | I18: 10.5mx10.5m | J18: Upright | K18: Modelled | L18: 45.7 | M18: Single stream rotator | N18: Large | O18: =VLOOKUP(M18,Dropdowns!$C$51:$F$55,Data!R2533+1,FALSE) -> Moderate <28 km/hr. Dust & loose paper lifted. | P18: 3 | Q18: 3 | R18: 418.95 | S18: 0.0853626943
A19: RainBird | B19: LF1200 | C19: 429 | D19: purple | E19: 385 | F19: 0.91 | G19: 1.2 | H19: 3.8 | I19: 10.5mx10.5m | J19: Upright | K19: Modelled | L19: 30 | M19: Impact | N19: Large | O19: =VLOOKUP(M19,Dropdowns!$C$51:$F$55,Data!R2534+1,FALSE) -> Moderate <28 km/hr. Dust & loose paper lifted. | P19: 3 | Q19: 3 | R19: 418.95 | S19: -0.02342657343
A20: Nelson | B20: R2000 24 K5 | C20: 493 | D20: #15 Tan | E20: 207 | F20: 0.87 | G20: 1.2 | H20: 3.9 | I20: 10.5mx10.5m | J20: Upright | K20: Modelled | L20: 45.7 | M20: Single stream rotator | N20: Large | O20: =VLOOKUP(M20,Dropdowns!$C$51:$F$55,Data!R2535+1,FALSE) -> Gentle < 19 km/hr. Flags flap | P20: 3 | Q20: 3 | R20: 429.975 | S20: -0.1278397566
A21: Nelson | B21: R2000 24 K4 | C21: 431 | D21: #13 Yellow | E21: 276 | F21: 0.92 | G21: 1.3 | H21: 4 | I21: 10.5mx10.5m | J21: Upright | K21: Modelled | L21: 45.7 | M21: Single stream rotator | N21: Large | O21: =VLOOKUP(M21,Dropdowns!$C$51:$F$55,Data!R2536+1,FALSE) -> Moderate <28 km/hr. Dust & loose paper lifted. | P21: 3 | Q21: 3 | R21: 441 | S21: 0.02320185615
A22: Netafim | B22: N-85 (2.45+1.5) | C22: 384 | D22: 23deg | E22: 250 | F22: 0.91 | G22: 1.2 | H22: 4.1 | I22: 10.5mx10.5m | J22: Upright | K22: Modelled | L22: 100 | M22: Impact | N22: Large | O22: =VLOOKUP(M22,Dropdowns!$C$51:$F$55,Data!R2595+1,FALSE) -> Moderate <28 km/hr. Dust & loose paper lifted. | P22: 3 | Q22: 3 | R22: 452.025 | S22: 0.1771484375
A23: RainBird | B23: LF1200 | C23: 450 | D23: purple | E23: 420 | F23: 0.92 | G23: 1.2 | H23: 4.1 | I23: 10.5mx10.5m | J23: Upright | K23: Modelled | L23: 30 | M23: Impact | N23: Large | O23: =VLOOKUP(M23,Dropdowns!$C$51:$F$55,Data!R2537+1,FALSE) -> Moderate <28 km/hr. Dust & loose paper lifted. | P23: 3 | Q23: 3 | R23: 452.025 | S23: 0.0045
A24: RainBird | B24: LF1200 | C24: 450 | D24: purple | E24: 420 | F24: 0.91 | G24: 1.2 | H24: 4.1 | I24: 10.5mx10.5m | J24: Upright | K24: Modelled | L24: 30 | M24: Impact | N24: Large | O24: =VLOOKUP(M24,Dropdowns!$C$51:$F$55,Data!R2538+1,FALSE) -> Moderate <28 km/hr. Dust & loose paper lifted. | P24: 3 | Q24: 3 | R24: 452.025 | S24: 0.0045
A25: NaanDan | B25: SUPER10 | C25: 450 | D25: Yellow 450 | E25: 250 | F25: 0.87 | G25: 1.3 | H25: 4.2 | I25: 10.5mx10.5m | J25: Upright | K25: Modelled | L25: 60 | M25: Single stream rotator | N25: Large | O25: =VLOOKUP(M25,Dropdowns!$C$51:$F$55,Data!R2539+1,FALSE) -> Gentle < 19 km/hr. Flags flap | P25: 3 | Q25: 3 | R25: 463.05 | S25: 0.029
A26: Nelson | B26: R2000 24 K4 | C26: 459 | D26: #13 Yellow | E26: 310 | F26: 0.92 | G26: 1.2 | H26: 4.3 | I26: 10.5mx10.5m | J26: Upright | K26: Modelled | L26: 45.7 | M26: Single stream rotator | N26: Large | O26: =VLOOKUP(M26,Dropdowns!$C$51:$F$55,Data!R2540+1,FALSE) -> Gentle < 19 km/hr. Flags flap | P26: 3 | Q26: 3 | R26: 474.075 | S26: 0.03284313725
A27: Nelson | B27: R2000 15 K4 | C27: 459 | D27: #14 Green | E27: 310 | F27: 0.9 | G27: 1.2 | H27: 4.4 | I27: 10.5mx10.5m | J27: Upright | K27: Modelled | L27: 30.5 | M27: Single stream rotator | N27: Large | O27: =VLOOKUP(M27,Dropdowns!$C$51:$F$55,Data!R2541+1,FALSE) -> Moderate <28 km/hr. Dust & loose paper lifted. | P27: 3 | Q27: 3 | R27: 485.1 | S27: 0.0568627451
A28: NaanDan | B28: SUPER10 | C28: 550 | D28: Green550 | E28: 250 | F28: 0.9 | G28: 1.2 | H28: 4.9 | I28: 10.5mx10.5m | J28: Upright | K28: Modelled | L28: 60 | M28: Single stream rotator | N28: Large | O28: =VLOOKUP(M28,Dropdowns!$C$51:$F$55,Data!R2542+1,FALSE) -> Moderate <28 km/hr. Dust & loose paper lifted. | P28: 3 | Q28: 3 | R28: 540.225 | S28: -0.01777272727
A29: RainBird | B29: LF2400 | C29: 606 | D29: tan | E29: 315 | F29: 0.9 | G29: 1.2 | H29: 5.3 | I29: 10.5mx10.5m | J29: Upright | K29: Modelled | L29: 30 | M29: Impact | N29: Large | O29: =VLOOKUP(M29,Dropdowns!$C$51:$F$55,Data!R2543+1,FALSE) -> Moderate <28 km/hr. Dust & loose paper lifted. | P29: 3 | Q29: 3 | R29: 584.325 | S29: -0.03576732673
A30: RainBird | B30: LF2400 | C30: 613 | D30: green | E30: 420 | F30: 0.9 | G30: 1.3 | H30: 5.3 | I30: 10.5mx10.5m | J30: Upright | K30: Modelled | L30: 30 | M30: Impact | N30: Large | O30: =VLOOKUP(M30,Dropdowns!$C$51:$F$55,Data!R2544+1,FALSE) -> Moderate <28 km/hr. Dust & loose paper lifted. | P30: 3 | Q30: 3 | R30: 584.325 | S30: -0.04677814029
A31: RainBird | B31: LF2400 | C31: 638 | D31: tan | E31: 350 | F31: 0.91 | G31: 1.1 | H31: 5.6 | I31: 10.5mx10.5m | J31: Upright | K31: Modelled | L31: 30 | M31: Impact | N31: Large | O31: =VLOOKUP(M31,Dropdowns!$C$51:$F$55,Data!R2545+1,FALSE) -> Moderate <28 km/hr. Dust & loose paper lifted. | P31: 3 | Q31: 3 | R31: 617.4 | S31: -0.03228840125
A32: RainBird | B32: LF2400 | C32: 638 | D32: black | E32: 210 | F32: 0.87 | G32: 1.2 | H32: 5.6 | I32: 10.5mx10.5m | J32: Upright | K32: Modelled | L32: 30 | M32: Impact | N32: Large | O32: =VLOOKUP(M32,Dropdowns!$C$51:$F$55,Data!R2546+1,FALSE) -> Moderate <28 km/hr. Dust & loose paper lifted. | P32: 3 | Q32: 3 | R32: 617.4 | S32: -0.03228840125
A33: RainBird | B33: LF2400 | C33: 656 | D33: red | E33: 280 | F33: 0.9 | G33: 1.1 | H33: 5.8 | I33: 10.5mx10.5m | J33: Upright | K33: Modelled | L33: 30 | M33: Impact | N33: Large | O33: =VLOOKUP(M33,Dropdowns!$C$51:$F$55,Data!R2549+1,FALSE) -> Moderate <28 km/hr. Dust & loose paper lifted. | P33: 3 | Q33: 3 | R33: 639.45 | S33: -0.02522865854
A34: Nelson | B34: R2000 15 K5 | C34: 656 | D34: #16 Red | E34: 276 | F34: 0.85 | G34: 1.4 | H34: 5.8 | I34: 10.5mx10.5m | J34: Upright | K34: Modelled | L34: 30.5 | M34: Single stream rotator | N34: Large | O34: =VLOOKUP(M34,Dropdowns!$C$51:$F$55,Data!R2547+1,FALSE) -> Moderate <28 km/hr. Dust & loose paper lifted. | P34: 3 | Q34: 3 | R34: =H34*LEFT(I34,4)*LEFT(I34,4) -> 639.45 | S34: -0.02522865854
A35: RainBird | B35: LF2400 | C35: 670 | D35: tan | E35: 385 | F35: 0.93 | G35: 1.1 | H35: 5.8 | I35: 10.5mx10.5m | J35: Upright | K35: Modelled | L35: 30 | M35: Impact | N35: Large | O35: =VLOOKUP(M35,Dropdowns!$C$51:$F$55,Data!R2548+1,FALSE) -> Moderate <28 km/hr. Dust & loose paper lifted. | P35: 3 | Q35: 3 | R35: 639.45 | S35: -0.04559701493
A36: Nelson | B36: R2000 24 K5 | C36: 656 | D36: #16 Red | E36: 276 | F36: 0.91 | G36: 1.1 | H36: 6.1 | I36: 10.5mx10.5m | J36: Upright | K36: Modelled | L36: 45.7 | M36: Single stream rotator | N36: Large | O36: =VLOOKUP(M36,Dropdowns!$C$51:$F$55,Data!R2553+1,FALSE) -> Moderate <28 km/hr. Dust & loose paper lifted. | P36: 3 | Q36: 3 | R36: 672.525 | S36: 0.02519054878
A37: NaanDan | B37: SUPER10 | C37: 670 | D37: Red 670 | E37: 250 | F37: 0.89 | G37: 1.2 | H37: 6.1 | I37: 10.5mx10.5m | J37: Upright | K37: Modelled | L37: 60 | M37: Single stream rotator | N37: Large | O37: =VLOOKUP(M37,Dropdowns!$C$51:$F$55,Data!R2554+1,FALSE) -> Moderate <28 km/hr. Dust & loose paper lifted. | P37: 3 | Q37: 3 | R37: 672.525 | S37: 0.003768656716
A38: RainBird | B38: LF2400 | C38: 688 | D38: black | E38: 245 | F38: 0.91 | G38: 1.2 | H38: 6.1 | I38: 10.5mx10.5m | J38: Upright | K38: Modelled | L38: 30 | M38: Impact | N38: Large | O38: =VLOOKUP(M38,Dropdowns!$C$51:$F$55,Data!R2552+1,FALSE) -> Moderate <28 km/hr. Dust & loose paper lifted. | P38: 3 | Q38: 3 | R38: 672.525 | S38: -0.02249273256
A39: RainBird | B39: LF2400 | C39: 697 | D39: red | E39: 315 | F39: 0.93 | G39: 1.1 | H39: 6.1 | I39: 10.5mx10.5m | J39: Upright | K39: Modelled | L39: 30 | M39: Impact | N39: Large | O39: =VLOOKUP(M39,Dropdowns!$C$51:$F$55,Data!R2551+1,FALSE) -> Moderate <28 km/hr. Dust & loose paper lifted. | P39: 3 | Q39: 3 | R39: 672.525 | S39: -0.03511477762
A40: RainBird | B40: LF2400 | C40: 702 | D40: tan | E40: 420 | F40: 0.94 | G40: 1.1 | H40: 6.1 | I40: 10.5mx10.5m | J40: Upright | K40: Modelled | L40: 30 | M40: Impact | N40: Large | O40: =VLOOKUP(M40,Dropdowns!$C$51:$F$55,Data!R2550+1,FALSE) -> Moderate <28 km/hr. Dust & loose paper lifted. | P40: 3 | Q40: 3 | R40: 672.525 | S40: -0.04198717949
A41: RainBird | B41: LF2400 | C41: 727 | D41: red | E41: 350 | F41: 0.92 | G41: 1.1 | H41: 6.4 | I41: 10.5mx10.5m | J41: Upright | K41: Modelled | L41: 30 | M41: Impact | N41: Large | O41: =VLOOKUP(M41,Dropdowns!$C$51:$F$55,Data!R2555+1,FALSE) -> Moderate <28 km/hr. Dust & loose paper lifted. | P41: 3 | Q41: 3 | R41: 705.6 | S41: -0.02943603851
A42: RainBird | B42: LF2400 | C42: 738 | D42: black | E42: 280 | F42: 0.92 | G42: 1.1 | H42: 6.6 | I42: 10.5mx10.5m | J42: Upright | K42: Modelled | L42: 30 | M42: Impact | N42: Large | O42: =VLOOKUP(M42,Dropdowns!$C$51:$F$55,Data!R2557+1,FALSE) -> Moderate <28 km/hr. Dust & loose paper lifted. | P42: 3 | Q42: 3 | R42: 727.65 | S42: -0.01402439024
A43: RainBird | B43: LF2400 | C43: 743 | D43: silver | E43: 210 | F43: 0.9 | G43: 1.2 | H43: 6.6 | I43: 10.5mx10.5m | J43: Upright | K43: Modelled | L43: 30 | M43: Impact | N43: Large | O43: =VLOOKUP(M43,Dropdowns!$C$51:$F$55,Data!R2558+1,FALSE) -> Moderate <28 km/hr. Dust & loose paper lifted. | P43: 3 | Q43: 3 | R43: 727.65 | S43: -0.02065948856
A44: RainBird | B44: LF2400 | C44: 763 | D44: red | E44: 385 | F44: 0.93 | G44: 1.1 | H44: 6.6 | I44: 10.5mx10.5m | J44: Upright | K44: Modelled | L44: 30 | M44: Impact | N44: Large | O44: =VLOOKUP(M44,Dropdowns!$C$51:$F$55,Data!R2556+1,FALSE) -> Moderate <28 km/hr. Dust & loose paper lifted. | P44: 3 | Q44: 3 | R44: 727.65 | S44: -0.04633027523
A45: RainBird | B45: LF2400 | C45: 763 | D45: red | E45: 385 | F45: 0.87 | G45: 1.2 | H45: 6.6 | I45: 10.5mx10.5m | J45: Upright | K45: Modelled | L45: 30 | M45: Impact | N45: Large | O45: =VLOOKUP(M45,Dropdowns!$C$51:$F$55,Data!R2559+1,FALSE) -> Moderate <28 km/hr. Dust & loose paper lifted. | P45: 3 | Q45: 3 | R45: 727.65 | S45: -0.04633027523
A46: Nelson | B46: MP Rotator | C46: 143 | D46: 90 210 | E46: 207 | F46: 0.85 | G46: 1.4 | H46: 6.9 | I46: 10.5mx10.5m | J46: Upright | K46: Modelled | L46: 10.2 | M46: Multi-stream | N46: Medium | O46: =VLOOKUP(M46,Dropdowns!$C$51:$F$55,Data!R2561+1,FALSE) -> Moderate <28 km/hr. Dust & loose paper lifted. | P46: 2 | Q46: 2 | R46: 760.725 | S46: 4.319755245
A47: RainBird | B47: LF2400 | C47: 784 | D47: black | E47: 315 | F47: 0.93 | G47: 1.1 | H47: 6.9 | I47: 10.5mx10.5m | J47: Upright | K47: Modelled | L47: 30 | M47: Impact | N47: Large | O47: =VLOOKUP(M47,Dropdowns!$C$51:$F$55,Data!R2560+1,FALSE) -> Moderate <28 km/hr. Dust & loose paper lifted. | P47: 3 | Q47: 3 | R47: 760.725 | S47: -0.0296875
A48: RainBird | B48: LF2400 | C48: 799 | D48: red | E48: 420 | F48: 0.92 | G48: 1.1 | H48: 7.1 | I48: 10.5mx10.5m | J48: Upright | K48: Modelled | L48: 30 | M48: Impact | N48: Large | O48: =VLOOKUP(M48,Dropdowns!$C$51:$F$55,Data!R2563+1,FALSE) -> Moderate <28 km/hr. Dust & loose paper lifted. | P48: 3 | Q48: 3 | R48: 782.775 | S48: -0.02030663329
A49: RainBird | B49: LF2400 | C49: 799 | D49: red | E49: 420 | F49: 0.87 | G49: 1.2 | H49: 7.1 | I49: 10.5mx10.5m | J49: Upright | K49: Modelled | L49: 30 | M49: Impact | N49: Large | O49: =VLOOKUP(M49,Dropdowns!$C$51:$F$55,Data!R2565+1,FALSE) -> Moderate <28 km/hr. Dust & loose paper lifted. | P49: 3 | Q49: 3 | R49: 782.775 | S49: -0.02030663329
A50: RainBird | B50: LF2400 | C50: 802 | D50: silver | E50: 245 | F50: 0.9 | G50: 1.1 | H50: 7.1 | I50: 10.5mx10.5m | J50: Upright | K50: Modelled | L50: 30 | M50: Impact | N50: Large | O50: =VLOOKUP(M50,Dropdowns!$C$51:$F$55,Data!R2564+1,FALSE) -> Moderate <28 km/hr. Dust & loose paper lifted. | P50: 3 | Q50: 3 | R50: 782.775 | S50: -0.0239713217
A51: RainBird | B51: LF2400 | C51: 818 | D51: black | E51: 350 | F51: 0.94 | G51: 1.1 | H51: 7.1 | I51: 10.5mx10.5m | J51: Upright | K51: Modelled | L51: 30 | M51: Impact | N51: Large | O51: =VLOOKUP(M51,Dropdowns!$C$51:$F$55,Data!R2562+1,FALSE) -> Moderate <28 km/hr. Dust & loose paper lifted. | P51: 3 | Q51: 3 | R51: 782.775 | S51: -0.04306234719
A52: RainBird | B52: LF2400 | C52: 852 | D52: black | E52: 385 | F52: 0.94 | G52: 1.1 | H52: 7.4 | I52: 10.5mx10.5m | J52: Upright | K52: Modelled | L52: 30 | M52: Impact | N52: Large | O52: =VLOOKUP(M52,Dropdowns!$C$51:$F$55,Data!R2566+1,FALSE) -> Moderate <28 km/hr. Dust & loose paper lifted. | P52: 3 | Q52: 3 | R52: 815.85 | S52: -0.04242957746
A53: NaanDan | B53: 5022 | C53: 840 | D53: 3.0 x 1.8 | E53: 300 | F53: 0.93 | G53: 1.2 | H53: 7.6 | I53: 10.5mx10.5m | J53: Upright | K53: Modelled | L53: 50 | M53: Impact | N53: Large | O53: =VLOOKUP(M53,Dropdowns!$C$51:$F$55,Data!R2567+1,FALSE) -> Moderate <28 km/hr. Dust & loose paper lifted. | P53: 3 | Q53: 3 | R53: 837.9 | S53: -0.0025
A54: RainBird | B54: LF2400 | C54: 858 | D54: silver | E54: 280 | F54: 0.91 | G54: 1.1 | H54: 7.6 | I54: 10.5mx10.5m | J54: Upright | K54: Modelled | L54: 30 | M54: Impact | N54: Large | O54: =VLOOKUP(M54,Dropdowns!$C$51:$F$55,Data!R2569+1,FALSE) -> Moderate <28 km/hr. Dust & loose paper lifted. | P54: 3 | Q54: 3 | R54: 837.9 | S54: -0.02342657343
A55: RainBird | B55: LF2400 | C55: 881 | D55: black | E55: 420 | F55: 0.94 | G55: 1.1 | H55: 7.6 | I55: 10.5mx10.5m | J55: Upright | K55: Modelled | L55: 30 | M55: Impact | N55: Large | O55: =VLOOKUP(M55,Dropdowns!$C$51:$F$55,Data!R2568+1,FALSE) -> Moderate <28 km/hr. Dust & loose paper lifted. | P55: 3 | Q55: 3 | R55: 837.9 | S55: -0.04892167991
A56: RainBird | B56: LF2400 | C56: 881 | D56: black | E56: 420 | F56: 0.89 | G56: 1.2 | H56: 7.6 | I56: 10.5mx10.5m | J56: Upright | K56: Modelled | L56: 30 | M56: Impact | N56: Large | O56: =VLOOKUP(M56,Dropdowns!$C$51:$F$55,Data!R2570+1,FALSE) -> Moderate <28 km/hr. Dust & loose paper lifted. | P56: 3 | Q56: 3 | R56: 837.9 | S56: -0.04892167991
A57: Netafim | B57: N-85 (3.5+1.5) | C57: 834 | D57: 23deg | E57: 250 | F57: 0.91 | G57: 1.1 | H57: 7.7 | I57: 10.5mx10.5m | J57: Upright | K57: Modelled | L57: 100 | M57: Impact | N57: Large | O57: =VLOOKUP(M57,Dropdowns!$C$51:$F$55,Data!R2596+1,FALSE) -> Moderate <28 km/hr. Dust & loose paper lifted. | P57: 3 | Q57: 3 | R57: 848.925 | S57: 0.01789568345
A58: Nelson | B58: MP Rotator | C58: 168 | D58: 90 210 | E58: 276 | F58: 0.86 | G58: 1.2 | H58: 8 | I58: 10.5mx10.5m | J58: Upright | K58: Modelled | L58: 10.2 | M58: Multi-stream | N58: Medium | O58: =VLOOKUP(M58,Dropdowns!$C$51:$F$55,Data!R2571+1,FALSE) -> 0 | P58: 2 | Q58: 2 | R58: 882 | S58: 4.25
A59: RainBird | B59: LF2400 | C59: 913 | D59: silver | E59: 315 | F59: 0.91 | G59: 1.1 | H59: 8.1 | I59: 10.5mx10.5m | J59: Upright | K59: Modelled | L59: 30 | M59: Impact | N59: Large | O59: =VLOOKUP(M59,Dropdowns!$C$51:$F$55,Data!R2572+1,FALSE) -> Moderate <28 km/hr. Dust & loose paper lifted. | P59: 3 | Q59: 3 | R59: 893.025 | S59: -0.02187842278
A60: RainBird | B60: LF2400 | C60: 913 | D60: silver | E60: 315 | F60: 0.89 | G60: 1.2 | H60: 8.1 | I60: 10.5mx10.5m | J60: Upright | K60: Modelled | L60: 30 | M60: Impact | N60: Large | O60: =VLOOKUP(M60,Dropdowns!$C$51:$F$55,Data!R2573+1,FALSE) -> Moderate <28 km/hr. Dust & loose paper lifted. | P60: 3 | Q60: 3 | R60: 893.025 | S60: -0.02187842278
A61: Nelson | B61: MP Rotator | C61: 188 | D61: 90 210 | E61: 345 | F61: 0.88 | G61: 1.2 | H61: 8.6 | I61: 10.5mx10.5m | J61: Upright | K61: Modelled | L61: 10.2 | M61: Multi-stream | N61: Medium | O61: =VLOOKUP(M61,Dropdowns!$C$51:$F$55,Data!R2574+1,FALSE) -> 0 | P61: 2 | Q61: 2 | R61: 948.15 | S61: 4.043351064
A62: Toro | B62: S11 | C62: 1080 | D62: Wht x Grn | E62: 300 | F62: 0.89 | G62: 1.2 | H62: 11.1 | I62: 10.5mx10.5m | J62: Upright | K62: Modelled | L62: 100 | M62: Impact | N62: Large | O62: =VLOOKUP(M62,Dropdowns!$C$51:$F$55,Data!R2597+1,FALSE) -> Moderate <28 km/hr. Dust & loose paper lifted. | P62: 3 | Q62: 3 | R62: 1223.775 | S62: 0.133125
A63: Toro | B63: S11 | C63: 1260 | D63: Wht x Grn | E63: 400 | F63: 0.92 | G63: 1.1 | H63: 12.4 | I63: 10.5mx10.5m | J63: Upright | K63: Modelled | L63: 100 | M63: Impact | N63: Large | O63: =VLOOKUP(M63,Dropdowns!$C$51:$F$55,Data!R2598+1,FALSE) -> Moderate <28 km/hr. Dust & loose paper lifted. | P63: 3 | Q63: 3 | R63: 1367.1 | S63: 0.085
A64: Toro | B64: XP 300 | C64: 0 | D64: 7 | E64: 400 | F64: 0.92 | G64: 1.2 | H64: 13.5 | I64: 10.5mx10.5m | J64: Upright | K64: Modelled | L64: 30 | M64: Multi-stream | N64: Large | O64: =VLOOKUP(M64,Dropdowns!$C$51:$F$55,Data!R2575+1,FALSE) -> 0 | P64: 3 | Q64: 2 | R64: 1488.375
A65: Toro | B65: XP 300 | C65: 0 | D65: 10 | E65: 300 | F65: 0.91 | G65: 1.2 | H65: 13.5 | I65: 10.5mx10.5m | J65: Upright | K65: Modelled | L65: 100 | M65: Multi-stream | N65: Large | O65: =VLOOKUP(M65,Dropdowns!$C$51:$F$55,Data!R2599+1,FALSE) -> Moderate <28 km/hr. Dust & loose paper lifted. | P65: 3 | Q65: 2 | R65: 1488.375
A66: Toro | B66: XP 300 | C66: 0 | D66: 7 | E66: 350 | F66: 0.89 | G66: 1.2 | H66: 13.5 | I66: 10.5mx10.5m | J66: Upright | K66: Modelled | L66: 30 | M66: Multi-stream | N66: Large | O66: =VLOOKUP(M66,Dropdowns!$C$51:$F$55,Data!R2576+1,FALSE) -> Moderate <28 km/hr. Dust & loose paper lifted. | P66: =IF(N66="Small",1,IF(N66="Medium",2,IF(N66="Large",3,4))) -> 3 | Q66: 2 | R66: =H66*LEFT(I66,4)*LEFT(I66,4) -> 1488.375 | S66: =(R66-C66)/C66 -> 
A67: Toro | B67: S11 | C67: 1278 | D67: Blck x Orge | E67: 300 | F67: 0.93 | G67: 1.1 | H67: 13.7 | I67: 10.5mx10.5m | J67: Upright | K67: Modelled | L67: 100 | M67: Impact | N67: Large | O67: =VLOOKUP(M67,Dropdowns!$C$51:$F$55,Data!R2600+1,FALSE) -> Moderate <28 km/hr. Dust & loose paper lifted. | P67: 3 | Q67: 3 | R67: 1510.425 | S67: 0.1818661972
A68: Toro | B68: XP 300 | C68: 0 | D68: 7 | E68: 500 | F68: 0.92 | G68: 1.2 | H68: 14.2 | I68: 10.5mx10.5m | J68: Upright | K68: Modelled | L68: 30 | M68: Multi-stream | N68: Large | O68: =VLOOKUP(M68,Dropdowns!$C$51:$F$55,Data!R2577+1,FALSE) -> Moderate <28 km/hr. Dust & loose paper lifted. | P68: 3 | Q68: 2 | R68: 1565.55
A69: Toro | B69: XP 300 | C69: 0 | D69: 7 | E69: 450 | F69: 0.93 | G69: 1.2 | H69: 14.4 | I69: 10.5mx10.5m | J69: Upright | K69: Modelled | L69: 30 | M69: Multi-stream | N69: Large | O69: =VLOOKUP(M69,Dropdowns!$C$51:$F$55,Data!R2578+1,FALSE) -> 0 | P69: 3 | Q69: 2 | R69: 1587.6
A70: NaanDan | B70: 5035 | C70: 1638 | D70: 4.5 x 2.5 | E70: 300 | F70: 0.93 | G70: 1.1 | H70: 14.9 | I70: 10.5mx10.5m | J70: Upright | K70: Modelled | L70: 50 | M70: Impact | N70: Large | O70: =VLOOKUP(M70,Dropdowns!$C$51:$F$55,Data!R2579+1,FALSE) -> Moderate <28 km/hr. Dust & loose paper lifted. | P70: 3 | Q70: 3 | R70: 1642.725 | S70: 0.002884615385
A71: Toro | B71: XP 300 | C71: 0 | D71: 10 | E71: 300 | F71: 0.92 | G71: 1.2 | H71: 15.2 | I71: 10.5mx10.5m | J71: Upright | K71: Modelled | L71: 30 | M71: Multi-stream | N71: Large | O71: =VLOOKUP(M71,Dropdowns!$C$51:$F$55,Data!R2580+1,FALSE) -> Gentle < 19 km/hr. Flags flap | P71: 3 | Q71: 2 | R71: 1675.8
A72: Toro | B72: XP 300 | C72: 0 | D72: 9 | E72: 300 | F72: 0.9 | G72: 1.2 | H72: 15.2 | I72: 10.5mx10.5m | J72: Upright | K72: Modelled | L72: 30 | M72: Multi-stream | N72: Large | O72: =VLOOKUP(M72,Dropdowns!$C$51:$F$55,Data!R2581+1,FALSE) -> 0 | P72: 3 | Q72: 2 | R72: 1675.8
A73: Toro | B73: S11 | C73: 1482 | D73: Blck x Orge | E73: 400 | F73: 0.95 | G73: 1.1 | H73: 15.5 | I73: 10.5mx10.5m | J73: Upright | K73: Modelled | L73: 100 | M73: Impact | N73: Large | O73: =VLOOKUP(M73,Dropdowns!$C$51:$F$55,Data!R2601+1,FALSE) -> Moderate <28 km/hr. Dust & loose paper lifted. | P73: 3 | Q73: 3 | R73: 1708.875 | S73: 0.1530870445
A74: Toro | B74: S11 | C74: 1590 | D74: Grey x Red | E74: 300 | F74: 0.94 | G74: 1.1 | H74: 15.6 | I74: 10.5mx10.5m | J74: Upright | K74: Modelled | L74: 100 | M74: Impact | N74: Large | O74: =VLOOKUP(M74,Dropdowns!$C$51:$F$55,Data!R2602+1,FALSE) -> Moderate <28 km/hr. Dust & loose paper lifted. | P74: 3 | Q74: 3 | R74: 1719.9 | S74: 0.08169811321
A75: Toro | B75: XP 300 | C75: 0 | D75: 9 | E75: 350 | F75: 0.93 | G75: 1.1 | H75: 15.7 | I75: 10.5mx10.5m | J75: Upright | K75: Modelled | L75: 30 | M75: Multi-stream | N75: Large | O75: =VLOOKUP(M75,Dropdowns!$C$51:$F$55,Data!R2582+1,FALSE) -> Moderate <28 km/hr. Dust & loose paper lifted. | P75: 3 | Q75: 2 | R75: 1730.925
A76: Toro | B76: XP 300 | C76: 0 | D76: 9 | E76: 400 | F76: 0.93 | G76: 1.1 | H76: 17 | I76: 10.5mx10.5m | J76: Upright | K76: Modelled | L76: 30 | M76: Multi-stream | N76: Large | O76: =VLOOKUP(M76,Dropdowns!$C$51:$F$55,Data!R2583+1,FALSE) -> Moderate <28 km/hr. Dust & loose paper lifted. | P76: 3 | Q76: 2 | R76: 1874.25
A77: Toro | B77: XP 300 | C77: 0 | D77: 10 | E77: 350 | F77: 0.94 | G77: 1.1 | H77: 17.1 | I77: 10.5mx10.5m | J77: Upright | K77: Modelled | L77: 30 | M77: Multi-stream | N77: Large | O77: =VLOOKUP(M77,Dropdowns!$C$51:$F$55,Data!R2584+1,FALSE) -> 0 | P77: 3 | Q77: 2 | R77: 1885.275
A78: NaanDan | B78: 5035 | C78: 1950 | D78: 5.0 x 2.5 | E78: 300 | F78: 0.93 | G78: 1.2 | H78: 17.6 | I78: 10.5mx10.5m | J78: Upright | K78: Modelled | L78: 50 | M78: Impact | N78: Large | O78: =VLOOKUP(M78,Dropdowns!$C$51:$F$55,Data!R2585+1,FALSE) -> Moderate <28 km/hr. Dust & loose paper lifted. | P78: 3 | Q78: 3 | R78: 1940.4 | S78: -0.004923076923
A79: Toro | B79: S11 | C79: 1842 | D79: Grey x Red | E79: 400 | F79: 0.95 | G79: 1.1 | H79: 17.8 | I79: 10.5mx10.5m | J79: Upright | K79: Modelled | L79: 100 | M79: Impact | N79: Large | O79: =VLOOKUP(M79,Dropdowns!$C$51:$F$55,Data!R2603+1,FALSE) -> Moderate <28 km/hr. Dust & loose paper lifted. | P79: 3 | Q79: 3 | R79: 1962.45 | S79: 0.06539087948
A80: Toro | B80: S11 | C80: 1860 | D80: Grn x Yell | E80: 300 | F80: 0.91 | G80: 1.2 | H80: 17.9 | I80: 10.5mx10.5m | J80: Upright | K80: Modelled | L80: 100 | M80: Impact | N80: Large | O80: =VLOOKUP(M80,Dropdowns!$C$51:$F$55,Data!R2604+1,FALSE) -> Moderate <28 km/hr. Dust & loose paper lifted. | P80: 3 | Q80: 3 | R80: 1973.475 | S80: 0.06100806452
A81: Toro | B81: XP 300 | C81: 0 | D81: 10 | E81: 400 | F81: 0.92 | G81: 1.2 | H81: 18 | I81: 10.5mx10.5m | J81: Upright | K81: Modelled | L81: 30 | M81: Multi-stream | N81: Large | O81: =VLOOKUP(M81,Dropdowns!$C$51:$F$55,Data!R2586+1,FALSE) -> Moderate <28 km/hr. Dust & loose paper lifted. | P81: 3 | Q81: 2 | R81: 1984.5
A82: Toro | B82: XP 300 | C82: 0 | D82: 9 | E82: 450 | F82: 0.92 | G82: 1.1 | H82: 19.1 | I82: 10.5mx10.5m | J82: Upright | K82: Modelled | L82: 30 | M82: Multi-stream | N82: Large | O82: =VLOOKUP(M82,Dropdowns!$C$51:$F$55,Data!R2587+1,FALSE) -> Gentle < 19 km/hr. Flags flap | P82: 3 | Q82: 2 | R82: 2105.775
A83: NaanDan | B83: 5035 | C83: 2250 | D83: 5.0 x 2.5 | E83: 400 | F83: 0.95 | G83: 1.2 | H83: 20.4 | I83: 10.5mx10.5m | J83: Upright | K83: Modelled | L83: 50 | M83: Impact | N83: Large | O83: =VLOOKUP(M83,Dropdowns!$C$51:$F$55,Data!R2588+1,FALSE) -> Moderate <28 km/hr. Dust & loose paper lifted. | P83: 3 | Q83: 3 | R83: 2249.1 | S83: -0.0004
A84: Toro | B84: S11 | C84: 2160 | D84: Grn x Yell | E84: 400 | F84: 0.94 | G84: 1.2 | H84: 20.6 | I84: 10.5mx10.5m | J84: Upright | K84: Modelled | L84: 100 | M84: Impact | N84: Large | O84: =VLOOKUP(M84,Dropdowns!$C$51:$F$55,Data!R2605+1,FALSE) -> Moderate <28 km/hr. Dust & loose paper lifted. | P84: 3 | Q84: 3 | R84: 2271.15 | S84: 0.05145833333
A85: Toro | B85: XP 300 | C85: 0 | D85: 10 | E85: 450 | F85: 0.92 | G85: 1.1 | H85: 21.5 | I85: 10.5mx10.5m | J85: Upright | K85: Modelled | L85: 30 | M85: Multi-stream | N85: Large | O85: =VLOOKUP(M85,Dropdowns!$C$51:$F$55,Data!R2589+1,FALSE) -> Moderate <28 km/hr. Dust & loose paper lifted. | P85: 3 | Q85: 2 | R85: 2370.375
A86: Toro | B86: S11 | C86: 2220 | D86: Ornge x Yell | E86: 300 | F86: 0.91 | G86: 1.4 | H86: 21.7 | I86: 10.5mx10.5m | J86: Upright | K86: Modelled | L86: 100 | M86: Impact | N86: Large | O86: =VLOOKUP(M86,Dropdowns!$C$51:$F$55,Data!R2606+1,FALSE) -> Moderate <28 km/hr. Dust & loose paper lifted. | P86: 3 | Q86: 3 | R86: 2392.425 | S86: 0.07766891892
A87: Toro | B87: XP 300 | C87: 0 | D87: 10 | E87: 500 | F87: 0.91 | G87: 1.2 | H87: 23.8 | I87: 10.5mx10.5m | J87: Upright | K87: Modelled | L87: 30 | M87: Multi-stream | N87: Large | O87: =VLOOKUP(M87,Dropdowns!$C$51:$F$55,Data!R2590+1,FALSE) -> Moderate <28 km/hr. Dust & loose paper lifted. | P87: 3 | Q87: 2 | R87: 2623.95
A88: NaanDan | B88: 5035 | C88: 2652 | D88: 6.0 x 2.5 | E88: 300 | F88: 0.93 | G88: 1.4 | H88: 24 | I88: 10.5mx10.5m | J88: Upright | K88: Modelled | L88: 50 | M88: Impact | N88: Large | O88: =VLOOKUP(M88,Dropdowns!$C$51:$F$55,Data!R2591+1,FALSE) -> Moderate <28 km/hr. Dust & loose paper lifted. | P88: 3 | Q88: 3 | R88: 2646 | S88: -0.002262443439
A89: Toro | B89: S11 | C89: 2580 | D89: Ornge x Yell | E89: 400 | F89: 0.95 | G89: 1.2 | H89: 24.4 | I89: 10.5mx10.5m | J89: Upright | K89: Modelled | L89: 100 | M89: Impact | N89: Large | O89: =VLOOKUP(M89,Dropdowns!$C$51:$F$55,Data!R2607+1,FALSE) -> Moderate <28 km/hr. Dust & loose paper lifted. | P89: 3 | Q89: 3 | R89: 2690.1 | S89: 0.0426744186
A90: Toro | B90: S11 | C90: 2580 | D90: Orge x Yell | E90: 400 | F90: 0.94 | G90: 1.3 | H90: 24.8 | I90: 10.5mx10.5m | J90: Upright | K90: Modelled | L90: 50 | M90: Impact | N90: Large | O90: =VLOOKUP(M90,Dropdowns!$C$51:$F$55,Data!R2592+1,FALSE) -> Moderate <28 km/hr. Dust & loose paper lifted. | P90: 3 | Q90: 3 | R90: 2734.2 | S90: 0.05976744186
A91: Nelson | B91: R2000 24 K3 | C91: 329 | D91: #11 Orange | E91: 310 | F91: 0.86 | G91: 1.4 | H91: 3 | I91: 10mx10m | J91: Upright | K91: Modelled | L91: 46 | M91: Single stream rotator | N91: Large | O91: =VLOOKUP(M91,Dropdowns!$C$51:$F$55,Data!R2423+1,FALSE) -> Gentle < 19 km/hr. Flags flap | P91: 3 | Q91: 2 | R91: =H91*LEFT(I91,2)*LEFT(I91,2) -> 300 | S91: -0.08814589666
A92: RainBird | B92: LF800 | C92: 298 | D92: Blue | E92: 385 | F92: 0.9 | G92: 1.2 | H92: 3.1 | I92: 10mx10m | J92: Upright | K92: Modelled | L92: 30 | M92: Impact | N92: Large | O92: =VLOOKUP(M92,Dropdowns!$C$51:$F$55,Data!R2427+1,FALSE) -> Moderate <28 km/hr. Dust & loose paper lifted. | P92: 3 | Q92: 3 | R92: 310 | S92: 0.04026845638
A93: RainBird | B93: LF1200 | C93: 298 | D93: Blue | E93: 385 | F93: 0.89 | G93: 1.1 | H93: 3.1 | I93: 10mx10m | J93: Upright | K93: Modelled | L93: 30 | M93: Impact | N93: Large | O93: =VLOOKUP(M93,Dropdowns!$C$51:$F$55,Data!R2428+1,FALSE) -> Moderate <28 km/hr. Dust & loose paper lifted. | P93: 3 | Q93: 3 | R93: 310 | S93: 0.04026845638
A94: RainBird | B94: LF1200 | C94: 307 | D94: Orange | E94: 280 | F94: 0.91 | G94: 1.1 | H94: 3.1 | I94: 10mx10m | J94: Upright | K94: Modelled | L94: 30 | M94: Impact | N94: Large | O94: =VLOOKUP(M94,Dropdowns!$C$51:$F$55,Data!R2425+1,FALSE) -> Moderate <28 km/hr. Dust & loose paper lifted. | P94: 3 | Q94: 3 | R94: 310 | S94: 0.009771986971
A95: RainBird | B95: LF1200 | C95: 307 | D95: Orange | E95: 280 | F95: 0.91 | G95: 1.2 | H95: 3.1 | I95: 10mx10m | J95: Upright | K95: Modelled | L95: 30 | M95: Impact | N95: Large | O95: =VLOOKUP(M95,Dropdowns!$C$51:$F$55,Data!R2426+1,FALSE) -> Moderate <28 km/hr. Dust & loose paper lifted. | P95: 3 | Q95: 3 | R95: 310 | S95: 0.009771986971
A96: RainBird | B96: LF800 | C96: 311 | D96: Blue | E96: 420 | F96: 0.91 | G96: 1.1 | H96: 3.1 | I96: 10mx10m | J96: Upright | K96: Modelled | L96: 30 | M96: Impact | N96: Large | O96: =VLOOKUP(M96,Dropdowns!$C$51:$F$55,Data!R2424+1,FALSE) -> Moderate <28 km/hr. Dust & loose paper lifted. | P96: 3 | Q96: 3 | R96: 310 | S96: -0.003215434084
A97: Nelson | B97: R2000 15 K3 | C97: 330 | D97: #11 Orange | E97: 310 | F97: 0.86 | G97: 1.5 | H97: 3.2 | I97: 10mx10m | J97: Upright | K97: Modelled | L97: 122 | M97: Single stream rotator | N97: Large | O97: =VLOOKUP(M97,Dropdowns!$C$51:$F$55,Data!R2504+1,FALSE) -> Gentle < 19 km/hr. Flags flap | P97: 3 | Q97: 3 | R97: 320 | S97: -0.0303030303
A98: RainBird | B98: LF1200 | C98: 325 | D98: Orange | E98: 315 | F98: 0.88 | G98: 1.1 | H98: 3.3 | I98: 10mx10m | J98: Upright | K98: Modelled | L98: 30 | M98: Impact | N98: Large | O98: =VLOOKUP(M98,Dropdowns!$C$51:$F$55,Data!R2432+1,FALSE) -> Moderate <28 km/hr. Dust & loose paper lifted. | P98: 3 | Q98: 3 | R98: 330 | S98: 0.01538461538
A99: RainBird | B99: LF1200 | C99: 343 | D99: Orange | E99: 350 | F99: 0.92 | G99: 1.1 | H99: 3.3 | I99: 10mx10m | J99: Upright | K99: Modelled | L99: 30 | M99: Impact | N99: Large | O99: =VLOOKUP(M99,Dropdowns!$C$51:$F$55,Data!R2429+1,FALSE) -> Moderate <28 km/hr. Dust & loose paper lifted. | P99: 3 | Q99: 3 | R99: 330 | S99: -0.03790087464
A100: RainBird | B100: LF1200 | C100: 343 | D100: Orange | E100: 350 | F100: 0.91 | G100: 1.1 | H100: 3.3 | I100: 10mx10m | J100: Upright | K100: Modelled | L100: 30 | M100: Impact | N100: Large | O100: =VLOOKUP(M100,Dropdowns!$C$51:$F$55,Data!R2430+1,FALSE) -> Moderate <28 km/hr. Dust & loose paper lifted. | P100: 3 | Q100: 3 | R100: 330 | S100: -0.03790087464
A101: RainBird | B101: LF1200 | C101: 343 | D101: Orange | E101: 350 | F101: 0.9 | G101: 1.2 | H101: 3.3 | I101: 10mx10m | J101: Upright | K101: Modelled | L101: 30 | M101: Impact | N101: Large | O101: =VLOOKUP(M101,Dropdowns!$C$51:$F$55,Data!R2431+1,FALSE) -> Moderate <28 km/hr. Dust & loose paper lifted. | P101: 3 | Q101: 3 | R101: 330 | S101: -0.03790087464
A102: RainBird | B102: LF800 | C102: 361 | D102: Orange | E102: 385 | F102: 0.9 | G102: 1.2 | H102: 3.6 | I102: 10mx10m | J102: Upright | K102: Modelled | L102: 30 | M102: Impact | N102: Large | O102: =VLOOKUP(M102,Dropdowns!$C$51:$F$55,Data!R2433+1,FALSE) -> Moderate <28 km/hr. Dust & loose paper lifted. | P102: 3 | Q102: 3 | R102: 360 | S102: -0.002770083102
A103: RainBird | B103: LF800 | C103: 379 | D103: Orange | E103: 420 | F103: 0.93 | G103: 1.1 | H103: 3.8 | I103: 10mx10m | J103: Upright | K103: Modelled | L103: 30 | M103: Impact | N103: Large | O103: =VLOOKUP(M103,Dropdowns!$C$51:$F$55,Data!R2434+1,FALSE) -> Moderate <28 km/hr. Dust & loose paper lifted. | P103: 3 | Q103: 3 | R103: 380 | S103: 0.002638522427
A104: RainBird | B104: LF1200 | C104: 379 | D104: Orange | E104: 420 | F104: 0.92 | G104: 1.2 | H104: 3.8 | I104: 10mx10m | J104: Upright | K104: Modelled | L104: 30 | M104: Impact | N104: Large | O104: =VLOOKUP(M104,Dropdowns!$C$51:$F$55,Data!R2435+1,FALSE) -> Moderate <28 km/hr. Dust & loose paper lifted. | P104: 3 | Q104: 3 | R104: 380 | S104: 0.002638522427
A105: RainBird | B105: LF1200 | C105: 379 | D105: Orange | E105: 420 | F105: 0.92 | G105: 1.2 | H105: 3.8 | I105: 10mx10m | J105: Upright | K105: Modelled | L105: 30 | M105: Impact | N105: Large | O105: =VLOOKUP(M105,Dropdowns!$C$51:$F$55,Data!R2436+1,FALSE) -> Moderate <28 km/hr. Dust & loose paper lifted. | P105: 3 | Q105: 3 | R105: 380 | S105: 0.002638522427
A106: RainBird | B106: LF1200 | C106: 379 | D106: Orange | E106: 420 | F106: 0.92 | G106: 1.2 | H106: 3.8 | I106: 10mx10m | J106: Upright | K106: Modelled | L106: 30 | M106: Impact | N106: Large | O106: =VLOOKUP(M106,Dropdowns!$C$51:$F$55,Data!R2437+1,FALSE) -> Moderate <28 km/hr. Dust & loose paper lifted. | P106: 3 | Q106: 3 | R106: 380 | S106: 0.002638522427
A107: Netafim | B107: N-85 (2.25+1.5) | C107: 430 | D107: 23deg | E107: 250 | F107: 0.9 | G107: 1.1 | H107: 3.9 | I107: 10mx10m | J107: Upright | K107: Modelled | L107: 100 | M107: Impact | N107: Large | O107: =VLOOKUP(M107,Dropdowns!$C$51:$F$55,Data!R2505+1,FALSE) -> Moderate <28 km/hr. Dust & loose paper lifted. | P107: 3 | Q107: 3 | R107: 390 | S107: -0.09302325581
A108: Nelson | B108: R2000 15 K4 | C108: 458 | D108: #13Yellow | E108: 310 | F108: 0.9 | G108: 1.2 | H108: 4 | I108: 10mx10m | J108: Upright | K108: Modelled | L108: 31 | M108: Single stream rotator | N108: Large | O108: =VLOOKUP(M108,Dropdowns!$C$51:$F$55,Data!R2438+1,FALSE) -> Moderate <28 km/hr. Dust & loose paper lifted. | P108: 3 | Q108: 2 | R108: 400 | S108: -0.1266375546
A109: Nelson | B109: R2000 24 K4 | C109: 404 | D109: #13 Yellow | E109: 214 | F109: 0.91 | G109: 1.2 | H109: 4.1 | I109: 10mx10m | J109: Upright | K109: Modelled | L109: 46 | M109: Single stream rotator | N109: Large | O109: =VLOOKUP(M109,Dropdowns!$C$51:$F$55,Data!R2439+1,FALSE) -> Gentle < 19 km/hr. Flags flap | P109: 3 | Q109: 2 | R109: 410 | S109: 0.01485148515
A110: Nelson | B110: R2000 24 K3 | C110: 386 | D110: #12Purple | E110: 310 | F110: 0.9 | G110: 1.2 | H110: 4.2 | I110: 10mx10m | J110: Upright | K110: Modelled | L110: 46 | M110: Single stream rotator | N110: Large | O110: =VLOOKUP(M110,Dropdowns!$C$51:$F$55,Data!R2440+1,FALSE) -> Gentle < 19 km/hr. Flags flap | P110: 3 | Q110: 2 | R110: 420 | S110: 0.08808290155
A111: Nelson | B111: R2000 24 K5 | C111: 493 | D111: #15 Tan | E111: 207 | F111: 0.88 | G111: 1.2 | H111: 4.3 | I111: 10mx10m | J111: Upright | K111: Modelled | L111: 46 | M111: Single stream rotator | N111: Large | O111: =VLOOKUP(M111,Dropdowns!$C$51:$F$55,Data!R2441+1,FALSE) -> Gentle < 19 km/hr. Flags flap | P111: 3 | Q111: 2 | R111: 430 | S111: -0.1277890467
A112: Nelson | B112: R2000 24 K4 | C112: 431 | D112: #13 Yellow | E112: 276 | F112: 0.93 | G112: 1.2 | H112: 4.4 | I112: 10mx10m | J112: Upright | K112: Modelled | L112: 46 | M112: Single stream rotator | N112: Large | O112: =VLOOKUP(M112,Dropdowns!$C$51:$F$55,Data!R2442+1,FALSE) -> Moderate <28 km/hr. Dust & loose paper lifted. | P112: 3 | Q112: 2 | R112: 440 | S112: 0.02088167053
A113: Netafim | B113: N-85 (2.45+1.5) | C113: 486 | D113: 23deg | E113: 250 | F113: 0.91 | G113: 1.1 | H113: 4.5 | I113: 10mx10m | J113: Upright | K113: Modelled | L113: 100 | M113: Impact | N113: Large | O113: =VLOOKUP(M113,Dropdowns!$C$51:$F$55,Data!R2506+1,FALSE) -> Moderate <28 km/hr. Dust & loose paper lifted. | P113: 3 | Q113: 3 | R113: 450 | S113: -0.07407407407
A114: RainBird | B114: LF1200 | C114: 450 | D114: Purple | E114: 420 | F114: 0.93 | G114: 1.3 | H114: 4.6 | I114: 10mx10m | J114: Upright | K114: Modelled | L114: 30 | M114: Impact | N114: Large | O114: =VLOOKUP(M114,Dropdowns!$C$51:$F$55,Data!R2443+1,FALSE) -> Moderate <28 km/hr. Dust & loose paper lifted. | P114: 3 | Q114: 3 | R114: 460 | S114: 0.02222222222
A115: RainBird | B115: LF1200 | C115: 450 | D115: Purple | E115: 420 | F115: 0.9 | G115: 1.2 | H115: 4.6 | I115: 10mx10m | J115: Upright | K115: Modelled | L115: 30 | M115: Impact | N115: Large | O115: =VLOOKUP(M115,Dropdowns!$C$51:$F$55,Data!R2445+1,FALSE) -> Moderate <28 km/hr. Dust & loose paper lifted. | P115: 3 | Q115: 3 | R115: 460 | S115: 0.02222222222
A116: NaanDan | B116: SUPER10 | C116: 450 | D116: Yellow 450 | E116: 250 | F116: 0.88 | G116: 1.3 | H116: 4.6 | I116: 10mx10m | J116: Upright | K116: Modelled | L116: 60 | M116: Single stream rotator | N116: Large | O116: =VLOOKUP(M116,Dropdowns!$C$51:$F$55,Data!R2446+1,FALSE) -> Moderate <28 km/hr. Dust & loose paper lifted. | P116: 3 | Q116: 3 | R116: 460 | S116: 0.02222222222
A117: RainBird | B117: LF1200 | C117: 454 | D117: Yellow | E117: 315 | F117: 0.92 | G117: 1.3 | H117: 4.6 | I117: 10mx10m | J117: Upright | K117: Modelled | L117: 30 | M117: Impact | N117: Large | O117: =VLOOKUP(M117,Dropdowns!$C$51:$F$55,Data!R2444+1,FALSE) -> Moderate <28 km/hr. Dust & loose paper lifted. | P117: 3 | Q117: 3 | R117: 460 | S117: 0.01321585903
A118: Nelson | B118: R2000 24 K4 | C118: 459 | D118: #13 Yellow | E118: 310 | F118: 0.94 | G118: 1.2 | H118: 4.7 | I118: 10mx10m | J118: Upright | K118: Modelled | L118: 46 | M118: Single stream rotator | N118: Large | O118: =VLOOKUP(M118,Dropdowns!$C$51:$F$55,Data!R2447+1,FALSE) -> Gentle < 19 km/hr. Flags flap | P118: 3 | Q118: 2 | R118: 470 | S118: 0.02396514161
A119: Nelson | B119: R2000 15 K4 | C119: 459 | D119: #14 Green | E119: 310 | F119: 0.91 | G119: 1.2 | H119: 4.8 | I119: 10mx10m | J119: Upright | K119: Modelled | L119: 31 | M119: Single stream rotator | N119: Large | O119: =VLOOKUP(M119,Dropdowns!$C$51:$F$55,Data!R2448+1,FALSE) -> Gentle < 19 km/hr. Flags flap | P119: 3 | Q119: 2 | R119: 480 | S119: 0.04575163399
A120: RainBird | B120: LF1200 | C120: 481 | D120: Yellow | E120: 350 | F120: 0.92 | G120: 1.2 | H120: 4.8 | I120: 10mx10m | J120: Upright | K120: Modelled | L120: 30 | M120: Impact | N120: Large | O120: =VLOOKUP(M120,Dropdowns!$C$51:$F$55,Data!R2449+1,FALSE) -> Moderate <28 km/hr. Dust & loose paper lifted. | P120: 3 | Q120: 3 | R120: 480 | S120: -0.002079002079
A121: RainBird | B121: LF2400 | C121: 518 | D121: Green | E121: 315 | F121: 0.85 | G121: 1.2 | H121: 5.1 | I121: 10mx10m | J121: Upright | K121: Modelled | L121: 30 | M121: Impact | N121: Large | O121: =VLOOKUP(M121,Dropdowns!$C$51:$F$55,Data!R2450+1,FALSE) -> Moderate <28 km/hr. Dust & loose paper lifted. | P121: 3 | Q121: 3 | R121: 510 | S121: -0.01544401544
A122: RainBird | B122: LF1200 | C122: 534 | D122: Tan | E122: 245 | F122: 0.91 | G122: 1.2 | H122: 5.3 | I122: 10mx10m | J122: Upright | K122: Modelled | L122: 30 | M122: Impact | N122: Large | O122: =VLOOKUP(M122,Dropdowns!$C$51:$F$55,Data!R2451+1,FALSE) -> Moderate <28 km/hr. Dust & loose paper lifted. | P122: 3 | Q122: 3 | R122: 530 | S122: -0.007490636704
A123: RainBird | B123: LF2400 | C123: 534 | D123: Tan | E123: 245 | F123: 0.86 | G123: 1.3 | H123: 5.3 | I123: 10mx10m | J123: Upright | K123: Modelled | L123: 30 | M123: Impact | N123: Large | O123: =VLOOKUP(M123,Dropdowns!$C$51:$F$55,Data!R2452+1,FALSE) -> Moderate <28 km/hr. Dust & loose paper lifted. | P123: 3 | Q123: 3 | R123: =H123*LEFT(I123,2)*LEFT(I123,2) -> 530 | S123: -0.007490636704
A124: NaanDan | B124: SUPER10 | C124: 550 | D124: Green550 | E124: 250 | F124: 0.92 | G124: 1.2 | H124: 5.4 | I124: 10mx10m | J124: Upright | K124: Modelled | L124: 60 | M124: Single stream rotator | N124: Large | O124: =VLOOKUP(M124,Dropdowns!$C$51:$F$55,Data!R2453+1,FALSE) -> Gentle < 19 km/hr. Flags flap | P124: 3 | Q124: 2 | R124: 540 | S124: -0.01818181818
A125: Netafim | B125: N-85 (2.70+1.5) | C125: 384 | D125: 23deg | E125: 250 | F125: 0.9 | G125: 1.2 | H125: 5.6 | I125: 10mx10m | J125: Upright | K125: Modelled | L125: 100 | M125: Impact | N125: Large | O125: =VLOOKUP(M125,Dropdowns!$C$51:$F$55,Data!R2507+1,FALSE) -> Moderate <28 km/hr. Dust & loose paper lifted. | P125: 3 | Q125: 3 | R125: 560 | S125: 0.4583333333
A126: RainBird | B126: LF2400 | C126: 556 | D126: Green | E126: 350 | F126: 0.87 | G126: 1.2 | H126: 5.6 | I126: 10mx10m | J126: Upright | K126: Modelled | L126: 30 | M126: Impact | N126: Large | O126: =VLOOKUP(M126,Dropdowns!$C$51:$F$55,Data!R2456+1,FALSE) -> Moderate <28 km/hr. Dust & loose paper lifted. | P126: 3 | Q126: 3 | R126: 560 | S126: 0.007194244604
A127: RainBird | B127: LF1200 | C127: 575 | D127: Tan | E127: 280 | F127: 0.92 | G127: 1.1 | H127: 5.6 | I127: 10mx10m | J127: Upright | K127: Modelled | L127: 30 | M127: Impact | N127: Large | O127: =VLOOKUP(M127,Dropdowns!$C$51:$F$55,Data!R2454+1,FALSE) -> Moderate <28 km/hr. Dust & loose paper lifted. | P127: 3 | Q127: 3 | R127: 560 | S127: -0.02608695652
A128: RainBird | B128: LF2400 | C128: 575 | D128: Tan | E128: 280 | F128: 0.88 | G128: 1.2 | H128: 5.6 | I128: 10mx10m | J128: Upright | K128: Modelled | L128: 30 | M128: Impact | N128: Large | O128: =VLOOKUP(M128,Dropdowns!$C$51:$F$55,Data!R2455+1,FALSE) -> Moderate <28 km/hr. Dust & loose paper lifted. | P128: 3 | Q128: 3 | R128: 560 | S128: -0.02608695652
A129: Nelson | B129: R2000 15 K5 | C129: 598 | D129: #15 Tan | E129: 276 | F129: 0.88 | G129: 1.3 | H129: 5.7 | I129: 10mx10m | J129: Upright | K129: Modelled | L129: 31 | M129: Single stream rotator | N129: Large | O129: =VLOOKUP(M129,Dropdowns!$C$51:$F$55,Data!R2457+1,FALSE) -> Gentle < 19 km/hr. Flags flap | P129: 3 | Q129: 2 | R129: 570 | S129: -0.04682274247
A130: RainBird | B130: LF2400 | C130: 584 | D130: Green | E130: 385 | F130: 0.88 | G130: 1.2 | H130: 5.8 | I130: 10mx10m | J130: Upright | K130: Modelled | L130: 30 | M130: Impact | N130: Large | O130: =VLOOKUP(M130,Dropdowns!$C$51:$F$55,Data!R2458+1,FALSE) -> Moderate <28 km/hr. Dust & loose paper lifted. | P130: =IF(N130="Small",1,IF(N130="Medium",2,IF(N130="Large",3,4))) -> 3 | Q130: 3 | R130: 580 | S130: =(R130-C130)/C130 -> -0.006849315068
A131: RainBird | B131: LF2400 | C131: 613 | D131: Green | E131: 420 | F131: 0.9 | G131: 1.2 | H131: 6.1 | I131: 10mx10m | J131: Upright | K131: Modelled | L131: 30 | M131: Impact | N131: Large | O131: =VLOOKUP(M131,Dropdowns!$C$51:$F$55,Data!R2459+1,FALSE) -> Moderate <28 km/hr. Dust & loose paper lifted. | P131: 3 | Q131: 3 | R131: 610 | S131: -0.004893964111
A132: RainBird | B132: LF2400 | C132: 613 | D132: Green | E132: 420 | F132: 0.89 | G132: 1.1 | H132: 6.1 | I132: 10mx10m | J132: Upright | K132: Modelled | L132: 30 | M132: Impact | N132: Large | O132: =VLOOKUP(M132,Dropdowns!$C$51:$F$55,Data!R2460+1,FALSE) -> Moderate <28 km/hr. Dust & loose paper lifted. | P132: 3 | Q132: 3 | R132: 610 | S132: -0.004893964111
A133: RainBird | B133: LF2400 | C133: 638 | D133: Tan | E133: 350 | F133: 0.88 | G133: 1.2 | H133: 6.4 | I133: 10mx10m | J133: Upright | K133: Modelled | L133: 30 | M133: Impact | N133: Large | O133: =VLOOKUP(M133,Dropdowns!$C$51:$F$55,Data!R2461+1,FALSE) -> Moderate <28 km/hr. Dust & loose paper lifted. | P133: 3 | Q133: 3 | R133: 640 | S133: 0.003134796238
A134: Nelson | B134: R2000 15 K5 | C134: 656 | D134: #16 Red | E134: 276 | F134: 0.88 | G134: 1.3 | H134: 6.4 | I134: 10mx10m | J134: Upright | K134: Modelled | L134: 31 | M134: Single stream rotator | N134: Large | O134: =VLOOKUP(M134,Dropdowns!$C$51:$F$55,Data!R2462+1,FALSE) -> Gentle < 19 km/hr. Flags flap | P134: 3 | Q134: 2 | R134: 640 | S134: -0.0243902439
A135: RainBird | B135: LF2400 | C135: 670 | D135: Tan | E135: 385 | F135: 0.9 | G135: 1.2 | H135: 6.6 | I135: 10mx10m | J135: Upright | K135: Modelled | L135: 30 | M135: Impact | N135: Large | O135: =VLOOKUP(M135,Dropdowns!$C$51:$F$55,Data!R2463+1,FALSE) -> Moderate <28 km/hr. Dust & loose paper lifted. | P135: 3 | Q135: 3 | R135: 660 | S135: -0.01492537313
A136: Nelson | B136: R2000 24 K5 | C136: 656 | D136: #16 Red | E136: 276 | F136: 0.94 | G136: 1.1 | H136: 6.7 | I136: 10mx10m | J136: Upright | K136: Modelled | L136: 46 | M136: Single stream rotator | N136: Large | O136: =VLOOKUP(M136,Dropdowns!$C$51:$F$55,Data!R2464+1,FALSE) -> Moderate <28 km/hr. Dust & loose paper lifted. | P136: 3 | Q136: 2 | R136: 670 | S136: 0.02134146341
A137: NaanDan | B137: SUPER10 | C137: 670 | D137: Red 670 | E137: 250 | F137: 0.91 | G137: 1.2 | H137: 6.7 | I137: 10mx10m | J137: Upright | K137: Modelled | L137: 60 | M137: Single stream rotator | N137: Large | O137: =VLOOKUP(M137,Dropdowns!$C$51:$F$55,Data!R2465+1,FALSE) -> Moderate <28 km/hr. Dust & loose paper lifted. | P137: 3 | Q137: 3 | R137: 670 | S137: 0
A138: RainBird | B138: LF2400 | C138: 697 | D138: Red | E138: 315 | F138: 0.89 | G138: 1.2 | H138: 6.9 | I138: 10mx10m | J138: Upright | K138: Modelled | L138: 30 | M138: Impact | N138: Large | O138: =VLOOKUP(M138,Dropdowns!$C$51:$F$55,Data!R2468+1,FALSE) -> Moderate <28 km/hr. Dust & loose paper lifted. | P138: 3 | Q138: 3 | R138: 690 | S138: -0.01004304161
A139: RainBird | B139: LF2400 | C139: 702 | D139: Tan | E139: 420 | F139: 0.92 | G139: 1.1 | H139: 6.9 | I139: 10mx10m | J139: Upright | K139: Modelled | L139: 30 | M139: Impact | N139: Large | O139: =VLOOKUP(M139,Dropdowns!$C$51:$F$55,Data!R2466+1,FALSE) -> Moderate <28 km/hr. Dust & loose paper lifted. | P139: 3 | Q139: 3 | R139: 690 | S139: -0.01709401709
A140: RainBird | B140: LF2400 | C140: 702 | D140: Tan | E140: 420 | F140: 0.9 | G140: 1.2 | H140: 6.9 | I140: 10mx10m | J140: Upright | K140: Modelled | L140: 30 | M140: Impact | N140: Large | O140: =VLOOKUP(M140,Dropdowns!$C$51:$F$55,Data!R2467+1,FALSE) -> Moderate <28 km/hr. Dust & loose paper lifted. | P140: 3 | Q140: 3 | R140: 690 | S140: -0.01709401709
A141: RainBird | B141: LF2400 | C141: 743 | D141: Silver | E141: 210 | F141: 0.92 | G141: 1.1 | H141: 7.4 | I141: 10mx10m | J141: Upright | K141: Modelled | L141: 30 | M141: Impact | N141: Large | O141: =VLOOKUP(M141,Dropdowns!$C$51:$F$55,Data!R2469+1,FALSE) -> Moderate <28 km/hr. Dust & loose paper lifted. | P141: 3 | Q141: 3 | R141: 740 | S141: -0.004037685061
A142: RainBird | B142: LF2400 | C142: 763 | D142: Red | E142: 385 | F142: 0.91 | G142: 1.1 | H142: 7.6 | I142: 10mx10m | J142: Upright | K142: Modelled | L142: 30 | M142: Impact | N142: Large | O142: =VLOOKUP(M142,Dropdowns!$C$51:$F$55,Data!R2470+1,FALSE) -> Moderate <28 km/hr. Dust & loose paper lifted. | P142: 3 | Q142: 3 | R142: 760 | S142: -0.003931847969
A143: RainBird | B143: LF2400 | C143: 763 | D143: Red | E143: 385 | F143: 0.9 | G143: 1.2 | H143: 7.6 | I143: 10mx10m | J143: Upright | K143: Modelled | L143: 30 | M143: Impact | N143: Large | O143: =VLOOKUP(M143,Dropdowns!$C$51:$F$55,Data!R2471+1,FALSE) -> Moderate <28 km/hr. Dust & loose paper lifted. | P143: 3 | Q143: 3 | R143: 760 | S143: -0.003931847969
A144: RainBird | B144: LF2400 | C144: 784 | D144: Black | E144: 315 | F144: 0.9 | G144: 1.2 | H144: 7.6 | I144: 10mx10m | J144: Upright | K144: Modelled | L144: 30 | M144: Impact | N144: Large | O144: =VLOOKUP(M144,Dropdowns!$C$51:$F$55,Data!R2472+1,FALSE) -> Moderate <28 km/hr. Dust & loose paper lifted. | P144: 3 | Q144: 3 | R144: 760 | S144: -0.0306122449
A145: RainBird | B145: LF2400 | C145: 799 | D145: Red | E145: 420 | F145: 0.9 | G145: 1.2 | H145: 7.9 | I145: 10mx10m | J145: Upright | K145: Modelled | L145: 30 | M145: Impact | N145: Large | O145: =VLOOKUP(M145,Dropdowns!$C$51:$F$55,Data!R2473+1,FALSE) -> Moderate <28 km/hr. Dust & loose paper lifted. | P145: 3 | Q145: 3 | R145: 790 | S145: -0.0112640801
A146: RainBird | B146: LF2400 | C146: 799 | D146: Red | E146: 420 | F146: 0.9 | G146: 1.2 | H146: 7.9 | I146: 10mx10m | J146: Upright | K146: Modelled | L146: 30 | M146: Impact | N146: Large | O146: =VLOOKUP(M146,Dropdowns!$C$51:$F$55,Data!R2474+1,FALSE) -> Moderate <28 km/hr. Dust & loose paper lifted. | P146: 3 | Q146: 3 | R146: 790 | S146: -0.0112640801
A147: RainBird | B147: LF2400 | C147: 799 | D147: Red | E147: 420 | F147: 0.89 | G147: 1.2 | H147: 7.9 | I147: 10mx10m | J147: Upright | K147: Modelled | L147: 30 | M147: Impact | N147: Large | O147: =VLOOKUP(M147,Dropdowns!$C$51:$F$55,Data!R2475+1,FALSE) -> Moderate <28 km/hr. Dust & loose paper lifted. | P147: 3 | Q147: 3 | R147: 790 | S147: -0.0112640801
A148: RainBird | B148: LF2400 | C148: 818 | D148: Black | E148: 350 | F148: 0.92 | G148: 1.1 | H148: 8.1 | I148: 10mx10m | J148: Upright | K148: Modelled | L148: 30 | M148: Impact | N148: Large | O148: =VLOOKUP(M148,Dropdowns!$C$51:$F$55,Data!R2476+1,FALSE) -> Moderate <28 km/hr. Dust & loose paper lifted. | P148: 3 | Q148: 3 | R148: 810 | S148: -0.0097799511
A149: NaanDan | B149: 5022 | C149: 840 | D149: 3.0 x 1.8 | E149: 300 | F149: 0.95 | G149: 1.1 | H149: 8.4 | I149: 10mx10m | J149: Upright | K149: Modelled | L149: 50 | M149: Impact | N149: Large | O149: =VLOOKUP(M149,Dropdowns!$C$51:$F$55,Data!R2481+1,FALSE) -> Moderate <28 km/hr. Dust & loose paper lifted. | P149: 3 | Q149: 3 | R149: 840 | S149: 0
A150: RainBird | B150: LF2400 | C150: 852 | D150: Black | E150: 385 | F150: 0.93 | G150: 1.1 | H150: 8.4 | I150: 10mx10m | J150: Upright | K150: Modelled | L150: 30 | M150: Impact | N150: Large | O150: =VLOOKUP(M150,Dropdowns!$C$51:$F$55,Data!R2478+1,FALSE) -> Moderate <28 km/hr. Dust & loose paper lifted. | P150: 3 | Q150: 3 | R150: 840 | S150: -0.01408450704
A151: RainBird | B151: LF2400 | C151: 852 | D151: Black | E151: 385 | F151: 0.91 | G151: 1.2 | H151: 8.4 | I151: 10mx10m | J151: Upright | K151: Modelled | L151: 30 | M151: Impact | N151: Large | O151: =VLOOKUP(M151,Dropdowns!$C$51:$F$55,Data!R2479+1,FALSE) -> Moderate <28 km/hr. Dust & loose paper lifted. | P151: 3 | Q151: 3 | R151: 840 | S151: -0.01408450704
A152: RainBird | B152: LF2400 | C152: 858 | D152: Silver | E152: 280 | F152: 0.94 | G152: 1.1 | H152: 8.4 | I152: 10mx10m | J152: Upright | K152: Modelled | L152: 30 | M152: Impact | N152: Large | O152: =VLOOKUP(M152,Dropdowns!$C$51:$F$55,Data!R2477+1,FALSE) -> Moderate <28 km/hr. Dust & loose paper lifted. | P152: 3 | Q152: 3 | R152: 840 | S152: -0.02097902098
A153: RainBird | B153: LF2400 | C153: 858 | D153: Silver | E153: 280 | F153: 0.9 | G153: 1.2 | H153: 8.4 | I153: 10mx10m | J153: Upright | K153: Modelled | L153: 30 | M153: Impact | N153: Large | O153: =VLOOKUP(M153,Dropdowns!$C$51:$F$55,Data!R2480+1,FALSE) -> Moderate <28 km/hr. Dust & loose paper lifted. | P153: 3 | Q153: 3 | R153: 840 | S153: -0.02097902098
A154: Netafim | B154: N-85 (3.5+1.5) | C154: 834 | D154: 23deg | E154: 250 | F154: 0.94 | G154: 1.1 | H154: 8.5 | I154: 10mx10m | J154: Upright | K154: Modelled | L154: 100 | M154: Impact | N154: Large | O154: =VLOOKUP(M154,Dropdowns!$C$51:$F$55,Data!R2508+1,FALSE) -> Moderate <28 km/hr. Dust & loose paper lifted. | P154: 3 | Q154: 3 | R154: 850 | S154: 0.01918465228
A155: RainBird | B155: LF2400 | C155: 881 | D155: Black | E155: 420 | F155: 0.93 | G155: 1.1 | H155: 8.6 | I155: 10mx10m | J155: Upright | K155: Modelled | L155: 30 | M155: Impact | N155: Large | O155: =VLOOKUP(M155,Dropdowns!$C$51:$F$55,Data!R2482+1,FALSE) -> Moderate <28 km/hr. Dust & loose paper lifted. | P155: 3 | Q155: 3 | R155: =H155*LEFT(I155,2)*LEFT(I155,2) -> 860 | S155: -0.02383654938
A156: RainBird | B156: LF2400 | C156: 881 | D156: Black | E156: 420 | F156: 0.91 | G156: 1.2 | H156: 8.6 | I156: 10mx10m | J156: Upright | K156: Modelled | L156: 30 | M156: Impact | N156: Large | O156: =VLOOKUP(M156,Dropdowns!$C$51:$F$55,Data!R2483+1,FALSE) -> Moderate <28 km/hr. Dust & loose paper lifted. | P156: 3 | Q156: 3 | R156: 860 | S156: -0.02383654938
A157: Nelson | B157: MP Rotator | C157: 168 | D157: 90 210 | E157: 276 | F157: 0.85 | G157: 1.2 | H157: 8.8 | I157: 10mx10m | J157: Upright | K157: Modelled | L157: 10 | M157: Multi-stream | N157: Medium | O157: =VLOOKUP(M157,Dropdowns!$C$51:$F$55,Data!R2484+1,FALSE) -> Moderate <28 km/hr. Dust & loose paper lifted. | P157: 2 | Q157: 2 | R157: 880 | S157: 4.238095238
A158: RainBird | B158: LF2400 | C158: 913 | D158: Silver | E158: 315 | F158: 0.95 | G158: 1.1 | H158: 9.1 | I158: 10mx10m | J158: Upright | K158: Modelled | L158: 30 | M158: Impact | N158: Large | O158: =VLOOKUP(M158,Dropdowns!$C$51:$F$55,Data!R2485+1,FALSE) -> Moderate <28 km/hr. Dust & loose paper lifted. | P158: 3 | Q158: 3 | R158: 910 | S158: -0.003285870756
A159: RainBird | B159: LF2400 | C159: 913 | D159: Silver | E159: 315 | F159: 0.92 | G159: 1.1 | H159: 9.1 | I159: 10mx10m | J159: Upright | K159: Modelled | L159: 30 | M159: Impact | N159: Large | O159: =VLOOKUP(M159,Dropdowns!$C$51:$F$55,Data!R2486+1,FALSE) -> Moderate <28 km/hr. Dust & loose paper lifted. | P159: 3 | Q159: 3 | R159: 910 | S159: -0.003285870756
A160: RainBird | B160: LF2400 | C160: 913 | D160: Silver | E160: 315 | F160: 0.89 | G160: 1.2 | H160: 9.1 | I160: 10mx10m | J160: Upright | K160: Modelled | L160: 30 | M160: Impact | N160: Large | O160: =VLOOKUP(M160,Dropdowns!$C$51:$F$55,Data!R2487+1,FALSE) -> Moderate <28 km/hr. Dust & loose paper lifted. | P160: 3 | Q160: 3 | R160: 910 | S160: -0.003285870756
A161: Nelson | B161: MP Rotator | C161: 188 | D161: 90 210 | E161: 345 | F161: 0.87 | G161: 1.2 | H161: 9.5 | I161: 10mx10m | J161: Upright | K161: Modelled | L161: 10 | M161: Multi-stream | N161: Medium | O161: =VLOOKUP(M161,Dropdowns!$C$51:$F$55,Data!R2488+1,FALSE) -> 0 | P161: 2 | Q161: 2 | R161: 950 | S161: 4.053191489
A162: Toro | B162: S11 | C162: 1080 | D162: Wht x Grn | E162: 300 | F162: 0.87 | G162: 1.3 | H162: 12.3 | I162: 10mx10m | J162: Upright | K162: Modelled | L162: 100 | M162: Impact | N162: Large | O162: =VLOOKUP(M162,Dropdowns!$C$51:$F$55,Data!R2509+1,FALSE) -> Moderate <28 km/hr. Dust & loose paper lifted. | P162: 3 | Q162: 3 | R162: 1230 | S162: 0.1388888889
A163: Toro | B163: S11 | C163: 1260 | D163: Wht x Grn | E163: 400 | F163: 0.91 | G163: 1.2 | H163: 13.7 | I163: 10mx10m | J163: Upright | K163: Modelled | L163: 100 | M163: Impact | N163: Large | O163: =VLOOKUP(M163,Dropdowns!$C$51:$F$55,Data!R2510+1,FALSE) -> Moderate <28 km/hr. Dust & loose paper lifted. | P163: 3 | Q163: 3 | R163: 1370 | S163: 0.0873015873
A164: Toro | B164: XP 300 | C164: 0 | D164: 7 | E164: 400 | F164: 0.94 | G164: 1.1 | H164: 14.5 | I164: 10mx10m | J164: Upright | K164: Modelled | L164: 30 | M164: Multi-stream | N164: Large | O164: =VLOOKUP(M164,Dropdowns!$C$51:$F$55,Data!R2489+1,FALSE) -> Moderate <28 km/hr. Dust & loose paper lifted. | P164: 3 | Q164: 2 | R164: 1450
A165: Toro | B165: XP 300 | C165: 0 | D165: 10 | E165: 300 | F165: 0.93 | G165: 1.1 | H165: 14.5 | I165: 10mx10m | J165: Upright | K165: Modelled | L165: 100 | M165: Multi-stream | N165: Large | O165: =VLOOKUP(M165,Dropdowns!$C$51:$F$55,Data!R2511+1,FALSE) -> Moderate <28 km/hr. Dust & loose paper lifted. | P165: 3 | Q165: 2 | R165: 1450
A166: Toro | B166: XP 300 | C166: 0 | D166: 7 | E166: 350 | F166: 0.92 | G166: 1.2 | H166: 14.6 | I166: 10mx10m | J166: Upright | K166: Modelled | L166: 30 | M166: Multi-stream | N166: Large | O166: =VLOOKUP(M166,Dropdowns!$C$51:$F$55,Data!R2490+1,FALSE) -> 0 | P166: 3 | Q166: 2 | R166: 1460
A167: Toro | B167: S11 | C167: 1278 | D167: Blck x Orge | E167: 300 | F167: 0.92 | G167: 1.2 | H167: 15.1 | I167: 10mx10m | J167: Upright | K167: Modelled | L167: 100 | M167: Impact | N167: Large | O167: =VLOOKUP(M167,Dropdowns!$C$51:$F$55,Data!R2512+1,FALSE) -> Moderate <28 km/hr. Dust & loose paper lifted. | P167: 3 | Q167: 3 | R167: 1510 | S167: 0.1815336463
A168: Toro | B168: XP 300 | C168: 0 | D168: 7 | E168: 500 | F168: 0.94 | G168: 1.1 | H168: 15.4 | I168: 10mx10m | J168: Upright | K168: Modelled | L168: 30 | M168: Multi-stream | N168: Large | O168: =VLOOKUP(M168,Dropdowns!$C$51:$F$55,Data!R2491+1,FALSE) -> Moderate <28 km/hr. Dust & loose paper lifted. | P168: 3 | Q168: 2 | R168: 1540
A169: Toro | B169: XP 300 | C169: 0 | D169: 7 | E169: 450 | F169: 0.95 | G169: 1.1 | H169: 15.5 | I169: 10mx10m | J169: Upright | K169: Modelled | L169: 30 | M169: Multi-stream | N169: Large | O169: =VLOOKUP(M169,Dropdowns!$C$51:$F$55,Data!R2492+1,FALSE) -> Gentle < 19 km/hr. Flags flap | P169: 3 | Q169: 2 | R169: 1550
A170: Toro | B170: XP 300 | C170: 0 | D170: 9 | E170: 300 | F170: 0.93 | G170: 1.1 | H170: 16.2 | I170: 10mx10m | J170: Upright | K170: Modelled | L170: 30 | M170: Multi-stream | N170: Large | O170: =VLOOKUP(M170,Dropdowns!$C$51:$F$55,Data!R2493+1,FALSE) -> Gentle < 19 km/hr. Flags flap | P170: 3 | Q170: 2 | R170: 1620
A171: Toro | B171: XP 300 | C171: 0 | D171: 10 | E171: 300 | F171: 0.94 | G171: 1.1 | H171: 16.4 | I171: 10mx10m | J171: Upright | K171: Modelled | L171: 30 | M171: Multi-stream | N171: Large | O171: =VLOOKUP(M171,Dropdowns!$C$51:$F$55,Data!R2494+1,FALSE) -> Moderate <28 km/hr. Dust & loose paper lifted. | P171: 3 | Q171: 2 | R171: 1640
A172: NaanDan | B172: 5035 | C172: 1638 | D172: 4.5 x 2.5 | E172: 300 | F172: 0.92 | G172: 1.2 | H172: 16.4 | I172: 10mx10m | J172: Upright | K172: Modelled | L172: 50 | M172: Impact | N172: Large | O172: =VLOOKUP(M172,Dropdowns!$C$51:$F$55,Data!R2495+1,FALSE) -> Moderate <28 km/hr. Dust & loose paper lifted. | P172: 3 | Q172: 3 | R172: 1640 | S172: 0.001221001221
A173: Toro | B173: XP 300 | C173: 0 | D173: 9 | E173: 350 | F173: 0.94 | G173: 1.1 | H173: 16.8 | I173: 10mx10m | J173: Upright | K173: Modelled | L173: 30 | M173: Multi-stream | N173: Large | O173: =VLOOKUP(M173,Dropdowns!$C$51:$F$55,Data!R2496+1,FALSE) -> 0 | P173: 3 | Q173: 2 | R173: 1680
A174: Toro | B174: S11 | C174: 1482 | D174: Blck x Orge | E174: 400 | F174: 0.95 | G174: 1.1 | H174: 17.1 | I174: 10mx10m | J174: Upright | K174: Modelled | L174: 100 | M174: Impact | N174: Large | O174: =VLOOKUP(M174,Dropdowns!$C$51:$F$55,Data!R2513+1,FALSE) -> Moderate <28 km/hr. Dust & loose paper lifted. | P174: 3 | Q174: 3 | R174: 1710 | S174: 0.1538461538
A175: Toro | B175: S11 | C175: 1590 | D175: Grey x Red | E175: 300 | F175: 0.94 | G175: 1.2 | H175: 17.2 | I175: 10mx10m | J175: Upright | K175: Modelled | L175: 100 | M175: Impact | N175: Large | O175: =VLOOKUP(M175,Dropdowns!$C$51:$F$55,Data!R2514+1,FALSE) -> Moderate <28 km/hr. Dust & loose paper lifted. | P175: 3 | Q175: 3 | R175: 1720 | S175: 0.08176100629
A176: Toro | B176: XP 300 | C176: 0 | D176: 9 | E176: 400 | F176: 0.95 | G176: 1.1 | H176: 18.3 | I176: 10mx10m | J176: Upright | K176: Modelled | L176: 30 | M176: Multi-stream | N176: Large | O176: =VLOOKUP(M176,Dropdowns!$C$51:$F$55,Data!R2497+1,FALSE) -> Moderate <28 km/hr. Dust & loose paper lifted. | P176: 3 | Q176: 2 | R176: 1830
A177: Toro | B177: XP 300 | C177: 0 | D177: 10 | E177: 350 | F177: 0.94 | G177: 1.1 | H177: 18.8 | I177: 10mx10m | J177: Upright | K177: Modelled | L177: 30 | M177: Multi-stream | N177: Large | O177: =VLOOKUP(M177,Dropdowns!$C$51:$F$55,Data!R2498+1,FALSE) -> 0 | P177: 3 | Q177: 2 | R177: 1880
A178: Toro | B178: XP 300 | C178: 0 | D178: 10 | E178: 400 | F178: 0.93 | G178: 1.1 | H178: 19.4 | I178: 10mx10m | J178: Upright | K178: Modelled | L178: 30 | M178: Multi-stream | N178: Large | O178: =VLOOKUP(M178,Dropdowns!$C$51:$F$55,Data!R2499+1,FALSE) -> Moderate <28 km/hr. Dust & loose paper lifted. | P178: 3 | Q178: 2 | R178: 1940
A179: NaanDan | B179: 5035 | C179: 1950 | D179: 5.0 x 2.5 | E179: 300 | F179: 0.93 | G179: 1.3 | H179: 19.4 | I179: 10mx10m | J179: Upright | K179: Modelled | L179: 50 | M179: Impact | N179: Large | O179: =VLOOKUP(M179,Dropdowns!$C$51:$F$55,Data!R2500+1,FALSE) -> Moderate <28 km/hr. Dust & loose paper lifted. | P179: 3 | Q179: 3 | R179: 1940 | S179: -0.005128205128
A180: Toro | B180: S11 | C180: 1842 | D180: Grey x Red | E180: 400 | F180: 0.96 | G180: 1.1 | H180: 19.6 | I180: 10mx10m | J180: Upright | K180: Modelled | L180: 100 | M180: Impact | N180: Large | O180: =VLOOKUP(M180,Dropdowns!$C$51:$F$55,Data!R2515+1,FALSE) -> Moderate <28 km/hr. Dust & loose paper lifted. | P180: 3 | Q180: 3 | R180: 1960 | S180: 0.06406080347
A181: Toro | B181: S11 | C181: 1860 | D181: Grn x Yell | E181: 300 | F181: 0.92 | G181: 1.3 | H181: 19.7 | I181: 10mx10m | J181: Upright | K181: Modelled | L181: 100 | M181: Impact | N181: Large | O181: =VLOOKUP(M181,Dropdowns!$C$51:$F$55,Data!R2516+1,FALSE) -> Moderate <28 km/hr. Dust & loose paper lifted. | P181: 3 | Q181: 3 | R181: 1970 | S181: 0.05913978495
A182: Toro | B182: XP 300 | C182: 0 | D182: 9 | E182: 450 | F182: 0.93 | G182: 1.1 | H182: 20.6 | I182: 10mx10m | J182: Upright | K182: Modelled | L182: 30 | M182: Multi-stream | N182: Large | O182: =VLOOKUP(M182,Dropdowns!$C$51:$F$55,Data!R2501+1,FALSE) -> Moderate <28 km/hr. Dust & loose paper lifted. | P182: 3 | Q182: 2 | R182: 2060
A183: NaanDan | B183: 5035 | C183: 2250 | D183: 5.0 x 2.5 | E183: 400 | F183: 0.96 | G183: 1.1 | H183: 22.5 | I183: 10mx10m | J183: Upright | K183: Modelled | L183: 50 | M183: Impact | N183: Large | O183: =VLOOKUP(M183,Dropdowns!$C$51:$F$55,Data!R2502+1,FALSE) -> Moderate <28 km/hr. Dust & loose paper lifted. | P183: 3 | Q183: 3 | R183: 2250 | S183: 0
A184: Toro | B184: S11 | C184: 2160 | D184: Grn x Yell | E184: 400 | F184: 0.95 | G184: 1.2 | H184: 22.7 | I184: 10mx10m | J184: Upright | K184: Modelled | L184: 100 | M184: Impact | N184: Large | O184: =VLOOKUP(M184,Dropdowns!$C$51:$F$55,Data!R2517+1,FALSE) -> Moderate <28 km/hr. Dust & loose paper lifted. | P184: 3 | Q184: 3 | R184: 2270 | S184: 0.05092592593
A185: Toro | B185: XP 300 | C185: 0 | D185: 10 | E185: 450 | F185: 0.93 | G185: 1.1 | H185: 23.2 | I185: 10mx10m | J185: Upright | K185: Modelled | L185: 30 | M185: Multi-stream | N185: Large | O185: =VLOOKUP(M185,Dropdowns!$C$51:$F$55,Data!R2503+1,FALSE) -> Moderate <28 km/hr. Dust & loose paper lifted. | P185: 3 | Q185: 2 | R185: 2320
A186: Toro | B186: S11 | C186: 2220 | D186: Ornge x Yell | E186: 300 | F186: 0.93 | G186: 1.3 | H186: 23.9 | I186: 10mx10m | J186: Upright | K186: Modelled | L186: 100 | M186: Impact | N186: Large | O186: =VLOOKUP(M186,Dropdowns!$C$51:$F$55,Data!R2518+1,FALSE) -> Moderate <28 km/hr. Dust & loose paper lifted. | P186: 3 | Q186: 3 | R186: 2390 | S186: 0.07657657658
A187: Nelson | B187: R2000 15 K4 | C187: 458 | D187: #13Yellow | E187: 310 | F187: 0.9 | G187: 1.2 | H187: 3 | I187: 11.5mx11.5m | J187: Upright | K187: Modelled | L187: 31 | M187: Single stream rotator | N187: Large | O187: =VLOOKUP(M187,Dropdowns!$C$51:$F$55,Data!R2676+1,FALSE) -> Gentle < 19 km/hr. Flags flap | P187: 3 | Q187: 2 | R187: =H187*LEFT(I187,4)*LEFT(I187,4) -> 396.75 | S187: -0.1337336245
A188: RainBird | B188: LF1200 | C188: 402 | D188: Yellow | E188: 245 | F188: 0.88 | G188: 1.2 | H188: 3.1 | I188: 11.5mx11.5m | J188: Upright | K188: Modelled | L188: 30 | M188: Impact | N188: Large | O188: =VLOOKUP(M188,Dropdowns!$C$51:$F$55,Data!R2679+1,FALSE) -> Moderate <28 km/hr. Dust & loose paper lifted. | P188: 3 | Q188: 3 | R188: 409.975 | S188: 0.01983830846
A189: RainBird | B189: LF1200 | C189: 402 | D189: Yellow | E189: 245 | F189: 0.85 | G189: 1.3 | H189: 3.1 | I189: 11.5mx11.5m | J189: Upright | K189: Modelled | L189: 30 | M189: Impact | N189: Large | O189: =VLOOKUP(M189,Dropdowns!$C$51:$F$55,Data!R2682+1,FALSE) -> Moderate <28 km/hr. Dust & loose paper lifted. | P189: 3 | Q189: 3 | R189: 409.975 | S189: 0.01983830846
A190: RainBird | B190: LF1200 | C190: 409 | D190: Purple | E190: 350 | F190: 0.93 | G190: 1.1 | H190: 3.1 | I190: 11.5mx11.5m | J190: Upright | K190: Modelled | L190: 30 | M190: Impact | N190: Large | O190: =VLOOKUP(M190,Dropdowns!$C$51:$F$55,Data!R2677+1,FALSE) -> Moderate <28 km/hr. Dust & loose paper lifted. | P190: 3 | Q190: 3 | R190: 409.975 | S190: 0.002383863081
A191: RainBird | B191: LF1200 | C191: 409 | D191: Purple | E191: 350 | F191: 0.92 | G191: 1.1 | H191: 3.1 | I191: 11.5mx11.5m | J191: Upright | K191: Modelled | L191: 30 | M191: Impact | N191: Large | O191: =VLOOKUP(M191,Dropdowns!$C$51:$F$55,Data!R2678+1,FALSE) -> Moderate <28 km/hr. Dust & loose paper lifted. | P191: 3 | Q191: 3 | R191: 409.975 | S191: 0.002383863081
A192: RainBird | B192: LF1200 | C192: 409 | D192: Purple | E192: 350 | F192: 0.87 | G192: 1.1 | H192: 3.1 | I192: 11.5mx11.5m | J192: Upright | K192: Modelled | L192: 30 | M192: Impact | N192: Large | O192: =VLOOKUP(M192,Dropdowns!$C$51:$F$55,Data!R2680+1,FALSE) -> Moderate <28 km/hr. Dust & loose paper lifted. | P192: 3 | Q192: 3 | R192: 409.975 | S192: 0.002383863081
A193: RainBird | B193: LF1200 | C193: 409 | D193: Purple | E193: 350 | F193: 0.87 | G193: 1.3 | H193: 3.1 | I193: 11.5mx11.5m | J193: Upright | K193: Modelled | L193: 30 | M193: Impact | N193: Large | O193: =VLOOKUP(M193,Dropdowns!$C$51:$F$55,Data!R2681+1,FALSE) -> Moderate <28 km/hr. Dust & loose paper lifted. | P193: 3 | Q193: 3 | R193: 409.975 | S193: 0.002383863081
A194: RainBird | B194: LF1200 | C194: 429 | D194: Purple | E194: 385 | F194: 0.93 | G194: 1.1 | H194: 3.3 | I194: 11.5mx11.5m | J194: Upright | K194: Modelled | L194: 30 | M194: Impact | N194: Large | O194: =VLOOKUP(M194,Dropdowns!$C$51:$F$55,Data!R2684+1,FALSE) -> Moderate <28 km/hr. Dust & loose paper lifted. | P194: =IF(N194="Small",1,IF(N194="Medium",2,IF(N194="Large",3,4))) -> 3 | Q194: 3 | R194: 436.425 | S194: =(R194-C194)/C194 -> 0.01730769231
A195: RainBird | B195: LF1200 | C195: 429 | D195: Purple | E195: 385 | F195: 0.91 | G195: 1.2 | H195: 3.3 | I195: 11.5mx11.5m | J195: Upright | K195: Modelled | L195: 30 | M195: Impact | N195: Large | O195: =VLOOKUP(M195,Dropdowns!$C$51:$F$55,Data!R2686+1,FALSE) -> Moderate <28 km/hr. Dust & loose paper lifted. | P195: 3 | Q195: 3 | R195: 436.425 | S195: 0.01730769231
A196: RainBird | B196: LF1200 | C196: 429 | D196: Purple | E196: 385 | F196: 0.9 | G196: 1.2 | H196: 3.3 | I196: 11.5mx11.5m | J196: Upright | K196: Modelled | L196: 30 | M196: Impact | N196: Large | O196: =VLOOKUP(M196,Dropdowns!$C$51:$F$55,Data!R2687+1,FALSE) -> Moderate <28 km/hr. Dust & loose paper lifted. | P196: 3 | Q196: 3 | R196: 436.425 | S196: 0.01730769231
A197: RainBird | B197: LF1200 | C197: 429 | D197: Yellow | E197: 280 | F197: 0.9 | G197: 1.3 | H197: 3.3 | I197: 11.5mx11.5m | J197: Upright | K197: Modelled | L197: 30 | M197: Impact | N197: Large | O197: =VLOOKUP(M197,Dropdowns!$C$51:$F$55,Data!R2689+1,FALSE) -> Moderate <28 km/hr. Dust & loose paper lifted. | P197: 3 | Q197: 3 | R197: 436.425 | S197: 0.01730769231
A198: RainBird | B198: LF1200 | C198: 429 | D198: Yellow | E198: 280 | F198: 0.88 | G198: 1.1 | H198: 3.3 | I198: 11.5mx11.5m | J198: Upright | K198: Modelled | L198: 30 | M198: Impact | N198: Large | O198: =VLOOKUP(M198,Dropdowns!$C$51:$F$55,Data!R2691+1,FALSE) -> Moderate <28 km/hr. Dust & loose paper lifted. | P198: 3 | Q198: 3 | R198: 436.425 | S198: 0.01730769231
A199: RainBird | B199: LF1200 | C199: 429 | D199: Purple | E199: 385 | F199: 0.86 | G199: 1.3 | H199: 3.3 | I199: 11.5mx11.5m | J199: Upright | K199: Modelled | L199: 30 | M199: Impact | N199: Large | O199: =VLOOKUP(M199,Dropdowns!$C$51:$F$55,Data!R2693+1,FALSE) -> Moderate <28 km/hr. Dust & loose paper lifted. | P199: 3 | Q199: 3 | R199: 436.425 | S199: 0.01730769231
A200: Nelson | B200: R2000 24 K4 | C200: 431 | D200: #13 Yellow | E200: 276 | F200: 0.86 | G200: 1.3 | H200: 3.3 | I200: 11.5mx11.5m | J200: Upright | K200: Modelled | L200: 46 | M200: Single stream rotator | N200: Large | O200: =VLOOKUP(M200,Dropdowns!$C$51:$F$55,Data!R2694+1,FALSE) -> Gentle < 19 km/hr. Flags flap | P200: 3 | Q200: 3 | R200: 436.425 | S200: 0.01258700696
... 3122 more rows

Sheet Advisor input (hidden)
A1: Direct database selection
A2: Manufacturer
A3: Sprinkler
A4: FlowRate
A5: FlowRate
A6: Nozzle
A7: Pressure
A8: Pressure
A9: Minimum CU
A10: CU
A11: SC
A12: Maximum SC
A13: SC
A14: MAR
A15: MAR
A16: Spacing
A17: Position
A18: Scenario
A19: SprinklerHeight
A20: SprinklerType
A21: Wind capability
A22: Droplet size
